Workbook

Sheet Results
A1: Results
D7: Baseline | E7: Contender 1 | F7: Contender 2
C8: Production | D8: =B25 -> 8890.659807 | E8: =B26 -> 7986.857744 | F8: =B27 -> 10894.38433
B9: 2 | C9: =B9*'Data Input'!$H$13/10 -> 30000 | D9: =$D$8+B9*$C$25/10 -> 11365.70576 | E9: =$E$8+B9*$C$26/10 -> 10327.5017 | F9: =$F$8+B9*$C$27/10 -> 13192.01965
B10: 4 | C10: =B10*'Data Input'!$H$13/10 -> 60000 | D10: =$D$8+B10*$C$25/10 -> 13840.7517 | E10: =$E$8+B10*$C$26/10 -> 12668.14566 | F10: =$F$8+B10*$C$27/10 -> 15489.65497
B11: 6 | C11: =B11*'Data Input'!$H$13/10 -> 90000 | D11: =$D$8+B11*$C$25/10 -> 16315.79765 | E11: =$E$8+B11*$C$26/10 -> 15008.78961 | F11: =$F$8+B11*$C$27/10 -> 17787.29029
B12: 8 | C12: =B12*'Data Input'!$H$13/10 -> 120000 | D12: =$D$8+B12*$C$25/10 -> 18790.8436 | E12: =$E$8+B12*$C$26/10 -> 17349.43357 | F12: =$F$8+B12*$C$27/10 -> 20084.92561
B13: 10 | C13: =B13*'Data Input'!$H$13/10 -> 150000 | D13: =$D$8+B13*$C$25/10 -> 21265.88955 | E13: =$E$8+B13*$C$26/10 -> 19690.07753 | F13: =$F$8+B13*$C$27/10 -> 22382.56093
C14: Total | D14: =E25 -> 18064.36868 | E14: =E26 -> 16913.66599 | F14: =E27 -> 17843.21268
A24: GHG Emissions (in kg CO2 eq) | B24: Production | C24: Use | D24: End of Life | E24: Total | F24: Prod & EOL | G24: Prod & Use
A25: Baseline | B25: ='LCA Calculations'!I118 -> 8890.659807 | C25: ='LCA Calculations'!J118 -> 12375.22974 | D25: ='LCA Calculations'!K118 -> -3201.520872 | E25: =B25+C25+D25 -> 18064.36868 | F25: =B25+D25 -> 5689.138935 | G25: =B25+C25 -> 21265.88955
A26: Contender 1 | B26: ='LCA Calculations'!I119 -> 7986.857744 | C26: ='LCA Calculations'!J119 -> 11703.21978 | D26: ='LCA Calculations'!K119 -> -2776.411536 | E26: =B26+C26+D26 -> 16913.66599 | F26: =B26+D26 -> 5210.446208 | G26: =B26+C26 -> 19690.07753
A27: Contender 2 | B27: ='LCA Calculations'!I120 -> 10894.38433 | C27: ='LCA Calculations'!J120 -> 11488.1766 | D27: ='LCA Calculations'!K120 -> -4539.348243 | E27: =B27+C27+D27 -> 17843.21268 | F27: =B27+D27 -> 6355.036089 | G27: =B27+C27 -> 22382.56093
A28: Baseline - Contender Vehicle 1 | B28: =B25-B26 -> 903.8020632 | C28: 672.0099605 | D28: -425.1093358 | E28: 1150.702688 | F28: 478.6927274 | G28: 1575.812024
A29: Baseline - Contender Vehicle 2 | B29: =B25-B27 -> -2003.724524 | C29: 887.0531479 | D29: 1337.827371 | E29: 221.1559946 | F29: -665.8971533 | G29: -1116.671376
A30: Contender Vehicle 1 - Contender Vehicle 2 | B30: =B26-B27 -> -2907.526587 | C30: 215.0431874 | D30: 1762.936707 | E30: -929.5466933 | F30: -1144.589881 | G30: -2692.4834
D35: Baseline | E35: Contender 1 | F35: Contender 2
C36: Production | D36: =B53 -> 128260.8015 | E36: =B54 -> 116117.3391 | F36: =B55 -> 149296.3904
B37: 2 | C37: =B37*'Data Input'!$H$13/10 -> 30000 | D37: =$D$36+B37*$C$53/10 -> 169413.5845 | E37: =$E$36+B37*$C$54/10 -> 155035.4096 | F37: =$F$36+B37*$C$55/10 -> 187499.3529
B38: 4 | C38: =B38*'Data Input'!$H$13/10 -> 60000 | D38: =$D$36+B38*$C$53/10 -> 210566.3675 | E38: =$E$36+B38*$C$54/10 -> 193953.4802 | F38: =$F$36+B38*$C$55/10 -> 225702.3155
B39: 6 | C39: =B39*'Data Input'!$H$13/10 -> 90000 | D39: 251719.1505 | E39: 232871.5507 | F39: 263905.278
B40: 8 | C40: =B40*'Data Input'!$H$13/10 -> 120000 | D40: 292871.9335 | E40: 271789.6212 | F40: 302108.2406
B41: 10 | C41: =B41*'Data Input'!$H$13/10 -> 150000 | D41: 334024.7165 | E41: 310707.6918 | F41: 340311.2031
C42: Total | D42: =E53 -> 289719.413 | E42: =E54 -> 271969.0775 | F42: =E55 -> 281559.066
A52: Total Energy Requirements (in MJ) | B52: Production | C52: Use | D52: End of Life | E52: Total | F52: Prod & EOL | G52: Prod & Use
A53: =A25 -> Baseline | B53: ='LCA Calculations'!I123 -> 128260.8015 | C53: ='LCA Calculations'!J123 -> 205763.915 | D53: ='LCA Calculations'!K123 -> -44305.30347 | E53: =B53+C53+D53 -> 289719.413 | F53: =B53+D53 -> 83955.49802 | G53: =B53+C53 -> 334024.7165
A54: Contender 1 | B54: ='LCA Calculations'!I124 -> 116117.3391 | C54: ='LCA Calculations'!J124 -> 194590.3527 | D54: ='LCA Calculations'!K124 -> -38738.6143 | E54: =B54+C54+D54 -> 271969.0775 | F54: =B54+D54 -> 77378.72479 | G54: =B54+C54 -> 310707.6918
A55: Contender 2 | B55: ='LCA Calculations'!I125 -> 149296.3904 | C55: ='LCA Calculations'!J125 -> 191014.8128 | D55: ='LCA Calculations'!K125 -> -58752.13707 | E55: =B55+C55+D55 -> 281559.066 | F55: =B55+D55 -> 90544.25328 | G55: =B55+C55 -> 340311.2031
A56: Baseline - Contender Vehicle 1 | B56: =B53-B54 -> 12143.46241 | C56: 11173.56229 | D56: -5566.689179 | E56: =E53-E54 -> 17750.33552 | F56: =F53-F54 -> 6576.77323 | G56: =G53-G54 -> 23317.0247
A57: Baseline - Contender Vehicle 2 | B57: =B53-B55 -> -21035.58886 | C57: 14749.10222 | D57: 14446.83359 | E57: =E53-E55 -> 8160.346961 | F57: =F53-F55 -> -6588.755261 | G57: =G53-G55 -> -6286.486634
A58: Contender Vehicle 1 - Contender Vehicle 2 | B58: =B54-B55 -> -33179.05126 | C58: 3575.539932 | D58: =D54-D55 -> 20013.52277 | E58: =E54-E55 -> -9589.988558 | F58: =F54-F55 -> -13165.52849 | G58: =G54-G55 -> -29603.51133
D63: Baseline | E63: Contender 1 | F63: Contender 2
C64: Production | D64: =B81 -> 116877.8499 | E64: =B82 -> 105956.7163 | F64: =B83 -> 133471.9606
B65: 2 | C65: =B65*'Data Input'!$H$13/10 -> 30000 | D65: =$D$64+B65*$C$81/10 -> 149110.8179 | E65: =$E$64+B65*$C$82/10 -> 136439.343 | F65: =$F$64+B65*$C$83/10 -> 163394.4781
B66: 4 | C66: =B66*'Data Input'!$H$13/10 -> 60000 | D66: =$D$64+B66*$C$81/10 -> 181343.7859 | E66: =$E$64+B66*$C$82/10 -> 166921.9697 | F66: =$F$64+B66*$C$83/10 -> 193316.9955
B67: 6 | C67: =B67*'Data Input'!$H$13/10 -> 90000 | D67: 213576.7538 | E67: 197404.5964 | F67: 223239.513
B68: 8 | C68: =B68*'Data Input'!$H$13/10 -> 120000 | D68: 245809.7218 | E68: 227887.2231 | F68: 253162.0305
B69: 10 | C69: =B69*'Data Input'!$H$13/10 -> 150000 | D69: 278042.6898 | E69: 258369.8497 | F69: 283084.5479
C70: Total | D70: =E81 -> 237214.9801 | E70: =E82 -> 222671.1161 | F70: =E83 -> 231245.1515
A80: Fossil Energy Requirements (in MJ) | B80: Production | C80: Use | D80: End of Life | E80: Total | F80: Prod & EOL | G80: Prod & Use
A81: =A25 -> Baseline | B81: ='LCA Calculations'!I128 -> 116877.8499 | C81: ='LCA Calculations'!J128 -> 161164.8398 | D81: ='LCA Calculations'!K128 -> -40827.70969 | E81: =B81+C81+D81 -> 237214.9801 | F81: =B81+D81 -> 76050.14026 | G81: =B81+C81 -> 278042.6898
A82: Contender 1 | B82: ='LCA Calculations'!I129 -> 105956.7163 | C82: ='LCA Calculations'!J129 -> 152413.1334 | D82: ='LCA Calculations'!K129 -> -35698.73368 | E82: =B82+C82+D82 -> 222671.1161 | F82: =B82+D82 -> 70257.98267 | G82: =B82+C82 -> 258369.8497
A83: Contender 2 | B83: ='LCA Calculations'!I130 -> 133471.9606 | C83: ='LCA Calculations'!J130 -> 149612.5873 | D83: ='LCA Calculations'!K130 -> -51839.39641 | E83: =B83+C83+D83 -> 231245.1515 | F83: =B83+D83 -> 81632.56418 | G83: =B83+C83 -> 283084.5479
A84: Baseline - Contender Vehicle 1 | B84: =B81-B82 -> 10921.13361 | C84: 8751.706423 | D84: -5128.976018 | E84: =E81-E82 -> 14543.86401 | F84: =F81-F82 -> 5792.15759 | G84: =G81-G82 -> 19672.84003
A85: Baseline - Contender Vehicle 2 | B85: =B81-B83 -> -16594.11064 | C85: 11552.25248 | D85: 11011.68672 | E85: =E81-E83 -> 5969.828554 | F85: =F81-F83 -> -5582.423925 | G85: =G81-G83 -> -5041.858166
A86: Contender Vehicle 1 - Contender Vehicle 2 | B86: =B82-B83 -> -27515.24425 | C86: 2800.546055 | D86: 16140.66274 | E86: =E82-E83 -> -8574.035459 | F86: =F82-F83 -> -11374.58151 | G86: =G82-G83 -> -24714.6982

Sheet Data Input
B1: UCSB Automotive Energy and Greenhouse Gas Model | S1: Version 5.1 - Release Date 25 October 2024
B3: Powertrain, Vehicle Class, & Driving Cycle
B4: Power train | H4: BEV | J4: Biofuel Content
B5: Vehicle class | N5: For ICEV-G, HEV, and PHEV only: | T5: Guide to Inputs/Outputs
C6: ICEV, HEV, FCV: Compact, Mid-Size, SUV | H6: FSV A-Class | N6: Volumetric ethanol content | P6: 0
C7: BEV, PHEV: FSV A-Class, FSV C-Class | N7: Ethanol source | P7: Corn | U7: Blue: User inputs (used within the same and/or in other spreadsheets)
B8: Driving cycle | H8: WLTP 3b | N8: For ICEV-D only: | U8: Light Blue: Model input data that should only be changed by expert users
B9: Powertrain resize for equivalent performance? | H9: Yes | N9: Volumetric biodiesel content | P9: 0 | U9: Green: Intermediate results used within the spreadsheet
N10: Biodiesel source | P10: Soybeans | U10: Orange: Outputs that are used in another spreadsheet
B11: Lifetime vehicle mileage TM | G11: km | H11: 200000 | J11: Electricity Source | U11: Pink: Inputs that come from another spreadsheet
G12: miles | H12: =H11/1.609 -> 124300.808 | N12: (for BEV and PHEV only): | P12: USA | U12: White: Data that is displayed for information only, and not used to calculate results
F13: Suggested value for selected power train | G13: km | H13: =IF(OR(H4="BEV",H4="PHEV20",H4="PHEV40"),150000,200000) -> 150000
G14: miles | H14: =H13/1.609 -> 93225.60597
B16: Bill of Materials | H16: Material Replacement Coefficients (to mild steel) | Q16: Final Material Composition
B17: BOM-based data entry? | F17: No | J17: Contender Vehicle 1 | M17: Contender Vehicle 2 | S17: Baseline | V17: Contender 1 | Y17: Contender 2
C18: If yes, only select use phase parameters | I18: AHSS ks | J18: 0.75 | K18: kg / kg | M18: 0.75 | N18: kg / kg | R18: Material | S18: kg | T18: % of mass | V18: kg | W18: % of mass | Y18: kg | Z18: % of mass
C19: and then go to BOM Entry spreadsheet. | I19: Aluminum ka | J19: 0.67 | K19: kg / kg | M19: 0.67 | N19: kg / kg | R19: Flat carbon steel | S19: =IF(BOM="Yes","-----n/a-----",'Expert Data Input'!B5*CWminus) -> 325.8292756 | T19: =IF(F$17="Yes","-----n/a-----",S19/$S$39) -> 0.4 | V19: =IF(BOM="Yes","-----n/a-----",S19-B35-$J$41*Sc*'Expert Data Input'!D6) -> 66.86588744 | W19: =IF(F$17="Yes","-----n/a-----",V19/$V$39) -> 0.09244053414 | Y19: =IF(BOM="Yes","-----n/a-----",S19-B35-$M$41*Sc*'Expert Data Input'!D6) -> 64.84470978 | Z19: =IF(F$17="Yes","-----n/a-----",Y19/$Y$39) -> 0.09341670552
I20: FRP kc | J20: 0.55 | K20: kg / kg | M20: 0.55 | N20: kg / kg | R20: Long & special steel | S20: =IF(BOM="Yes","-----n/a-----",'Expert Data Input'!B6*CWminus) -> 122.1859784 | T20: 0.15 | V20: =IF(BOM="Yes","-----n/a-----",S20-B36-$J$41*Sc*'Expert Data Input'!D7) -> 89.90327957 | W20: 0.1242891929 | Y20: =IF(BOM="Yes","-----n/a-----",S20-B36-$M$41*Sc*'Expert Data Input'!D7) -> 88.55582779 | Z20: 0.1275754601
B21: Baseline Vehicle Mass | I21: Magnesium km | J21: 0.5 | K21: kg / kg | M21: 0.5 | N21: kg / kg | R21: Cast iron and steel | S21: =IF(BOM="Yes","-----n/a-----",'Expert Data Input'!B7*CWminus) -> 81.45731891 | T21: 0.1 | V21: =IF(BOM="Yes","-----n/a-----",S21-B37-$J$41*Sc*'Expert Data Input'!D8) -> 81.45731891 | W21: 0.1126128488 | Y21: =IF(BOM="Yes","-----n/a-----",S21-B37-$M$41*Sc*'Expert Data Input'!D8) -> 81.45731891 | Z21: 0.1173491932
B22: =B24 -> 1063.33 | C22: Vehicle mass VMb (in kg) | R22: Flat AHSS | S22: =IF(BOM="Yes","-----n/a-----",'Expert Data Input'!B8*CWminus) -> 0 | T22: 0 | V22: =IF(BOM="Yes","-----n/a-----",S22+K26) -> 189.485406 | W22: 0.2619591665 | Y22: =IF(BOM="Yes","-----n/a-----",S22+N26) -> 0 | Z22: 0
B23: =CWc*2.20462262 -> 2344.241371 | C23: Vehicle mass VMb (in lbs) | H23: Composition of replacing material | R23: Long & special AHSS | S23: =IF(BOM="Yes","-----n/a-----",'Expert Data Input'!B9*CWminus) -> 0 | T23: 0 | V23: =IF(BOM="Yes","-----n/a-----",S23+K27) -> 21.053934 | W23: 0.02910657406 | Y23: =IF(BOM="Yes","-----n/a-----",S23+N27) -> 0 | Z23: 0
B24: ='ED - ES'!B52 -> 1063.33 | C24: Default VMb (in kg) | J24: Contender Vehicle 1 | M24: Contender Vehicle 2 | R24: Cast AHSS | S24: =IF(BOM="Yes","-----n/a-----",'Expert Data Input'!B10*CWminus) -> 0 | T24: 0 | V24: =IF(BOM="Yes","-----n/a-----",S24+K28) -> 0 | W24: 0 | Y24: =IF(BOM="Yes","-----n/a-----",S24+N28) -> 0 | Z24: 0
B25: =B24*2.20462262 -> 2344.241371 | C25: Default VMb (in lbs) | J25: % of ∆M | K25: kg | M25: % of ∆M | N25: kg | R25: Rolled aluminum | S25: =IF(BOM="Yes","-----n/a-----",'Expert Data Input'!B11*CWminus) -> 8.145731891 | T25: 0.01 | V25: =IF(BOM="Yes","-----n/a-----",S25+K29-$J$41*Sc*'Expert Data Input'!D9) -> 6.040338491 | W25: 0.00835062747 | Y25: =IF(BOM="Yes","-----n/a-----",S25+N29-$M$41*Sc*'Expert Data Input'!D9) -> 137.0238799 | Z25: 0.1973995948
I26: Flat AHSS | J26: 0.9 | K26: =J26*($B$38*KSc) -> 189.485406 | M26: 0 | N26: =M26*$B$38*M18 -> 0 | R26: Extruded aluminum | S26: =IF(BOM="Yes","-----n/a-----",'Expert Data Input'!B12*CWminus) -> 8.145731891 | T26: 0.01 | V26: =IF(BOM="Yes","-----n/a-----",S26+K30-$J$41*Sc*'Expert Data Input'!D10) -> 6.040338491 | W26: 0.00835062747 | Y26: =IF(BOM="Yes","-----n/a-----",S26+N30-$M$41*Sc*'Expert Data Input'!D10) -> 61.79115572 | Z26: 0.08901768884
B27: Mass of Removed Material | I27: Long & special AHSS | J27: 0.1 | K27: =J27*($B$38*KSc) -> 21.053934 | M27: 0 | N27: =M27*$B$38*M18 -> 0 | R27: Cast aluminum | S27: =IF(BOM="Yes","-----n/a-----",'Expert Data Input'!B13*CWminus) -> 40.72865946 | T27: 0.05 | V27: =IF(BOM="Yes","-----n/a-----",S27+K31-$J$41*Sc*'Expert Data Input'!D11) -> 34.41247926 | W27: 0.04757445216 | Y27: =IF(BOM="Yes","-----n/a-----",S27+N31-$M$41*Sc*'Expert Data Input'!D11) -> 32.39130159 | Z27: 0.0466636167
B28: =B30 -> 280.71912 | C28: Removed material ∆M (in kg) | I28: Cast AHSS | J28: 0 | K28: =J28*($B$38*KSc/100) -> 0 | M28: 0 | N28: =M28*$B$38*M18 -> 0 | R28: Rolled magnesium | S28: =IF(BOM="Yes","-----n/a-----",'Expert Data Input'!B14*CWminus) -> 0 | T28: 0 | V28: =IF(BOM="Yes","-----n/a-----",S28+K32) -> 0 | W28: 0 | Y28: =IF(BOM="Yes","-----n/a-----",S28+N32) -> 0 | Z28: 0
B29: =DMc*2.20462262 -> 618.8797218 | C29: Removed material ∆M (in lbs) | I29: Rolled aluminum | J29: 0 | K29: =J29*($B$38*KAc) -> 0 | M29: 0.7 | N29: =M29*$B$38*M19 -> 131.6572673 | R29: Cast magnesium | S29: =IF(BOM="Yes","-----n/a-----",'Expert Data Input'!B15*CWminus) -> 0 | T29: 0 | V29: =IF(BOM="Yes","-----n/a-----",S29+K33) -> 0 | W29: 0 | Y29: =IF(BOM="Yes","-----n/a-----",S29+N33) -> 0 | Z29: 0
B30: ='ED - ES'!B56 -> 280.71912 | C30: Default body structure (in kg) | I30: Extruded aluminum | J30: 0 | K30: =J30*($B$38*KAc) -> 0 | M30: 0.3 | N30: =M30*$B$38*M19 -> 56.42454312 | R30: SMC | S30: =IF(BOM="Yes","-----n/a-----",'Expert Data Input'!B16*CWminus) -> 0 | T30: 0 | V30: =IF(BOM="Yes","-----n/a-----",S30+K34) -> 0 | W30: 0 | Y30: =IF(BOM="Yes","-----n/a-----",S30+N34) -> 0 | Z30: 0
B31: =B30*2.20462262 -> 618.8797218 | C31: Default body structure (in lbs) | I31: Cast aluminum | J31: 0 | K31: =J31*($B$38*KAc) -> 0 | M31: 0 | N31: =M31*$B$38*M19 -> 0 | R31: GFRP | S31: =IF(BOM="Yes","-----n/a-----",'Expert Data Input'!B17*CWminus) -> 0 | T31: 0 | V31: =IF(BOM="Yes","-----n/a-----",S31+K35) -> 0 | W31: 0 | Y31: =IF(BOM="Yes","-----n/a-----",S31+N35) -> 0 | Z31: 0
I32: Rolled magnesium | J32: 0 | K32: =J32*($B$38*KMc) -> 0 | M32: 0 | N32: =M32*$B$38*M21 -> 0 | R32: CFRP | S32: =IF(BOM="Yes","-----n/a-----",'Expert Data Input'!B18*CWminus) -> 0 | T32: 0 | V32: =IF(BOM="Yes","-----n/a-----",S32+K36) -> 0 | W32: 0 | Y32: =IF(BOM="Yes","-----n/a-----",S32+N36) -> 0 | Z32: 0
B33: Composition of Removed Material | I33: Cast magnesium | J33: 0 | K33: =J33*($B$38*KMc) -> 0 | M33: 0 | N33: =M33*$B$38*M21 -> 0 | R33: Plastic | S33: =IF(BOM="Yes","-----n/a-----",'Expert Data Input'!B19*CWminus) -> 97.74878269 | T33: 0.12 | V33: =IF(BOM="Yes","-----n/a-----",S33) -> 97.74878269 | W33: 0.1351354185 | Y33: =IF(BOM="Yes","-----n/a-----",S33) -> 97.74878269 | Z33: 0.1408190318
B34: kg | C34: % of ∆M | I34: SMC | J34: 0 | K34: =J34*($B$38*KCc) -> 0 | M34: 0 | N34: =M34*$B$38*M20 -> 0 | R34: Rubber (excluding tires) | S34: =IF(BOM="Yes","-----n/a-----",'Expert Data Input'!B20*CWminus) -> 24.43719567 | T34: 0.03 | V34: 24.43719567 | W34: 0.03378385463 | Y34: 24.43719567 | Z34: 0.03520475795
B35: =0.9*DMc -> 252.647208 | C35: =B35/DMc -> 0.9 | D35: Flat carbon steel | I35: GFRP | J35: 0 | K35: =J35*($B$38*KCc) -> 0 | M35: 0 | N35: =M35*$B$38*M20 -> 0 | R35: Glass | S35: =IF(BOM="Yes","-----n/a-----",'Expert Data Input'!B21*CWminus) -> 24.43719567 | T35: 0.03 | V35: 24.43719567 | W35: 0.03378385463 | Y35: 24.43719567 | Z35: 0.03520475795
B36: =0.1*DMc -> 28.071912 | C36: =B36/DMc -> 0.1 | D36: Long & special steel | I36: CFRP | J36: 0 | K36: =J36*($B$38*KCc) -> 0 | M36: 0 | N36: =M36*$B$38*M20 -> 0 | R36: Copper | S36: =IF(BOM="Yes","-----n/a-----",'Expert Data Input'!B22*CWminus) -> 16.29146378 | T36: 0.02 | V36: 16.29146378 | W36: 0.02252256975 | Y36: 16.29146378 | Z36: 0.02346983863
B37: 0 | C37: =B37/DMc -> 0 | D37: Cast iron and steel | I37: Totals | J37: =SUM(J26:J36) -> 1 | K37: =SUM(K26:K36) -> 210.53934 | M37: =SUM(M26:M36) -> 1 | N37: =SUM(N26:N36) -> 188.0818104 | R37: Stainless steel | S37: =IF(BOM="Yes","-----n/a-----",'Expert Data Input'!B23*CWminus) -> 0 | T37: 0 | V37: 0 | W37: 0 | Y37: 0 | Z37: 0
B38: =SUM(B35:B37) -> 280.71912 | C38: =SUM(C35:C37) -> 1 | R38: Other | S38: =IF(BOM="Yes","-----n/a-----",'Expert Data Input'!B24*CWminus) -> 65.16585513 | T38: 0.08 | V38: 65.16585513 | W38: 0.09009027901 | Y38: 65.16585513 | Z38: 0.09387935453
H39: Primary Mass Savings | S39: =IF(F17="Yes","-----n/a-----",CW-SUM(S40:S43)) -> 814.5731891 | V39: =IF(F17="Yes","-----n/a-----",SUM(V19:V38)) -> 723.3394751 | W39: 1 | Y39: =IF(F17="Yes","-----n/a-----",SUM(Y19:Y38)) -> 694.1446866 | Z39: 1
B40: Secondary Mass savings s | J40: Contender Vehicle 1 | M40: Contender Vehicle 2 | R40: Battery | S40: =IF(F17="Yes","-----n/a-----",'ED - ES'!B61) -> 177.2568109 | V40: =IF(BOM="Yes","-----n/a-----",(SUM(V19:V38)+SUM(V41:V43))*'ED - ES'!B72) -> 159.0057258 | Y40: =IF(BOM="Yes","-----n/a-----",(SUM(Y19:Y38)+SUM(Y41:Y43))*'ED - ES'!B72) -> 153.1653785
B41: 0.3 | C41: of Primary Mass Savings | J41: =DMc-K37 -> 70.17978 | K41: kg | M41: =DMc-N37 -> 92.6373096 | N41: kg | R41: Fuel cell | S41: =IF(F17="Yes","-----n/a-----",0) -> 0 | V41: =IF(BOM="Yes","-----n/a-----",S41) -> 0 | Y41: =IF(BOM="Yes","-----n/a-----",S41) -> 0
R42: Fluids | S42: =IF(F17="Yes","-----n/a-----",'Expert Data Input'!B73) -> 11.5 | V42: =IF(BOM="Yes","-----n/a-----",S42) -> 11.5 | Y42: =IF(BOM="Yes","-----n/a-----",S42) -> 11.5
R43: Tires | S43: =IF(F17="Yes","-----n/a-----",4*'Expert Data Input'!D20) -> 60 | V43: =IF(BOM="Yes","-----n/a-----",S43) -> 60 | Y43: =IF(BOM="Yes","-----n/a-----",S43) -> 60
B44: Scenario Recorder | R44: Vehicle mass VM | S44: =IF(F17="Yes","-----n/a-----",SUM(S39:S43)) -> 1063.33 | V44: =IF(B23="Yes","-----n/a-----",SUM(V39:V43)) -> 953.8452009 | Y44: =IF(B29="Yes","-----n/a-----",SUM(Y39:Y43)) -> 918.8100652
V45: =IF(F17="Yes","-----n/a-----",S44-V44) -> 109.4847991 | W45: =IF(F17="Yes","-----n/a-----",V45/B22) -> 0.1029640837 | Y45: =IF(F17="Yes","-----n/a-----",S44-Y44) -> 144.5199348 | Z45: =IF(F17="Yes","-----n/a-----",Y45/B22) -> 0.1359125905
AA107: FSV A-Class
AA108: FSV C-Class
AA109: Compact
AA110: Mid-size
AA111: SUV

Sheet BOM Entry
A1: Material Composition of Contender Vehicles
C2: Baseline Vehicle | F2: Contender Vehicle 1 | I2: Contender Vehicle 2
C3: kg | D3: % of mass | F3: kg | G3: % of mass | I3: kg | J3: % of mass
A4: Flat carbon steel | C4: 620.5 | D4: =C4/C$24 -> 0.4000386822 | F4: 288.4 | G4: =F4/F$24 -> 0.2011017363 | I4: 285.8 | J4: =I4/I$24 -> 0.2046251879
A5: Long & special steel | C5: 232.7 | D5: =C5/C$24 -> 0.1500225646 | F5: 191.3 | G5: =F5/F$24 -> 0.1333937661 | I5: 189.6 | J5: =I5/I$24 -> 0.1357485502
A6: Cast iron | C6: 155.1 | D6: 0.09999355296 | F6: 155.1 | G6: 0.1081514539 | I6: 155.1 | J6: 0.111047469
A7: Flat AHSS | C7: 0 | D7: =C7/C$24 -> 0 | F7: 243 | G7: =F7/F$24 -> 0.1694442507 | I7: 0 | J7: =I7/I$24 -> 0
A8: Long & special AHSS | C8: 0 | D8: 0 | F8: 27 | G8: 0.01882713897 | I8: 0 | J8: 0
A9: Cast AHSS | C9: 0 | D9: 0 | F9: 0 | G9: 0 | I9: 0 | J9: 0
A10: Rolled aluminum | C10: 15.5 | D10: 0.009992908259 | F10: 12.8 | G10: 0.008925458476 | I10: 180.8 | J10: 0.1294479845
A11: Extruded aluminum | C11: 15.5 | D11: 0.009992908259 | F11: 12.8 | G11: 0.008925458476 | I11: 84.3 | J11: 0.06035655474
A12: Cast aluminum | C12: 77.6 | D12: 0.05002901167 | F12: 69.5 | G12: 0.04846245032 | I12: 66.9 | J12: 0.04789861817
A13: Rolled magnesium | C13: 0 | D13: 0 | F13: 0 | G13: 0 | I13: 0 | J13: 0
A14: Cast magnesium | C14: 0 | D14: 0 | F14: 0 | G14: 0 | I14: 0 | J14: 0
A15: SMC | C15: 0 | D15: 0 | F15: 0 | G15: 0 | I15: 0 | J15: 0
A16: GFRP | C16: 0 | D16: 0 | F16: 0 | G16: 0 | I16: 0 | J16: 0
A17: CFRP | C17: 0 | D17: 0 | F17: 0 | G17: 0 | I17: 0 | J17: 0
A18: Plastic | C18: 186.1 | D18: 0.1199793695 | F18: 186.1 | G18: 0.1297677986 | I18: 186.1 | J18: 0.1332426434
A19: Rubber | C19: 46.5 | D19: 0.02997872478 | F19: 46.5 | G19: 0.03242451712 | I19: 46.5 | J19: 0.03329276151
A20: Glass | C20: 46.5 | D20: 0.02997872478 | F20: 46.5 | G20: 0.03242451712 | I20: 46.5 | J20: 0.03329276151
A21: Copper | C21: 31 | D21: 0.01998581652 | F21: 31 | G21: 0.02161634475 | I21: 31 | J21: 0.02219517434
A22: Stainless steel | C22: 0 | D22: 0 | F22: 0 | G22: 0 | I22: 0 | J22: 0
A23: Other | C23: 124.1 | D23: 0.08000773645 | F23: 124.1 | G23: 0.08653510913 | I23: 124.1 | J23: 0.08885229469
A24: VM w/o battery, fuel cell, fluids, and tires | C24: =SUM(C4:C23) -> 1551.1 | D24: =SUM(D4:D23) -> 1 | F24: =SUM(F4:F23) -> 1434.1 | G24: =SUM(G4:G23) -> 1 | I24: =SUM(I4:I23) -> 1396.7 | J24: =SUM(J4:J23) -> 1
A25: Battery | C25: 0 | F25: 0 | I25: 0
A26: Fuel cell | C26: 0 | F26: 0 | I26: 0
A27: Fluids | C27: 28.8 | F27: 28.8 | I27: 28.8
A28: Tires | C28: 60 | F28: 60 | I28: 60
A29: Vehicle mass VM | C29: =SUM(C24:C28) -> 1639.9 | F29: =SUM(F24:F28) -> 1522.9 | I29: =SUM(I24:I28) -> 1485.5
A30: Total Mass Savings (in kg and % of VMb) | F30: =C29-F29 -> 117 | G30: =F30/C29 -> 0.07134581377 | I30: =C29-I29 -> 154.4 | J30: =I30/C29 -> 0.09415208244
A32: Important note 1: Make sure that the power train and vehicle class selections on the Data Input Spreadsheet matches the vehicle mass VM on this spreadsheet.
A34: Important note 2: Don't forget to select the Vehicle Use parameters on the Data Input Spreadsheet.

Sheet Expert Data Input
E2: EXPERT DATA INPUT
B4: Material Composition (in %) | D4: Composition of secondary savings | F4: Recycling methodology selection
A5: Flat carbon steel | B5: 0.4 | D5: % of s(1-k)∆M | G5: α | H5: alpha [0,1]: impact of scrap flows from and to the vehicle life cycles
A6: Long & special steel | B6: 0.15 | C6: Flat carbon steel | D6: 0.3 | E6: WSA | F6: Flat carbon steel | G6: 0.9 | H6: on external scrap collection and recycling
A7: Cast iron and steel | B7: 0.1 | C7: Long & special steel | D7: 0.2 | E7: WSA | F7: Long & special steel | G7: 0.9 | H7: 1 = external scrap collection is completely inelastic (avoided burden)
A8: Flat AHSS | B8: 0 | C8: Cast iron | D8: 0 | E8: WSA | F8: Cast iron and steel | G8: 0.9 | H8: 0 = external recycling is completely inelastic (recycled content)
A9: Long & special AHSS | B9: 0 | C9: Rolled aluminum | D9: 0.1 | E9: WSA | F9: Flat AHSS | G9: 0.9
A10: Cast AHSS | B10: 0 | C10: Extruded aluminum | D10: 0.1 | E10: WSA | F10: Long & special AHSS | G10: 0.9
A11: Rolled aluminum | B11: 0.01 | C11: Cast aluminum | D11: 0.3 | E11: WSA | F11: Cast AHSS | G11: 0.9
A12: Extruded aluminum | B12: 0.01 | C12: Totals | D12: =SUM(D6:D11) -> 1 | F12: Rolled aluminum | G12: 0.9
A13: Cast aluminum | B13: 0.05 | D13: =IF(D12=1,"","Total must add up to 100%") ->  | F13: Extruded aluminum | G13: 0.9
A14: Rolled magnesium | B14: 0 | C14: Fraction of Mg by Pidgeon process | D14: 0.7 | F14: Cast aluminum | G14: 0.9
A15: Cast magnesium | B15: 0 | C15: Primary aluminum source | D15: Global | F15: Rolled magnesium | G15: 0.9
A16: SMC | B16: 0 | C16: Fraction of flat steel that is HRC | D16: 0.25 | E16: WSA | F16: Cast magnesium | G16: 0.9
A17: GFRP | B17: 0 | C17: Fraction of rubber compression molded | D17: 0.89 | E17: GREET 2 2023 | F17: SMC | G17: 0.9
A18: CFRP | B18: 0 | F18: GFRP | G18: 0.9
A19: Plastic | B19: 0.12 | D19: Tires | F19: CFRP | G19: 0.9
A20: Rubber (excluding tires) | B20: 0.03 | C20: Mass of 1 tire | D20: 15 | E20: kg | F20: Stainless steel | G20: 0.9
A21: Glass | B21: 0.03 | C21: Change interval | D21: 70000 | E21: km
A22: Copper | B22: 0.02 | C22: # of tire sets | D22: =CEILING('Data Input'!H11/D21,1) -> 3
A23: Stainless steel | B23: 0 | C23: % steel in tires | D23: =1/3 -> 0.3333333333 | E23: GREET 2 2023
A24: Other | B24: =1-SUM(B5:B23) -> 0.08
A25: TOTAL | B25: =SUM(B5:B24) -> 1
B27: Battery (for BEV and PHEV only)
A28: Energy density | B28: 0.177 | C28: KWh/kg (GREET 2 2023)
A29: Charging Efficiency | B29: 0.9
A30: Battery life | B30: 150000 | C30: km
A31: Number of batteries | B31: =CEILING('Data Input'!H11/B30,1) -> 2
B32: 0.5 | C32: % pyrometallurgically recycled
B34: For PHEV only
A35: Energy from electricity | B35: 0.5
B37: Liquid Fuel Densities
B38: MJ/liter
A39: Gasoline | B39: =42.5*0.75 -> 31.875 | C39: MJ/liter
A40: Bioethanol | B40: 21.1 | C40: MJ/liter
A41: Diesel | B41: =42.8*0.84 -> 35.952 | C41: MJ/liter
A42: Biodiesel | B42: 32.64 | C42: MJ/liter
E44: Blow Molding (HDPE) | G44: Compression Molding | I44: Extrusion (PVC) | K44: Injection Molding (HDPE) | M44: Injection Molding (PP)
A45: Polymer Production and Forming | D45: kgin/kgout | E45: 1.0003 | F45: 1.1554 | G45: 1 | H45: 0.9459 | I45: 1.0024 | J45: 1.0018 | K45: 1.0056 | L45: 1.0307 | M45: 1.1393
F46: Calendaring (PVC) | H46: Extrusion (HDPE) | J46: Extrusion (PP) | L46: Injection Molding (PVC)
B47: kg resin produced / kg plastic in vehicle | C47: w% content | D47: kgin/kgout
A48: ABS | B48: =D48*C48 -> 0.0814949216 | C48: 0.076 | D48: =IF(SUMPRODUCT($E$45:$M$45,E48:M48)=0,1,SUMPRODUCT($E$45:$M$45,E48:M48)) -> 1.0723016 | E48: 0 | F48: 0 | G48: 0.238 | H48: 0.175 | I48: 0 | J48: 0 | K48: 0 | L48: 0 | M48: 0.587
A49: EPDM | B49: =D49*C49 -> 0.0739591593 | C49: 0.071 | D49: 1.0416783 | E49: 0 | F49: 0 | G49: 0.319 | H49: 0.275 | I49: 0 | J49: 0 | K49: 0 | L49: 0 | M49: 0.406
A50: Liquid Epoxy | B50: =D50*C50 -> 0.107 | C50: 0.107 | D50: 1
A51: GPPS | B51: =D51*C51 -> 0.007 | C51: 0.007 | D51: 1
A52: HDPE | B52: =D53*C53 -> 0.007 | C52: 0.014 | D52: 0.99871975 | E52: 0 | F52: 0 | G52: 0.2425 | H52: 0.0925 | I52: 0 | J52: 0 | K52: 0.665 | L52: 0 | M52: 0
A53: HIPS | B53: =D52*C52 -> 0.0139820765 | C53: 0.007 | D53: 1
A54: LDPE | B54: =D54*C54 -> 0.0139820765 | C54: 0.014 | D54: 0.99871975 | E54: 0 | F54: 0 | G54: 0.2425 | H54: 0.0925 | I54: 0 | J54: 0 | K54: 0.665 | L54: 0 | M54: 0
A55: LLDPE | B55: 0.0139820765 | C55: 0.014 | D55: 0.99871975 | E55: 0 | F55: 0 | G55: 0.2425 | H55: 0.0925 | I55: 0 | J55: 0 | K55: 0.665 | L55: 0 | M55: 0
A56: Nylon 6 | B56: 0.0112800798 | C56: 0.011 | D56: 1.0254618 | E56: 0.364 | F56: 0 | G56: 0.454 | H56: 0 | I56: 0 | J56: 0 | K56: 0 | L56: 0 | M56: 0.182
A57: Nylon 66 | B57: 0.072358545 | C57: 0.07 | D57: 1.0336935 | E57: 0 | F57: 0 | G57: 0.343 | H57: 0.299 | I57: 0 | J57: 0 | K57: 0 | L57: 0 | M57: 0.358
A58: PC | B58: 0.03880289 | C58: 0.035 | D58: 1.108654 | E58: 0 | F58: 0 | G58: 0.22 | H58: 0 | I58: 0 | J58: 0 | K58: 0 | L58: 0 | M58: 0.78
A59: PET | B59: 0.01818405 | C59: 0.017 | D59: 1.06965 | E59: 0 | F59: 0 | G59: 0.5 | H59: 0 | I59: 0 | J59: 0 | K59: 0 | L59: 0 | M59: 0.5
A60: PP | B60: 0.1995606106 | C60: 0.181 | D60: 1.10254481 | E60: 0.092 | F60: 0 | G60: 0.1533 | H60: 0 | I60: 0 | J60: 0.019 | K60: 0 | L60: 0 | M60: 0.7357
A61: PUR Flexible Foam | B61: 0.122 | C61: 0.122 | D61: 1
A62: PUR Rigid Foam | B62: 0.116 | C62: 0.116 | D62: 1
A63: PVC | B63: 0.1432921482 | C63: 0.138 | D63: 1.0383489 | E63: 0 | F63: 0.181 | G63: 0.015 | H63: 0 | I63: 0.511 | J63: 0 | K63: 0 | L63: 0.293 | M63: 0
A64: Total | C64: =SUM(C48:C63) -> 1 | D64: =SUMPRODUCT(C48:C63,D48:D63) -> 1.039878634 | L64: kg formed/kg plastic in vehicle
G65: Source: GREET 2 2023 | K65: =E44 -> Blow Molding (HDPE) | L65: =SUMPRODUCT($C$48:$C$63,E48:E63) -> 0.020656
A66: Fluids of Chosen Vehicle Type and Size | D66: Change Interval | K66: =F46 -> Calendaring (PVC) | L66: =SUMPRODUCT($C$48:$C$63,F48:F63) -> 0.024978
B67: kg of fluids per vehicle | C67: # of replacements | D67: in km | K67: =G44 -> Compression Molding | L67: =SUMPRODUCT($C$48:$C$63,G48:G63) -> 0.1259433
A68: Engine Oil | B68: =INDIRECT(ADDRESS(77+7*$F$73,2+$F$70)) -> 0 | C68: =INDIRECT(ADDRESS(77+7*$F$73,7)) -> 33 | D68: 6000 | F68: Selected Parameters | K68: =H46 -> Extrusion (HDPE) | L68: =SUMPRODUCT($C$48:$C$63,H48:H63) -> 0.05764
A69: Brake Fluid | B69: =INDIRECT(ADDRESS(78+7*$F$73,2+$F$70)) -> 0.9 | C69: =INDIRECT(ADDRESS(78+7*$F$73,7)) -> 3 | D69: 60000 | F69: ICEV=0, HEV=1, FCV=2, PHEV=3, BEV=4 | K69: =I44 -> Extrusion (PVC) | L69: =SUMPRODUCT($C$48:$C$63,I48:I63) -> 0.070518
A70: Transmission Fluid | B70: =INDIRECT(ADDRESS(79+7*$F$73,2+$F$70)) -> 0.8 | C70: =INDIRECT(ADDRESS(79+7*$F$73,7)) -> 1 | F70: =IF('Data Input'!H4="ICEV-G",0,IF('Data Input'!H4="HEV",1,IF('Data Input'!H4="FCV",2,IF('Data Input'!H4="ICEV-D",0,IF('Data Input'!H4="BEV",4,3))))) -> 4 | K70: =J46 -> Extrusion (PP) | L70: =SUMPRODUCT($C$48:$C$63,J48:J63) -> 0.003439
A71: Powertrain Coolant | B71: =INDIRECT(ADDRESS(80+7*$F$73,2+$F$70)) -> 7.1 | C71: =INDIRECT(ADDRESS(80+7*$F$73,7)) -> 3 | D71: 60000 | K71: =K44 -> Injection Molding (HDPE) | L71: =SUMPRODUCT($C$48:$C$63,K48:K63) -> 0.02793
A72: Windshield Fluid | B72: =INDIRECT(ADDRESS(81+7*$F$73,2+$F$70)) -> 2.7 | C72: =INDIRECT(ADDRESS(81+7*$F$73,7)) -> 16 | D72: 12000 | F72: Compact / A=0,Midsize / C=1, SUV=2 | K72: =L46 -> Injection Molding (PVC) | L72: =SUMPRODUCT($C$48:$C$63,L48:L63) -> 0.040434
A73: Total | B73: =INDIRECT(ADDRESS(82+7*$F$73,2+$F$70)) -> 11.5 | F73: =IF(OR('Data Input'!H6="Compact",'Data Input'!H6="FSV A-Class"),0,IF('Data Input'!H6="SUV",2,IF(OR('Data Input'!H6="Mid-Size",'Data Input'!H6="FSV C-Class"),1,""))) -> 0 | K73: Injection Molding (PP) | L73: =SUMPRODUCT($C$48:$C$63,M48:M63) -> 0.2694617
A75: Fluids Compact | B75: ICEVs | C75: HEVs | D75: FCVs | E75: PHEVs | F75: EVs | G75: # of replacements
A76: in kg of fluids per vehicle
A77: Engine Oil | B77: 3.9 | C77: 3.9 | D77: 0 | E77: 3.9 | F77: 0 | G77: =CEILING('Data Input'!$H$11/'Expert Data Input'!D68,1)-1 -> 33
A78: Brake Fluid | B78: 0.9 | C78: 0.9 | D78: 0.9 | E78: 0.9 | F78: 0.9 | G78: =CEILING('Data Input'!$H$11/'Expert Data Input'!D69,1)-1 -> 3
A79: Transmission Fluid | B79: 10.9 | C79: 0.8 | D79: 0.8 | E79: 0.8 | F79: 0.8 | G79: 1
A80: Powertrain Coolant | B80: 10.4 | C80: 10.4 | D80: 7.1 | E80: 10.4 | F80: 7.1 | G80: =CEILING('Data Input'!$H$11/'Expert Data Input'!D71,1)-1 -> 3
A81: Windshield Fluid | B81: 2.7 | C81: 2.7 | D81: 2.7 | E81: 2.7 | F81: 2.7 | G81: =CEILING('Data Input'!$H$11/'Expert Data Input'!D72,1)-1 -> 16
A82: Total | B82: =SUM(B77:B81) -> 28.8 | C82: =SUM(C77:C81) -> 18.7 | D82: =SUM(D77:D81) -> 11.5 | E82: =SUM(E77:E81) -> 18.7 | F82: =SUM(F77:F81) -> 11.5
A83: Fluids Midsize
A84: Engine Oil | B84: 3.9 | C84: 3.9 | D84: 0 | E84: 3.9 | F84: 0 | G84: =CEILING('Data Input'!$H$11/'Expert Data Input'!D68,1)-1 -> 33
A85: Brake Fluid | B85: 0.9 | C85: 0.9 | D85: 0.9 | E85: 0.9 | F85: 0.9 | G85: =CEILING('Data Input'!$H$11/'Expert Data Input'!D69,1)-1 -> 3
A86: Transmission Fluid | B86: 10.9 | C86: 0.8 | D86: 0.8 | E86: 0.8 | F86: 0.8 | G86: 1
A87: Powertrain Coolant | B87: 10.4 | C87: 10.4 | D87: 7.1 | E87: 10.4 | F87: 7.1 | G87: =CEILING('Data Input'!$H$11/'Expert Data Input'!D71,1)-1 -> 3
A88: Windshield Fluid | B88: 2.7 | C88: 2.7 | D88: 2.7 | E88: 2.7 | F88: 2.7 | G88: =CEILING('Data Input'!$H$11/'Expert Data Input'!D72,1)-1 -> 16
A89: Total | B89: =SUM(B84:B88) -> 28.8 | C89: =SUM(C84:C88) -> 18.7 | D89: =SUM(D84:D88) -> 11.5 | E89: =SUM(E84:E88) -> 18.7 | F89: =SUM(F84:F88) -> 11.5
A90: Fluids SUV
A91: Engine Oil | B91: 4.9 | C91: 4.9 | D91: 0 | E91: 4.9 | F91: 0 | G91: =CEILING('Data Input'!$H$11/'Expert Data Input'!D68,1)-1 -> 33
A92: Brake Fluid | B92: 0.9 | C92: 0.9 | D92: 0.9 | E92: 0.9 | F92: 0.9 | G92: =CEILING('Data Input'!$H$11/'Expert Data Input'!D69,1)-1 -> 3
A93: Transmission Fluid | B93: 14.3 | C93: 1.1 | D93: 1.1 | E93: 1.1 | F93: 1.1 | G93: 1
A94: Powertrain Coolant | B94: 13.2 | C94: 13.2 | D94: 9.1 | E94: 13.2 | F94: 9.1 | G94: =CEILING('Data Input'!$H$11/'Expert Data Input'!D71,1)-1 -> 3
A95: Windshield Fluid | B95: 4.8 | C95: 4.8 | D95: 4.8 | E95: 4.8 | F95: 4.8 | G95: =CEILING('Data Input'!$H$11/'Expert Data Input'!D72,1)-1 -> 16
A96: Total | B96: =SUM(B91:B95) -> 38.1 | C96: =SUM(C91:C95) -> 24.9 | D96: =SUM(D91:D95) -> 15.9 | E96: =SUM(E91:E95) -> 24.9 | F96: =SUM(F91:F95) -> 15.9
G97: Source: GREET 2 2023

Sheet Saved Scenarios
B1: Scenario 1 | H1: Scenario 2 | N1: Scenario 3
B16: Scenario 1 | H16: Scenario 2 | N16: Scenario 3
B17: Production | C17: Use | D17: End of Life | E17: Total | H17: Production | I17: Use | J17: End of Life | K17: Total | N17: Production | O17: Use | P17: End of Life | Q17: Total
A18: Baseline | B18: 7684.004116 | C18: 11738.4023 | D18: -2306.115644 | E18: 17116.29077 | H18: 7684.004116 | I18: 17827.48706 | J18: -2306.115644 | K18: 23205.37553 | N18: 6775.892183 | O18: 33205.76709 | P18: -1614.153922 | Q18: 38367.50535
A19: Contender 1 | B19: 7127.947367 | C19: 11082.34219 | D19: -2039.63274 | E19: 16170.65681 | H19: 7127.947367 | I19: 16831.10758 | J19: -2039.63274 | K19: 21919.42221 | N19: 6275.835895 | O19: 31709.02646 | P19: -1377.874635 | Q19: 36606.98772
A20: Contender 2 | B20: 9645.426326 | C20: 10872.40295 | D20: -3545.670651 | E20: 16972.15862 | H20: 9645.426326 | I20: 16512.26615 | J20: -3545.670651 | K20: 22612.02183 | N20: 8650.598711 | O20: 31230.06946 | P20: -2670.619849 | Q20: 37210.04832
A22: Material Replacement Coefficients (to mild steel)
C23: C 1 | D23: C 2 | I23: C 1 | J23: C 2 | O23: C 1 | P23: C 2
A24: AHSS (ULSAB-AVC) ks | C24: 0.75 | D24: 0.75 | E24: kg / kg | I24: 0.75 | J24: 0.75 | K24: kg / kg | O24: 0.75 | P24: 0.75 | Q24: kg / kg
A25: Aluminum ka | C25: 0.67 | D25: 0.67 | E25: kg / kg | I25: 0.67 | J25: 0.67 | K25: kg / kg | O25: 0.67 | P25: 0.67 | Q25: kg / kg
A26: Fiber Reinforced Composite kc | C26: 0.55 | D26: 0.55 | E26: kg / kg | I26: 0.55 | J26: 0.55 | K26: kg / kg | O26: 0.55 | P26: 0.55 | Q26: kg / kg
A27: Magnesium km | C27: 0.5 | D27: 0.5 | E27: kg / kg | I27: 0.5 | J27: 0.5 | K27: kg / kg | O27: 0.5 | P27: 0.5 | Q27: kg / kg
A29: Secondary mass savings | C29: 0.3 | D29: of Primary Mass Savings | I29: 0.3 | J29: of Primary Mass Savings | O29: 0.3 | P29: of Primary Mass Savings
A31: Lifetime driving distance | C31: 200000 | D31: km | I31: 200000 | J31: km | O31: 200000 | P31: km
C33: α | I33: α | O33: α
A34: Flat carbon steel | C34: 0.1 | I34: 0.1 | O34: 0.1
A35: Long & special steel | C35: 0.1 | I35: 0.1 | O35: 0.1
A36: Cast iron and steel | C36: 0.1 | I36: 0.1 | O36: 0.1
A37: Stainless steel | C37: 0.1 | I37: 0.1 | O37: 0.1
A38: Flat AHSS | C38: 0.1 | I38: 0.1 | O38: 0.1
A39: Long & special AHSS | C39: 0.1 | I39: 0.1 | O39: 0.1
A40: Cast AHSS | C40: 0.1 | I40: 0.1 | O40: 0.1
A41: Rolled aluminum | C41: 0.1 | I41: 0.1 | O41: 0.1
A42: Extruded aluminum | C42: 0.1 | I42: 0.1 | O42: 0.1
A43: Cast aluminum | C43: 0.1 | I43: 0.1 | O43: 0.1
A44: Rolled magnesium | C44: 0.1 | I44: 0.1 | O44: 0.1
A45: Cast magnesium | C45: 0.1 | I45: 0.1 | O45: 0.1
A46: SMC | C46: 0.1 | I46: 0.1 | O46: 0.1
A47: GFRP | C47: 0.1 | I47: 0.1 | O47: 0.1
A48: CFRP | C48: 0.1 | I48: 0.1 | O48: 0.1
C50: in kg | D50: in kg | E50: in kg | I50: in kg | J50: in kg | K50: in kg | O50: in kg | P50: in kg | Q50: in kg
A51: Flat carbon steel | C51: 660.48 | D51: 291.48 | E51: 288.6 | I51: 660.48 | J51: 291.48 | K51: 288.6 | O51: 468.48 | P51: 136.38 | Q51: 133.788
A52: Long & special steel | C52: 247.68 | D52: 201.68 | E52: 199.76 | I52: 247.68 | J52: 201.68 | K52: 199.76 | O52: 175.68 | P52: 134.28 | Q52: 132.552
A53: Cast iron and steel | C53: 165.12 | D53: 165.12 | E53: 165.12 | I53: 165.12 | J53: 165.12 | K53: 165.12 | O53: 117.12 | P53: 117.12 | Q53: 117.12
A54: Stainless steel | C54: 0 | D54: 0 | E54: 0 | I54: 0 | J54: 0 | K54: 0 | O54: 0 | P54: 0 | Q54: 0
A55: Flat AHSS | C55: 0 | D55: 270 | E55: 0 | I55: 0 | J55: 270 | K55: 0 | O55: 0 | P55: 243 | Q55: 0
A56: Long & special AHSS | C56: 0 | D56: 30 | E56: 0 | I56: 0 | J56: 30 | K56: 0 | O56: 0 | P56: 27 | Q56: 0
A57: Cast AHSS | C57: 0 | D57: 0 | E57: 0 | I57: 0 | J57: 0 | K57: 0 | O57: 0 | P57: 0 | Q57: 0
A58: Rolled aluminum | C58: 16.512 | D58: 13.512 | E58: 200.152 | I58: 16.512 | J58: 13.512 | K58: 200.152 | O58: 11.712 | P58: 9.012 | Q58: 176.988
A59: Extruded aluminum | C59: 16.512 | D59: 13.512 | E59: 92.952 | I59: 16.512 | J59: 13.512 | K59: 92.952 | O59: 11.712 | P59: 9.012 | Q59: 80.508
A60: Cast aluminum | C60: 82.56 | D60: 73.56 | E60: 70.68 | I60: 82.56 | J60: 73.56 | K60: 70.68 | O60: 58.56 | P60: 50.46 | Q60: 47.868
A61: Rolled magnesium | C61: 0 | D61: 0 | E61: 0 | I61: 0 | J61: 0 | K61: 0 | O61: 0 | P61: 0 | Q61: 0
A62: Cast magnesium | C62: 0 | D62: 0 | E62: 0 | I62: 0 | J62: 0 | K62: 0 | O62: 0 | P62: 0 | Q62: 0
A63: SMC | C63: 0 | D63: 0 | E63: 0 | I63: 0 | J63: 0 | K63: 0 | O63: 0 | P63: 0 | Q63: 0
A64: GFRP | C64: 0 | D64: 0 | E64: 0 | I64: 0 | J64: 0 | K64: 0 | O64: 0 | P64: 0 | Q64: 0
A65: CFRP | C65: 0 | D65: 0 | E65: 0 | I65: 0 | J65: 0 | K65: 0 | O65: 0 | P65: 0 | Q65: 0
A66: Plastic | C66: 198.144 | D66: 198.144 | E66: 198.144 | I66: 198.144 | J66: 198.144 | K66: 198.144 | O66: 140.544 | P66: 140.544 | Q66: 140.544
A67: Rubber | C67: 49.536 | D67: 49.536 | E67: 49.536 | I67: 49.536 | J67: 49.536 | K67: 49.536 | O67: 35.136 | P67: 35.136 | Q67: 35.136
A68: Glass | C68: 49.536 | D68: 49.536 | E68: 49.536 | I68: 49.536 | J68: 49.536 | K68: 49.536 | O68: 35.136 | P68: 35.136 | Q68: 35.136
A69: Copper | C69: 33.024 | D69: 33.024 | E69: 33.024 | I69: 33.024 | J69: 33.024 | K69: 33.024 | O69: 23.424 | P69: 23.424 | Q69: 23.424
A70: Other | C70: 132.096 | D70: 132.096 | E70: 132.096 | I70: 132.096 | J70: 132.096 | K70: 132.096 | O70: 93.696 | P70: 93.696 | Q70: 93.696
A71: Battery | C71: 0 | D71: 0 | E71: 0 | I71: 0 | J71: 0 | K71: 0 | O71: 0 | P71: 0 | Q71: 0
A72: Fuel cell | C72: 0 | D72: 0 | E72: 0 | I72: 0 | J72: 0 | K72: 0 | O72: 0 | P72: 0 | Q72: 0
A73: Fluids | C73: 28.8 | D73: 28.8 | E73: 28.8 | I73: 28.8 | J73: 28.8 | K73: 28.8 | O73: 28.8 | P73: 28.8 | Q73: 28.8
A74: Tires | C74: 60 | D74: 60 | E74: 60 | I74: 60 | J74: 60 | K74: 60 | O74: 60 | P74: 60 | Q74: 60
A75: Total | C75: 1740 | D75: 1610 | E75: 1568.4 | I75: 1740 | J75: 1610 | K75: 1568.4 | O75: 1260 | P75: 1143 | Q75: 1105.56
A80: Scenario
B81: Production | C81: Use | D81: End of Life | E81: Total
A82: Baseline | B82: =Results!B25 -> 8890.659807 | C82: =Results!C25 -> 12375.22974 | D82: =Results!D25 -> -3201.520872 | E82: =Results!E25 -> 18064.36868
A83: Contender 1 | B83: =Results!B26 -> 7986.857744 | C83: =Results!C26 -> 11703.21978 | D83: =Results!D26 -> -2776.411536 | E83: =Results!E26 -> 16913.66599
A84: Contender 2 | B84: =Results!B27 -> 10894.38433 | C84: =Results!C27 -> 11488.1766 | D84: =Results!D27 -> -4539.348243 | E84: =Results!E27 -> 17843.21268
A86: Material Replacement Coefficients (to mild steel)
C87: C 1 | D87: C 2
A88: AHSS (ULSAB-AVC) ks | C88: =IF('Data Input'!F17="Yes","-----n/a-----",KSc) -> 0.75 | D88: =IF('Data Input'!F17="Yes","-----n/a-----",'Data Input'!M18) -> 0.75 | E88: kg / kg
A89: Aluminum ka | C89: =IF('Data Input'!F17="Yes","-----n/a-----",KAc) -> 0.67 | D89: =IF('Data Input'!F17="Yes","-----n/a-----",'Data Input'!M19) -> 0.67 | E89: kg / kg
A90: Fiber Reinforced Composite kc | C90: =IF('Data Input'!F17="Yes","-----n/a-----",KCc) -> 0.55 | D90: =IF('Data Input'!F17="Yes","-----n/a-----",'Data Input'!M20) -> 0.55 | E90: kg / kg
A91: Magnesium km | C91: =IF('Data Input'!F17="Yes","-----n/a-----",KMc) -> 0.5 | D91: =IF('Data Input'!F17="Yes","-----n/a-----",'Data Input'!M21) -> 0.5 | E91: kg / kg
A93: Secondary mass savings | C93: =IF('Data Input'!F17="Yes","-----n/a-----",Sc) -> 0.3 | D93: of Primary Mass Savings
A95: Lifetime driving distance | C95: ='Data Input'!H11 -> 200000 | D95: km
C97: α
A98: Flat carbon steel | C98: ='Expert Data Input'!G6 -> 0.9
A99: Long & special steel | C99: ='Expert Data Input'!G7 -> 0.9
A100: Cast iron and steel | C100: ='Expert Data Input'!G8 -> 0.9
A101: Flat AHSS | C101: ='Expert Data Input'!G9 -> 0.9
A102: Long & special AHSS | C102: ='Expert Data Input'!G10 -> 0.9
A103: Cast AHSS | C103: ='Expert Data Input'!G11 -> 0.9
A104: Rolled aluminum | C104: ='Expert Data Input'!G12 -> 0.9
A105: Extruded aluminum | C105: ='Expert Data Input'!G13 -> 0.9
A106: Cast aluminum | C106: ='Expert Data Input'!G14 -> 0.9
A107: Rolled magnesium | C107: ='Expert Data Input'!G15 -> 0.9
A108: Cast magnesium | C108: ='Expert Data Input'!G16 -> 0.9
A109: SMC | C109: ='Expert Data Input'!G17 -> 0.9
A110: GFRP | C110: ='Expert Data Input'!G18 -> 0.9
A111: CFRP | C111: ='Expert Data Input'!G19 -> 0.9
A112: Stainless steel | C112: ='Expert Data Input'!G20 -> 0.9
C114: in kg | D114: in kg | E114: in kg
A115: Flat carbon steel | C115: ='Material Flows'!F5 -> 325.8292756 | D115: ='Material Flows'!J5 -> 66.86588744 | E115: ='Material Flows'!N5 -> 64.84470978
A116: Long & special steel | C116: ='Material Flows'!F6 -> 122.1859784 | D116: ='Material Flows'!J6 -> 89.90327957 | E116: ='Material Flows'!N6 -> 88.55582779
A117: Cast iron and steel | C117: ='Material Flows'!F7 -> 81.45731891 | D117: ='Material Flows'!J7 -> 81.45731891 | E117: ='Material Flows'!N7 -> 81.45731891
A118: Stainless steel | C118: ='Material Flows'!F23 -> 0 | D118: ='Material Flows'!J23 -> 0 | E118: ='Material Flows'!N23 -> 0
A119: Flat AHSS | C119: ='Material Flows'!F8 -> 0 | D119: ='Material Flows'!J8 -> 189.485406 | E119: ='Material Flows'!N8 -> 0
A120: Long & special AHSS | C120: ='Material Flows'!F9 -> 0 | D120: ='Material Flows'!J9 -> 21.053934 | E120: ='Material Flows'!N9 -> 0
A121: Cast AHSS | C121: ='Material Flows'!F10 -> 0 | D121: ='Material Flows'!J10 -> 0 | E121: ='Material Flows'!N10 -> 0
A122: Rolled aluminum | C122: ='Material Flows'!F11 -> 8.145731891 | D122: ='Material Flows'!J11 -> 6.040338491 | E122: ='Material Flows'!N11 -> 137.0238799
A123: Extruded aluminum | C123: ='Material Flows'!F12 -> 8.145731891 | D123: ='Material Flows'!J12 -> 6.040338491 | E123: ='Material Flows'!N12 -> 61.79115572
A124: Cast aluminum | C124: ='Material Flows'!F13 -> 40.72865946 | D124: ='Material Flows'!J13 -> 34.41247926 | E124: ='Material Flows'!N13 -> 32.39130159
A125: Rolled magnesium | C125: ='Material Flows'!F14 -> 0 | D125: ='Material Flows'!J14 -> 0 | E125: ='Material Flows'!N14 -> 0
A126: Cast magnesium | C126: ='Material Flows'!F15 -> 0 | D126: ='Material Flows'!J15 -> 0 | E126: ='Material Flows'!N15 -> 0
A127: SMC | C127: ='Material Flows'!F16 -> 0 | D127: ='Material Flows'!J16 -> 0 | E127: ='Material Flows'!N16 -> 0
A128: GFRP | C128: ='Material Flows'!F17 -> 0 | D128: ='Material Flows'!J17 -> 0 | E128: ='Material Flows'!N17 -> 0
A129: CFRP | C129: ='Material Flows'!F18 -> 0 | D129: ='Material Flows'!J18 -> 0 | E129: ='Material Flows'!N18 -> 0
A130: Plastic | C130: ='Material Flows'!F19 -> 97.74878269 | D130: ='Material Flows'!J19 -> 97.74878269 | E130: ='Material Flows'!N19 -> 97.74878269
A131: Rubber | C131: ='Material Flows'!F20 -> 24.43719567 | D131: ='Material Flows'!J20 -> 24.43719567 | E131: ='Material Flows'!N20 -> 24.43719567
A132: Glass | C132: ='Material Flows'!F21 -> 24.43719567 | D132: ='Material Flows'!J21 -> 24.43719567 | E132: ='Material Flows'!N21 -> 24.43719567
A133: Copper | C133: ='Material Flows'!F22 -> 16.29146378 | D133: ='Material Flows'!J22 -> 16.29146378 | E133: ='Material Flows'!N22 -> 16.29146378
A134: Other | C134: ='Material Flows'!F24 -> 65.16585513 | D134: ='Material Flows'!J24 -> 65.16585513 | E134: ='Material Flows'!N24 -> 65.16585513
A135: Battery | C135: ='Material Flows'!F25 -> 177.2568109 | D135: ='Material Flows'!J25 -> 159.0057258 | E135: ='Material Flows'!N25 -> 153.1653785
A136: Fuel cell | C136: ='Material Flows'!F26 -> 0 | D136: ='Material Flows'!J26 -> 0 | E136: ='Material Flows'!N26 -> 0
A137: Fluids | C137: ='Material Flows'!F27 -> 11.5 | D137: ='Material Flows'!J27 -> 11.5 | E137: ='Material Flows'!N27 -> 11.5
A138: Tires | C138: ='Material Flows'!F28 -> 60 | D138: ='Material Flows'!J28 -> 60 | E138: ='Material Flows'!N28 -> 60
A139: Total | C139: ='Material Flows'!F29 -> 1063.33 | D139: ='Material Flows'!J29 -> 953.8452009 | E139: ='Material Flows'!N29 -> 918.8100652

Sheet Material Flows
D1: Baseline Vehicle | H1: Contender Vehicle 1 | L1: Contender Vehicle 2
B3: All in kg | D3: Shipped Material | F3: Vehicle | H3: Shipped Material | J3: Vehicle | L3: Shipped Material | N3: Vehicle
C4: Primary | D4: Seconday | E4: Total | F4: Composition | G4: Primary | H4: Seconday | I4: Total | J4: Composition | K4: Primary | L4: Seconday | M4: Total | N4: Composition
B5: Flat carbon steel | C5: =E5*(1-C38) -> 562.7960216 | D5: =E5*C38 -> 29.62084324 | E5: =$F5/($E38) -> 592.4168648 | F5: =IF('Data Input'!$F$17="No",'Data Input'!S19,'BOM Entry'!C4) -> 325.8292756 | G5: =I5*(1-C38) -> 115.4956238 | H5: =I5*C38 -> 6.07871704 | I5: =$J5/(F38) -> 121.5743408 | J5: =IF('Data Input'!$F$17="No",'Data Input'!V19,'BOM Entry'!F4) -> 66.86588744 | K5: =M5*(1-C38) -> 112.0044987 | L5: =M5*C38 -> 5.894973616 | M5: =$N5/($G38) -> 117.8994723 | N5: =IF('Data Input'!$F$17="No",'Data Input'!Y19,'BOM Entry'!I4) -> 64.84470978
B6: Long & special steel | C6: 24.43719567 | D6: 138.4774421 | E6: 162.9146378 | F6: =IF('Data Input'!$F$17="No",'Data Input'!S20,'BOM Entry'!C5) -> 122.1859784 | G6: 17.98065591 | H6: 101.8903835 | I6: 119.8710394 | J6: =IF('Data Input'!$F$17="No",'Data Input'!V20,'BOM Entry'!F5) -> 89.90327957 | K6: 17.71116556 | L6: 100.3632715 | M6: 118.0744371 | N6: =IF('Data Input'!$F$17="No",'Data Input'!Y20,'BOM Entry'!I5) -> 88.55582779
B7: Cast iron and steel | C7: 0 | D7: 101.8216486 | E7: 101.8216486 | F7: =IF('Data Input'!$F$17="No",'Data Input'!S21,'BOM Entry'!C6) -> 81.45731891 | G7: 0 | H7: 101.8216486 | I7: 101.8216486 | J7: =IF('Data Input'!$F$17="No",'Data Input'!V21,'BOM Entry'!F6) -> 81.45731891 | K7: 0 | L7: 101.8216486 | M7: 101.8216486 | N7: =IF('Data Input'!$F$17="No",'Data Input'!Y21,'BOM Entry'!I6) -> 81.45731891
B8: Flat AHSS | C8: 0 | D8: 0 | E8: 0 | F8: =IF('Data Input'!$F$17="No",'Data Input'!S22,'BOM Entry'!C7) -> 0 | G8: 327.292974 | H8: 17.225946 | I8: 344.51892 | J8: =IF('Data Input'!$F$17="No",'Data Input'!V22,'BOM Entry'!F7) -> 189.485406 | K8: 0 | L8: 0 | M8: 0 | N8: =IF('Data Input'!$F$17="No",'Data Input'!Y22,'BOM Entry'!I7) -> 0
B9: Long & special AHSS | C9: 0 | D9: 0 | E9: 0 | F9: =IF('Data Input'!$F$17="No",'Data Input'!S23,'BOM Entry'!C8) -> 0 | G9: 4.2107868 | H9: 23.8611252 | I9: 28.071912 | J9: =IF('Data Input'!$F$17="No",'Data Input'!V23,'BOM Entry'!F8) -> 21.053934 | K9: 0 | L9: 0 | M9: 0 | N9: =IF('Data Input'!$F$17="No",'Data Input'!Y23,'BOM Entry'!I8) -> 0
B10: Cast AHSS | C10: 0 | D10: 0 | E10: 0 | F10: =IF('Data Input'!$F$17="No",'Data Input'!S24,'BOM Entry'!C9) -> 0 | G10: 0 | H10: 0 | I10: 0 | J10: =IF('Data Input'!$F$17="No",'Data Input'!V24,'BOM Entry'!F9) -> 0 | K10: 0 | L10: 0 | M10: 0 | N10: =IF('Data Input'!$F$17="No",'Data Input'!Y24,'BOM Entry'!I9) -> 0
B11: Rolled aluminum | C11: 15.66486902 | D11: 0 | E11: 15.66486902 | F11: =IF('Data Input'!$F$17="No",'Data Input'!S25,'BOM Entry'!C10) -> 8.145731891 | G11: 11.61603556 | H11: 0 | I11: 11.61603556 | J11: =IF('Data Input'!$F$17="No",'Data Input'!V25,'BOM Entry'!F10) -> 6.040338491 | K11: 263.5074613 | L11: 0 | M11: 263.5074613 | N11: =IF('Data Input'!$F$17="No",'Data Input'!Y25,'BOM Entry'!I10) -> 137.0238799
B12: Extruded aluminum | C12: 10.18216486 | D12: 0 | E12: 10.18216486 | F12: =IF('Data Input'!$F$17="No",'Data Input'!S26,'BOM Entry'!C11) -> 8.145731891 | G12: 7.550423114 | H12: 0 | I12: 7.550423114 | J12: =IF('Data Input'!$F$17="No",'Data Input'!V26,'BOM Entry'!F11) -> 6.040338491 | K12: 77.23894465 | L12: 0 | M12: 77.23894465 | N12: =IF('Data Input'!$F$17="No",'Data Input'!Y26,'BOM Entry'!I11) -> 61.79115572
B13: Cast aluminum | C13: 7.636623648 | D13: 43.27420067 | E13: 50.91082432 | F13: =IF('Data Input'!$F$17="No",'Data Input'!S27,'BOM Entry'!C12) -> 40.72865946 | G13: 6.45233986 | H13: 36.56325921 | I13: 43.01559907 | J13: =IF('Data Input'!$F$17="No",'Data Input'!V27,'BOM Entry'!F12) -> 34.41247926 | K13: 6.073369048 | L13: 34.41575794 | M13: 40.48912699 | N13: =IF('Data Input'!$F$17="No",'Data Input'!Y27,'BOM Entry'!I12) -> 32.39130159
B14: Rolled magnesium | C14: 0 | D14: 0 | E14: 0 | F14: =IF('Data Input'!$F$17="No",'Data Input'!S28,'BOM Entry'!C13) -> 0 | G14: 0 | H14: 0 | I14: 0 | J14: =IF('Data Input'!$F$17="No",'Data Input'!V28,'BOM Entry'!F13) -> 0 | K14: 0 | L14: 0 | M14: 0 | N14: =IF('Data Input'!$F$17="No",'Data Input'!Y28,'BOM Entry'!I13) -> 0
B15: Cast magnesium | C15: 0 | D15: 0 | E15: 0 | F15: =IF('Data Input'!$F$17="No",'Data Input'!S29,'BOM Entry'!C14) -> 0 | G15: 0 | H15: 0 | I15: 0 | J15: =IF('Data Input'!$F$17="No",'Data Input'!V29,'BOM Entry'!F14) -> 0 | K15: 0 | L15: 0 | M15: 0 | N15: =IF('Data Input'!$F$17="No",'Data Input'!Y29,'BOM Entry'!I14) -> 0
B16: SMC | C16: 0 | D16: 0 | E16: 0 | F16: =IF('Data Input'!$F$17="No",'Data Input'!S30,'BOM Entry'!C15) -> 0 | G16: 0 | H16: 0 | I16: 0 | J16: =IF('Data Input'!$F$17="No",'Data Input'!V30,'BOM Entry'!F15) -> 0 | K16: 0 | L16: 0 | M16: 0 | N16: =IF('Data Input'!$F$17="No",'Data Input'!Y30,'BOM Entry'!I15) -> 0
B17: GFRP | C17: 0 | D17: 0 | E17: 0 | F17: =IF('Data Input'!$F$17="No",'Data Input'!S31,'BOM Entry'!C16) -> 0 | G17: 0 | H17: 0 | I17: 0 | J17: =IF('Data Input'!$F$17="No",'Data Input'!V31,'BOM Entry'!F16) -> 0 | K17: 0 | L17: 0 | M17: 0 | N17: =IF('Data Input'!$F$17="No",'Data Input'!Y31,'BOM Entry'!I16) -> 0
B18: CFRP | C18: 0 | D18: 0 | E18: 0 | F18: =IF('Data Input'!$F$17="No",'Data Input'!S32,'BOM Entry'!C17) -> 0 | G18: 0 | H18: 0 | I18: 0 | J18: =IF('Data Input'!$F$17="No",'Data Input'!V32,'BOM Entry'!F17) -> 0 | K18: 0 | L18: 0 | M18: 0 | N18: =IF('Data Input'!$F$17="No",'Data Input'!Y32,'BOM Entry'!I17) -> 0
B19: Plastic | C19: 101.6468706 | D19: 0 | E19: =$F19/($E52) -> 101.6468706 | F19: =IF('Data Input'!$F$17="No",'Data Input'!S33,'BOM Entry'!C18) -> 97.74878269 | G19: 101.6468706 | H19: 0 | I19: 101.6468706 | J19: =IF('Data Input'!$F$17="No",'Data Input'!V33,'BOM Entry'!F18) -> 97.74878269 | K19: 101.6468706 | L19: 0 | M19: 101.6468706 | N19: =IF('Data Input'!$F$17="No",'Data Input'!Y33,'BOM Entry'!I18) -> 97.74878269
B20: Rubber | C20: 24.43719567 | D20: 0 | E20: 24.43719567 | F20: =IF('Data Input'!$F$17="No",'Data Input'!S34,'BOM Entry'!C19) -> 24.43719567 | G20: 24.43719567 | H20: 0 | I20: 24.43719567 | J20: =IF('Data Input'!$F$17="No",'Data Input'!V34,'BOM Entry'!F19) -> 24.43719567 | K20: 24.43719567 | L20: 0 | M20: 24.43719567 | N20: =IF('Data Input'!$F$17="No",'Data Input'!Y34,'BOM Entry'!I19) -> 24.43719567
B21: Glass | C21: 24.43719567 | D21: 0 | E21: 24.43719567 | F21: =IF('Data Input'!$F$17="No",'Data Input'!S35,'BOM Entry'!C20) -> 24.43719567 | G21: 24.43719567 | H21: 0 | I21: 24.43719567 | J21: =IF('Data Input'!$F$17="No",'Data Input'!V35,'BOM Entry'!F20) -> 24.43719567 | K21: 24.43719567 | L21: 0 | M21: 24.43719567 | N21: =IF('Data Input'!$F$17="No",'Data Input'!Y35,'BOM Entry'!I20) -> 24.43719567
B22: Copper | C22: 16.29146378 | D22: 0 | E22: 16.29146378 | F22: =IF('Data Input'!$F$17="No",'Data Input'!S36,'BOM Entry'!C21) -> 16.29146378 | G22: 16.29146378 | H22: 0 | I22: 16.29146378 | J22: =IF('Data Input'!$F$17="No",'Data Input'!V36,'BOM Entry'!F21) -> 16.29146378 | K22: 16.29146378 | L22: 0 | M22: 16.29146378 | N22: =IF('Data Input'!$F$17="No",'Data Input'!Y36,'BOM Entry'!I21) -> 16.29146378
B23: Stainless steel | C23: 0 | D23: 0 | E23: 0 | F23: =IF('Data Input'!$F$17="No",'Data Input'!S37,'BOM Entry'!C22) -> 0 | G23: 0 | H23: 0 | I23: 0 | J23: =IF('Data Input'!$F$17="No",'Data Input'!V37,'BOM Entry'!F22) -> 0 | K23: 0 | L23: 0 | M23: 0 | N23: =IF('Data Input'!$F$17="No",'Data Input'!Y37,'BOM Entry'!I22) -> 0
B24: Other | C24: 65.16585513 | D24: 0 | E24: 65.16585513 | F24: =IF('Data Input'!$F$17="No",'Data Input'!S38,'BOM Entry'!C23) -> 65.16585513 | G24: 65.16585513 | H24: 0 | I24: 65.16585513 | J24: =IF('Data Input'!$F$17="No",'Data Input'!V38,'BOM Entry'!F23) -> 65.16585513 | K24: 65.16585513 | L24: 0 | M24: 65.16585513 | N24: =IF('Data Input'!$F$17="No",'Data Input'!Y38,'BOM Entry'!I23) -> 65.16585513
B25: Battery | C25: 354.5136218 | D25: 0 | E25: 354.5136218 | F25: =IF('Data Input'!$F$17="No",'Data Input'!S40,'BOM Entry'!C25) -> 177.2568109 | G25: 318.0114516 | H25: 0 | I25: 318.0114516 | J25: =IF('Data Input'!$F$17="No",'Data Input'!V40,'BOM Entry'!F25) -> 159.0057258 | K25: 306.3307571 | L25: 0 | M25: 306.3307571 | N25: =IF('Data Input'!$F$17="No",'Data Input'!Y40,'BOM Entry'!I25) -> 153.1653785
B26: Fuel cell | C26: 0 | D26: 0 | E26: 0 | F26: =IF('Data Input'!$F$17="No",'Data Input'!S41,'BOM Entry'!C26) -> 0 | G26: 0 | H26: 0 | I26: 0 | J26: =IF('Data Input'!$F$17="No",'Data Input'!V41,'BOM Entry'!F26) -> 0 | K26: 0 | L26: 0 | M26: 0 | N26: =IF('Data Input'!$F$17="No",'Data Input'!Y41,'BOM Entry'!I26) -> 0
B27: Fluids | C27: 11.5 | D27: 0 | E27: 11.5 | F27: =IF('Data Input'!$F$17="No",'Data Input'!S42,'BOM Entry'!C27) -> 11.5 | G27: 11.5 | H27: 0 | I27: 11.5 | J27: =IF('Data Input'!$F$17="No",'Data Input'!V42,'BOM Entry'!F27) -> 11.5 | K27: 11.5 | L27: 0 | M27: 11.5 | N27: =IF('Data Input'!$F$17="No",'Data Input'!Y42,'BOM Entry'!I27) -> 11.5
B28: Tires | C28: 180 | D28: 0 | E28: =$F28/($E61) -> 180 | F28: =IF('Data Input'!$F$17="No",'Data Input'!S43,'BOM Entry'!C28) -> 60 | G28: 180 | H28: 0 | I28: =$J28/(F61) -> 180 | J28: =IF('Data Input'!$F$17="No",'Data Input'!V43,'BOM Entry'!F28) -> 60 | K28: 180 | L28: 0 | M28: =$N28/($G61) -> 180 | N28: =IF('Data Input'!$F$17="No",'Data Input'!Y43,'BOM Entry'!I28) -> 60
B29: Total | C29: =SUM(C5:C28) -> 1398.709077 | D29: 313.1941347 | E29: =SUM(E5:E28) -> 1711.903212 | F29: =SUM(F5:F28) -> 1063.33 | G29: =SUM(G5:G28) -> 1232.088871 | H29: 287.4410796 | I29: =SUM(I5:I28) -> 1519.529951 | J29: =SUM(J5:J28) -> 953.8452009 | K29: =SUM(K5:K28) -> 1206.344777 | L29: 242.4956517 | M29: =SUM(M5:M28) -> 1448.840429 | N29: =SUM(N5:N28) -> 918.8100652
B31: Material Flow Parameters
P32: Total material
C33: Material Production | F33: Forming yields | I33: Prompt scrap | L33: End-of-life scrap | P33: recycling rate rcar
C34: Material from | D34: Scrap input | O34: Baseline | P34: Contender | Q34: Contender
C35: secondary | D35: to primary | E35: Baseline Vehicle | F35: Contender | G35: Contender | H35: Collection | I35: Material Recovery | J35: Recycling | K35: Collection | L35: Shredder Recovery | M35: Material | N35: Recycling | O35: Vehicle | P35: Vehicle 1 | Q35: Vehicle 2
C36: production rcont | D36: production sp | E36: Vehicle | F36: Vehicle 1 | G36: Vehicle 2 | I36: Recovery | J36: Rate | M36: Recovery | N36: Rate | P36: in % of unfinished material (column E)
C37: in % | D37: in kg scrap/kg out | E37: in % | F37: in % | G37: in % | H37: in % | I37: in % | J37: in % | K37: in % | L37: in % | M37: in % | N37: in %
B38: Flat carbon steel | C38: 0.05 | D38: 0.119 | E38: 0.55 | F38: 0.55 | G38: 0.55 | H38: 0.99 | I38: 0.98 | J38: =H38*I38 -> 0.9702 | K38: 0.97 | L38: 0.98 | M38: 0.95 | N38: =K38*L38*M38 -> 0.90307 | O38: =(1-E38)*$J38+E38*$N38 -> 0.9332785 | P38: =(1-F38)*$J38+F38*$N38 -> 0.9332785 | Q38: =(1-G38)*$J38+G38*$N38 -> 0.9332785
B39: Long & special steel | C39: 0.85 | D39: 0.119 | E39: 0.75 | F39: 0.75 | G39: 0.75 | H39: 0.99 | I39: 0.98 | J39: =H39*I39 -> 0.9702 | K39: 0.97 | L39: 0.98 | M39: 0.95 | N39: =K39*L39*M39 -> 0.90307 | O39: 0.9198525 | P39: 0.9198525 | Q39: 0.9198525
B40: Cast iron and steel | C40: 1 | D40: 0.119 | E40: 0.8 | F40: 0.8 | G40: 0.8 | H40: 0.99 | I40: 0.98 | J40: 0.9702 | K40: 0.97 | L40: 0.98 | M40: 0.95 | N40: 0.90307 | O40: 0.916496 | P40: 0.916496 | Q40: 0.916496
B41: Flat AHSS | C41: 0.05 | D41: 0.119 | E41: 0.55 | F41: 0.55 | G41: 0.55 | H41: 0.99 | I41: 0.98 | J41: 0.9702 | K41: 0.97 | L41: 0.98 | M41: 0.95 | N41: 0.90307 | O41: 0.9332785 | P41: 0.9332785 | Q41: 0.9332785
B42: Long & special AHSS | C42: 0.85 | D42: 0.119 | E42: 0.75 | F42: 0.75 | G42: 0.75 | H42: 0.99 | I42: 0.98 | J42: 0.9702 | K42: 0.97 | L42: 0.98 | M42: 0.95 | N42: 0.90307 | O42: 0.9198525 | P42: 0.9198525 | Q42: 0.9198525
B43: Cast AHSS | C43: 1 | D43: 0.119 | E43: 0.8 | F43: 0.8 | G43: 0.8 | H43: 0.99 | I43: 0.98 | J43: 0.9702 | K43: 0.97 | L43: 0.98 | M43: 0.95 | N43: 0.90307 | O43: 0.916496 | P43: 0.916496 | Q43: 0.916496
B44: Rolled aluminum | C44: 0 | D44: 0 | E44: 0.52 | F44: 0.52 | G44: 0.52 | H44: 0.99 | I44: 0.93 | J44: 0.9207 | K44: 0.97 | L44: 0.9 | M44: 0.9 | N44: 0.7857 | O44: 0.8505 | P44: 0.8505 | Q44: 0.8505
B45: Extruded aluminum | C45: 0 | D45: 0 | E45: 0.8 | F45: 0.8 | G45: 0.8 | H45: 0.99 | I45: 0.93 | J45: 0.9207 | K45: 0.97 | L45: 0.9 | M45: 0.9 | N45: 0.7857 | O45: 0.8127 | P45: 0.8127 | Q45: 0.8127
B46: Cast aluminum | C46: 0.85 | D46: 0 | E46: 0.8 | F46: 0.8 | G46: 0.8 | H46: 0.99 | I46: 0.93 | J46: 0.9207 | K46: 0.97 | L46: 0.9 | M46: 0.9 | N46: 0.7857 | O46: 0.8127 | P46: 0.8127 | Q46: 0.8127
B47: Rolled magnesium | C47: 0 | D47: 0 | E47: 0.96 | F47: 0.96 | G47: 0.96 | H47: 0.99 | I47: 0.93 | J47: 0.9207 | K47: 0.97 | L47: 0.9 | M47: 0.9 | N47: 0.7857 | O47: 0.7911 | P47: 0.7911 | Q47: 0.7911
B48: Cast magnesium | C48: 0 | D48: 0 | E48: 0.55 | F48: 0.55 | G48: 0.55 | H48: 0.99 | I48: 0.93 | J48: 0.9207 | K48: 0.97 | L48: 0.9 | M48: 0.9 | N48: 0.7857 | O48: 0.84645 | P48: 0.84645 | Q48: 0.84645
B49: SMC | C49: 0 | D49: 0 | E49: 0.5 | F49: 0.5 | G49: 0.5 | H49: 0 | I49: 0 | J49: 0 | N49: 0 | O49: 0 | P49: 0 | Q49: 0
B50: GFRP | C50: 0 | D50: 0 | E50: 0.5 | F50: 0.5 | G50: 0.5 | H50: 0 | I50: 0 | J50: 0 | N50: 0 | O50: 0 | P50: 0 | Q50: 0
B51: CFRP | C51: 0 | D51: 0 | E51: 0.5 | F51: 0.5 | G51: 0.5 | H51: 0 | I51: 0 | J51: 0 | N51: 0 | O51: 0 | P51: 0 | Q51: 0
B52: Plastic | C52: 0 | D52: 0 | E52: =1/'Expert Data Input'!D64 -> 0.9616506843 | F52: =1/'Expert Data Input'!D64 -> 0.9616506843 | G52: =1/'Expert Data Input'!D64 -> 0.9616506843 | H52: 0 | I52: 0 | J52: 0 | N52: 0 | O52: 0 | P52: 0 | Q52: 0
B53: Rubber | C53: 0 | D53: 0 | E53: 1 | F53: 1 | G53: 1 | H53: 0 | I53: 0 | J53: 0 | N53: 0 | O53: 0 | P53: 0 | Q53: 0
B54: Glass | C54: 0 | D54: 0 | E54: 1 | F54: 1 | G54: 1 | H54: 0 | I54: 0 | J54: 0 | N54: 0 | O54: 0 | P54: 0 | Q54: 0
B55: Copper | C55: 0 | D55: 0 | E55: 1 | F55: 1 | G55: 1 | H55: 0 | I55: 0 | J55: 0 | N55: 0 | O55: 0 | P55: 0 | Q55: 0
B56: Stainless steel | C56: 1 | D56: 0.018 | E56: 0.62 | F56: 0.62 | G56: 0.62 | H56: 0.99 | I56: 0.98 | J56: 0.9702 | K56: 0.97 | L56: 0.98 | M56: 0.95 | N56: 0.90307 | O56: 0.9285794 | P56: 0.9285794 | Q56: 0.9285794
B57: Other | E57: 1 | F57: 1 | G57: 1 | H57: 0 | I57: 0 | J57: 0 | N57: 0
B58: Battery | C58: 0 | D58: 0 | E58: =1/'Expert Data Input'!B31 -> 0.5 | F58: =1/'Expert Data Input'!B31 -> 0.5 | G58: =1/'Expert Data Input'!B31 -> 0.5 | H58: 0 | I58: 0 | J58: 0 | N58: 0
B59: Fuel cell | C59: 0 | D59: 0 | E59: 1 | F59: 1 | G59: 1 | H59: 0 | I59: 0 | J59: 0 | N59: 0
B60: Fluids | C60: 0 | D60: 0 | E60: 1 | F60: 1 | G60: 1 | H60: 0 | I60: 0 | J60: 0 | N60: 0 | O60: =(1-E60)*$J60+E60*$N60 -> 0 | P60: =(1-F60)*$J60+F60*$N60 -> 0 | Q60: =(1-G60)*$J60+G60*$N60 -> 0
B61: Tires | C61: 0 | D61: 0 | E61: =1/'Expert Data Input'!D22 -> 0.3333333333 | F61: =1/'Expert Data Input'!D22 -> 0.3333333333 | G61: =1/'Expert Data Input'!D22 -> 0.3333333333 | H61: 0 | I61: 0 | J61: 0 | N61: 0
D63: Collected prompt | G63: Collected end-of-life | J63: Total | M63: Scrap input to | P63: Prompt scrap | S63: End-of-life scrap
D64: scrap output sprompt | G64: scrap output seol | J64: scrap inputs sin | M64: secondary production ss | P64: displacement rate βprompt | S64: displacement rate βeol
C65: Baseline | D65: Contender | E65: Contender | F65: Baseline | G65: Contender | H65: Contender | I65: Baseline | J65: Contender | K65: Contender | L65: Baseline | M65: Contender | N65: Contender | O65: Baseline | P65: Contender | Q65: Contender | R65: Baseline | S65: Contender | T65: Contender
C66: Vehicle | D66: Vehicle 1 | E66: Vehicle 2 | F66: Vehicle | G66: Vehicle 1 | H66: Vehicle 2 | I66: Vehicle | J66: Vehicle 1 | K66: Vehicle 2 | L66: Vehicle | M66: Vehicle 1 | N66: Vehicle 2 | O66: Vehicle | P66: Vehicle 1 | Q66: Vehicle 2 | R66: Vehicle | S66: Vehicle 1 | T66: Vehicle 2
D67: in % of unfinished material (column E) | G67: in % of unfinished material (column E) | J67: in % of unfinished material (column E) | M67: in kg scrap/kg out | P67: in % of unfinished material (column E) | S67: in % of unfinished material (column E)
B69: Flat carbon steel | C69: =(1-E38)*$H38 -> 0.4455 | D69: 0.4455 | E69: 0.4455 | F69: =E38*$K38*$L38 -> 0.52283 | G69: =F38*$K38*$L38 -> 0.52283 | H69: =G38*$K38*$L38 -> 0.52283 | I69: =$D38*(1-$C38)+IF(O38=0,0,$C38*(C69+F69)/O38) -> 0.1649278693 | J69: =$D38*(1-$C38)+IF(P38=0,0,$C38*(D69+G69)/P38) -> 0.1649278693 | K69: =$D38*(1-$C38)+IF(Q38=0,0,$C38*(E69+H69)/Q38) -> 0.1649278693 | L69: =IF(O38=0,0,(C69+F69)/O38) -> 1.037557385 | M69: =IF(P38=0,0,(D69+G69)/P38) -> 1.037557385 | N69: =IF(Q38=0,0,(E69+H69)/Q38) -> 1.037557385 | O69: =IF(L69-$D38=0,0,'Expert Data Input'!G6*(C69-I69)/(L69-$D38)) -> 0.2749038022 | P69: =IF(M69-$D38=0,0,'Expert Data Input'!G6*(D69-J69)/(M69-$D38)) -> 0.2749038022 | Q69: =IF(N69-$D38=0,0,'Expert Data Input'!G6*(E69-K69)/(N69-$D38)) -> 0.2749038022 | R69: =IF(L69-$D38=0,0,'Expert Data Input'!G6*F69/(L69-$D38)) -> 0.5122673963 | S69: =IF(M69-$D38=0,0,'Expert Data Input'!G6*G69/(M69-$D38)) -> 0.5122673963 | T69: =IF(N69-$D38=0,0,'Expert Data Input'!G6*H69/(N69-$D38)) -> 0.5122673963
B70: Long & special steel | C70: 0.2475 | D70: 0.2475 | E70: 0.2475 | F70: =E39*$K39*$L39 -> 0.71295 | G70: =F39*$K39*$L39 -> 0.71295 | H70: 0.71295 | I70: 0.9053645743 | J70: 0.9053645743 | K70: 0.9053645743 | L70: 1.044134793 | M70: 1.044134793 | N70: 1.044134793 | O70: =IF(L70-$D39=0,0,'Expert Data Input'!G7*(C70-I70)/(L70-$D39)) -> -0.6399911896 | P70: =IF(M70-$D39=0,0,'Expert Data Input'!G7*(D70-J70)/(M70-$D39)) -> -0.6399911896 | Q70: =IF(N70-$D39=0,0,'Expert Data Input'!G7*(E70-K70)/(N70-$D39)) -> -0.6399911896 | R70: =IF(L70-$D39=0,0,'Expert Data Input'!G7*F70/(L70-$D39)) -> 0.6935800108 | S70: =IF(M70-$D39=0,0,'Expert Data Input'!G7*G70/(M70-$D39)) -> 0.6935800108 | T70: =IF(N70-$D39=0,0,'Expert Data Input'!G7*H70/(N70-$D39)) -> 0.6935800108
B71: Cast iron and steel | C71: =(1-E40)*$H40 -> 0.198 | D71: =(1-F40)*$H40 -> 0.198 | E71: =(1-G40)*$H40 -> 0.198 | F71: =E40*$K40*$L40 -> 0.76048 | G71: 0.76048 | H71: 0.76048 | I71: 1.045809256 | J71: 1.045809256 | K71: 1.045809256 | L71: 1.045809256 | M71: 1.045809256 | N71: 1.045809256 | O71: =IF(L71-$D40=0,0,'Expert Data Input'!G8*(C71-I71)/(L71-$D40)) -> -0.8232851857 | P71: =IF(M71-$D40=0,0,'Expert Data Input'!G8*(D71-J71)/(M71-$D40)) -> -0.8232851857 | Q71: =IF(N71-$D40=0,0,'Expert Data Input'!G8*(E71-K71)/(N71-$D40)) -> -0.8232851857 | R71: =IF(L71-$D40=0,0,'Expert Data Input'!G8*F71/(L71-$D40)) -> 0.7384820506 | S71: =IF(M71-$D40=0,0,'Expert Data Input'!G8*G71/(M71-$D40)) -> 0.7384820506 | T71: =IF(N71-$D40=0,0,'Expert Data Input'!G8*H71/(N71-$D40)) -> 0.7384820506
B72: Flat AHSS | C72: =(1-E41)*$H41 -> 0.4455 | D72: =(1-F41)*$H41 -> 0.4455 | E72: =(1-G41)*$H41 -> 0.4455 | F72: =E41*$K41*$L41 -> 0.52283 | G72: =F41*$K41*$L41 -> 0.52283 | H72: =G41*$K41*$L41 -> 0.52283 | I72: 0.1649278693 | J72: 0.1649278693 | K72: 0.1649278693 | L72: 1.037557385 | M72: 1.037557385 | N72: 1.037557385 | O72: =IF(L72-$D41=0,0,'Expert Data Input'!G9*(C72-I72)/(L72-$D41)) -> 0.2749038022 | P72: =IF(M72-$D41=0,0,'Expert Data Input'!G9*(D72-J72)/(M72-$D41)) -> 0.2749038022 | Q72: =IF(N72-$D41=0,0,'Expert Data Input'!G9*(E72-K72)/(N72-$D41)) -> 0.2749038022 | R72: =IF(L72-$D41=0,0,'Expert Data Input'!G9*F72/(L72-$D41)) -> 0.5122673963 | S72: =IF(M72-$D41=0,0,'Expert Data Input'!G9*G72/(M72-$D41)) -> 0.5122673963 | T72: =IF(N72-$D41=0,0,'Expert Data Input'!G9*H72/(N72-$D41)) -> 0.5122673963
B73: Long & special AHSS | C73: 0.2475 | D73: =(1-F42)*$H42 -> 0.2475 | E73: 0.2475 | F73: 0.71295 | G73: 0.71295 | H73: 0.71295 | I73: 0.9053645743 | J73: 0.9053645743 | K73: 0.9053645743 | L73: 1.044134793 | M73: 1.044134793 | N73: 1.044134793 | O73: =IF(L73-$D42=0,0,'Expert Data Input'!G10*(C73-I73)/(L73-$D42)) -> -0.6399911896 | P73: =IF(M73-$D42=0,0,'Expert Data Input'!G10*(D73-J73)/(M73-$D42)) -> -0.6399911896 | Q73: =IF(N73-$D42=0,0,'Expert Data Input'!G10*(E73-K73)/(N73-$D42)) -> -0.6399911896 | R73: =IF(L73-$D42=0,0,'Expert Data Input'!G10*F73/(L73-$D42)) -> 0.6935800108 | S73: =IF(M73-$D42=0,0,'Expert Data Input'!G10*G73/(M73-$D42)) -> 0.6935800108 | T73: =IF(N73-$D42=0,0,'Expert Data Input'!G10*H73/(N73-$D42)) -> 0.6935800108
B74: Cast AHSS | C74: 0.198 | D74: 0.198 | E74: 0.198 | F74: 0.76048 | G74: 0.76048 | H74: 0.76048 | I74: 1.045809256 | J74: 1.045809256 | K74: 1.045809256 | L74: 1.045809256 | M74: 1.045809256 | N74: 1.045809256 | O74: =IF(L74-$D43=0,0,'Expert Data Input'!G11*(C74-I74)/(L74-$D43)) -> -0.8232851857 | P74: =IF(M74-$D43=0,0,'Expert Data Input'!G11*(D74-J74)/(M74-$D43)) -> -0.8232851857 | Q74: =IF(N74-$D43=0,0,'Expert Data Input'!G11*(E74-K74)/(N74-$D43)) -> -0.8232851857 | R74: =IF(L74-$D43=0,0,'Expert Data Input'!G11*F74/(L74-$D43)) -> 0.7384820506 | S74: =IF(M74-$D43=0,0,'Expert Data Input'!G11*G74/(M74-$D43)) -> 0.7384820506 | T74: =IF(N74-$D43=0,0,'Expert Data Input'!G11*H74/(N74-$D43)) -> 0.7384820506
B75: Rolled aluminum | C75: 0.4752 | D75: 0.4752 | E75: 0.4752 | F75: 0.45396 | G75: 0.45396 | H75: 0.45396 | I75: 0 | J75: 0 | K75: 0 | L75: 1.092486772 | M75: 1.092486772 | N75: 1.092486772 | O75: =IF(L75-$D44=0,0,'Expert Data Input'!G12*(C75-I75)/(L75-$D44)) -> 0.3914738473 | P75: =IF(M75-$D44=0,0,'Expert Data Input'!G12*(D75-J75)/(M75-$D44)) -> 0.3914738473 | Q75: =IF(N75-$D44=0,0,'Expert Data Input'!G12*(E75-K75)/(N75-$D44)) -> 0.3914738473 | R75: =IF(L75-$D44=0,0,'Expert Data Input'!G12*F75/(L75-$D44)) -> 0.3739761527 | S75: =IF(M75-$D44=0,0,'Expert Data Input'!G12*G75/(M75-$D44)) -> 0.3739761527 | T75: =IF(N75-$D44=0,0,'Expert Data Input'!G12*H75/(N75-$D44)) -> 0.3739761527
B76: Extruded aluminum | C76: 0.198 | D76: 0.198 | E76: 0.198 | F76: 0.6984 | G76: 0.6984 | H76: 0.6984 | I76: 0 | J76: 0 | K76: 0 | L76: 1.102990033 | M76: 1.102990033 | N76: 1.102990033 | O76: =IF(L76-$D45=0,0,'Expert Data Input'!G13*(C76-I76)/(L76-$D45)) -> 0.1615608434 | P76: =IF(M76-$D45=0,0,'Expert Data Input'!G13*(D76-J76)/(M76-$D45)) -> 0.1615608434 | Q76: =IF(N76-$D45=0,0,'Expert Data Input'!G13*(E76-K76)/(N76-$D45)) -> 0.1615608434 | R76: =IF(L76-$D45=0,0,'Expert Data Input'!G13*F76/(L76-$D45)) -> 0.5698691566 | S76: =IF(M76-$D45=0,0,'Expert Data Input'!G13*G76/(M76-$D45)) -> 0.5698691566 | T76: =IF(N76-$D45=0,0,'Expert Data Input'!G13*H76/(N76-$D45)) -> 0.5698691566
B77: Cast aluminum | C77: 0.198 | D77: 0.198 | E77: 0.198 | F77: 0.6984 | G77: 0.6984 | H77: 0.6984 | I77: 0.9375415282 | J77: 0.9375415282 | K77: 0.9375415282 | L77: 1.102990033 | M77: 1.102990033 | N77: 1.102990033 | O77: =IF(L77-$D46=0,0,'Expert Data Input'!G14*(C77-I77)/(L77-$D46)) -> -0.6034391566 | P77: =IF(M77-$D46=0,0,'Expert Data Input'!G14*(D77-J77)/(M77-$D46)) -> -0.6034391566 | Q77: =IF(N77-$D46=0,0,'Expert Data Input'!G14*(E77-K77)/(N77-$D46)) -> -0.6034391566 | R77: =IF(L77-$D46=0,0,'Expert Data Input'!G14*F77/(L77-$D46)) -> 0.5698691566 | S77: =IF(M77-$D46=0,0,'Expert Data Input'!G14*G77/(M77-$D46)) -> 0.5698691566 | T77: =IF(N77-$D46=0,0,'Expert Data Input'!G14*H77/(N77-$D46)) -> 0.5698691566
B78: Rolled magnesium | C78: 0.0396 | D78: 0.0396 | E78: 0.0396 | F78: 0.83808 | G78: 0.83808 | H78: 0.83808 | I78: 0 | J78: 0 | K78: 0 | L78: 1.109442548 | M78: 1.109442548 | N78: 1.109442548 | O78: =IF(L78-$D47=0,0,'Expert Data Input'!G15*(C78-I78)/(L78-$D47)) -> 0.03212424118 | P78: =IF(M78-$D47=0,0,'Expert Data Input'!G15*(D78-J78)/(M78-$D47)) -> 0.03212424118 | Q78: =IF(N78-$D47=0,0,'Expert Data Input'!G15*(E78-K78)/(N78-$D47)) -> 0.03212424118 | R78: =IF(L78-$D47=0,0,'Expert Data Input'!G15*F78/(L78-$D47)) -> 0.6798657588 | S78: =IF(M78-$D47=0,0,'Expert Data Input'!G15*G78/(M78-$D47)) -> 0.6798657588 | T78: =IF(N78-$D47=0,0,'Expert Data Input'!G15*H78/(N78-$D47)) -> 0.6798657588
B79: Cast magnesium | C79: 0.4455 | D79: 0.4455 | E79: 0.4455 | F79: 0.48015 | G79: 0.48015 | H79: 0.48015 | I79: 0 | J79: 0 | K79: 0 | L79: 1.093567251 | M79: 1.093567251 | N79: 1.093567251 | O79: =IF(L79-$D48=0,0,'Expert Data Input'!G16*(C79-I79)/(L79-$D48)) -> 0.3666441176 | P79: =IF(M79-$D48=0,0,'Expert Data Input'!G16*(D79-J79)/(M79-$D48)) -> 0.3666441176 | Q79: =IF(N79-$D48=0,0,'Expert Data Input'!G16*(E79-K79)/(N79-$D48)) -> 0.3666441176 | R79: =IF(L79-$D48=0,0,'Expert Data Input'!G16*F79/(L79-$D48)) -> 0.3951608824 | S79: =IF(M79-$D48=0,0,'Expert Data Input'!G16*G79/(M79-$D48)) -> 0.3951608824 | T79: =IF(N79-$D48=0,0,'Expert Data Input'!G16*H79/(N79-$D48)) -> 0.3951608824
B80: SMC | C80: 0 | D80: 0 | E80: 0 | F80: 0 | G80: 0 | H80: 0 | I80: 0 | J80: 0 | K80: 0 | L80: 0 | M80: 0 | N80: 0 | O80: =IF(L80-$D49=0,0,'Expert Data Input'!G17*(C80-I80)/(L80-$D49)) -> 0 | P80: =IF(M80-$D49=0,0,'Expert Data Input'!G17*(D80-J80)/(M80-$D49)) -> 0 | Q80: =IF(N80-$D49=0,0,'Expert Data Input'!G17*(E80-K80)/(N80-$D49)) -> 0 | R80: =IF(L80-$D49=0,0,'Expert Data Input'!G17*F80/(L80-$D49)) -> 0 | S80: =IF(M80-$D49=0,0,'Expert Data Input'!G17*G80/(M80-$D49)) -> 0 | T80: =IF(N80-$D49=0,0,'Expert Data Input'!G17*H80/(N80-$D49)) -> 0
B81: GFRP | C81: 0 | D81: 0 | E81: 0 | F81: 0 | G81: 0 | H81: 0 | I81: 0 | J81: 0 | K81: 0 | L81: 0 | M81: 0 | N81: 0 | O81: =IF(L81-$D50=0,0,'Expert Data Input'!G18*(C81-I81)/(L81-$D50)) -> 0 | P81: =IF(M81-$D50=0,0,'Expert Data Input'!G18*(D81-J81)/(M81-$D50)) -> 0 | Q81: =IF(N81-$D50=0,0,'Expert Data Input'!G18*(E81-K81)/(N81-$D50)) -> 0 | R81: =IF(L81-$D50=0,0,'Expert Data Input'!G18*F81/(L81-$D50)) -> 0 | S81: =IF(M81-$D50=0,0,'Expert Data Input'!G18*G81/(M81-$D50)) -> 0 | T81: =IF(N81-$D50=0,0,'Expert Data Input'!G18*H81/(N81-$D50)) -> 0
B82: CFRP | C82: 0 | D82: =(1-F51)*$H51 -> 0 | E82: 0 | F82: 0 | G82: 0 | H82: 0 | I82: 0 | J82: 0 | K82: 0 | L82: 0 | M82: 0 | N82: 0 | O82: =IF(L82-$D51=0,0,'Expert Data Input'!G19*(C82-I82)/(L82-$D51)) -> 0 | P82: =IF(M82-$D51=0,0,'Expert Data Input'!G19*(D82-J82)/(M82-$D51)) -> 0 | Q82: =IF(N82-$D51=0,0,'Expert Data Input'!G19*(E82-K82)/(N82-$D51)) -> 0 | R82: =IF(L82-$D51=0,0,'Expert Data Input'!G19*F82/(L82-$D51)) -> 0 | S82: =IF(M82-$D51=0,0,'Expert Data Input'!G19*G82/(M82-$D51)) -> 0 | T82: =IF(N82-$D51=0,0,'Expert Data Input'!G19*H82/(N82-$D51)) -> 0
B83: Plastic | C83: 0 | D83: 0 | E83: 0 | F83: 0 | G83: 0 | H83: 0 | I83: 0 | J83: 0 | K83: 0 | L83: 0 | M83: 0 | N83: 0 | O83: 0 | P83: 0 | Q83: 0 | R83: 0 | S83: 0 | T83: 0
B84: Rubber | C84: 0 | D84: 0 | E84: 0 | F84: 0 | G84: 0 | H84: 0 | I84: 0 | J84: 0 | K84: 0 | L84: 0 | M84: 0 | N84: 0 | O84: 0 | P84: 0 | Q84: 0 | R84: 0 | S84: 0 | T84: 0
B85: Glass | C85: 0 | D85: 0 | E85: 0 | F85: 0 | G85: 0 | H85: 0 | I85: 0 | J85: 0 | K85: 0 | L85: 0 | M85: 0 | N85: 0 | O85: 0 | P85: 0 | Q85: 0 | R85: 0 | S85: 0 | T85: 0
B86: Copper | C86: 0 | D86: 0 | E86: 0 | F86: 0 | G86: 0 | H86: 0 | I86: 0 | J86: 0 | K86: 0 | L86: 0 | M86: 0 | N86: 0 | O86: 0 | P86: 0 | Q86: 0 | R86: 0 | S86: 0 | T86: 0
B87: Stainless steel | C87: 0.3762 | D87: 0.3762 | E87: 0.3762 | F87: 0.589372 | G87: 0.589372 | H87: 0.589372 | I87: 1.039837843 | J87: 1.039837843 | K87: 1.039837843 | L87: 1.039837843 | M87: 1.039837843 | N87: 1.039837843 | O87: =IF(L87-$D56=0,0,'Expert Data Input'!G20*(C87-I87)/(L87-$D56)) -> -0.5845096291 | P87: =IF(M87-$D56=0,0,'Expert Data Input'!G20*(D87-J87)/(M87-$D56)) -> -0.5845096291 | Q87: =IF(N87-$D56=0,0,'Expert Data Input'!G20*(E87-K87)/(N87-$D56)) -> -0.5845096291 | R87: =IF(L87-$D56=0,0,'Expert Data Input'!G20*F87/(L87-$D56)) -> 0.5190988021 | S87: =IF(M87-$D56=0,0,'Expert Data Input'!G20*G87/(M87-$D56)) -> 0.5190988021 | T87: =IF(N87-$D56=0,0,'Expert Data Input'!G20*H87/(N87-$D56)) -> 0.5190988021
B88: Other
B89: Battery | C89: =(1-E58)*$H58 -> 0 | D89: =(1-F58)*$H58 -> 0 | E89: =(1-G58)*$H58 -> 0 | F89: =E58*$K58*$L58 -> 0 | G89: =F58*$K58*$L58 -> 0 | H89: =$K58*$L58 -> 0 | I89: =$D58*(1-$C58)+IF(O58=0,0,$C58*(C89+F89)/O58) -> 0 | J89: =$D58*(1-$C58)+IF(P58=0,0,$C58*(D89+G89)/P58) -> 0 | K89: =$D58*(1-$C58)+IF(Q58=0,0,$C58*(E89+H89)/Q58) -> 0 | L89: =IF(O58=0,0,(C89+F89)/O58) -> 0 | M89: =IF(P58=0,0,(D89+G89)/P58) -> 0 | N89: =IF(Q58=0,0,(E89+H89)/Q58) -> 0 | R89: 1 | S89: 1 | T89: 1
B90: Fuel cell
B91: Fluids | C91: =(1-E60)*$H60 -> 0 | D91: =(1-F60)*$H60 -> 0 | E91: =(1-G60)*$H60 -> 0 | F91: =E60*$K60*$L60 -> 0 | G91: =F60*$K60*$L60 -> 0 | H91: =G60*$K60*$L60 -> 0 | I91: =$D60*(1-$C60)+IF(O60=0,0,$C60*(C91+F91)/O60) -> 0 | J91: =$D60*(1-$C60)+IF(P60=0,0,$C60*(D91+G91)/P60) -> 0 | K91: =$D60*(1-$C60)+IF(Q60=0,0,$C60*(E91+H91)/Q60) -> 0 | L91: =IF(O60=0,0,(C91+F91)/O60) -> 0 | M91: =IF(P60=0,0,(D91+G91)/P60) -> 0 | N91: =IF(Q60=0,0,(E91+H91)/Q60) -> 0 | O91: 0 | P91: 0 | Q91: 0 | R91: 0 | S91: 0 | T91: 0
B92: Tires
O117: 0

Sheet Use
D1: Default | E1: Baseline | F1: Contender | G1: Contender
D2: Vehicle | E2: Vehicle | F2: Vehicle 1 | G2: Vehicle 2
B3: Mass of the vehicle VM | C3: kg | D3: ='ED - ES'!B52 -> 1063.33 | E3: ='Material Flows'!F29 -> 1063.33 | F3: ='Material Flows'!J29 -> 953.8452009 | G3: ='Material Flows'!N29 -> 918.8100652 | I3: Volumetric energy content
B4: Total life of the vehicle TM | C4: km | D4: ='Data Input'!H11 -> 200000 | E4: ='Data Input'!H11 -> 200000 | F4: ='Data Input'!H11 -> 200000 | G4: ='Data Input'!H11 -> 200000 | I4: Gasoline | J4: ='Expert Data Input'!B39 -> 31.875 | K4: MJ/liter
B5: Charging efficiency of the battery CE | C5: % | D5: ='Expert Data Input'!$B$29 -> 0.9 | E5: ='Expert Data Input'!$B$29 -> 0.9 | F5: ='Expert Data Input'!$B$29 -> 0.9 | G5: ='Expert Data Input'!$B$29 -> 0.9 | I5: Bioethanol | J5: ='Expert Data Input'!B40 -> 21.1 | K5: MJ/liter
B6: Liquid fuel savings per mass savings ESf | C6: MJ/100km100kg | E6: ='ED - ES'!B22 -> 0 | F6: ='ED - ES'!B22 -> 0 | G6: ='ED - ES'!B22 -> 0 | I6: Diesel | J6: ='Expert Data Input'!B41 -> 35.952 | K6: MJ/liter
B7: Electricity savings per mass savings ESel | C7: MJ/100km100kg | E7: ='ED - ES'!B23 -> 2.262321404 | F7: ='ED - ES'!B23 -> 2.262321404 | G7: ='ED - ES'!B23 -> 2.262321404 | I7: Biodiesel | J7: ='Expert Data Input'!B42 -> 32.64 | K7: MJ/liter
B8: Change in liquid fuel demand ΔEDf | C8: MJ/100km | E8: =E6*($D$3-E3)/100 -> 0 | F8: =F6*($D$3-F3)/100 -> 0 | G8: =G6*($D$3-G3)/100 -> 0 | I8: Gasoline/bioethanol mix | J8: ='Data Input'!P6 -> 0 | K8: vol%
B9: Change in electricity demand ΔEDel | C9: MJ/100km | E9: =E7*($D$3-E3)/100 -> 1.028784665e-14 | F9: =F7*($E$3-F3)/100 -> 2.476898044 | G9: =G7*($E$3-G3)/100 -> 3.269505419 | I9: Diesel/biodiesel mix | J9: ='Data Input'!P9 -> 0 | K9: vol%
B10: Liquid fuel demand EDf | C10: MJ/100km | D10: ='ED - ES'!B7 -> 0 | E10: =D10-E8 -> 0 | F10: =D10-F8 -> 0 | G10: =D10-G8 -> 0 | I10: Gasoline | J10: =(1-J8)*J4/((1-J8)*J4+J8*J5) -> 1 | K10: MJ%
B11: Electricity demand EDel | C11: MJ/100km | D11: ='ED - ES'!B8 -> 45.61269051 | E11: =D11-E9 -> 45.61269051 | F11: =E11-F9 -> 43.13579247 | G11: =E11-G9 -> 42.34318509 | I11: Bioethanol | J11: =J8*J5/((1-J8)*J4+J8*J5) -> 0 | K11: MJ%
B12: Total fuel consumption | I12: Diesel | J12: =(1-J9)*J6/((1-J9)*J6+J9*J7) -> 1 | K12: MJ%
B13: Gasoline | C13: MJ | D13: =(1-$J$24)*$J$18*D10*D4/100 -> 0 | E13: =(1-$J$24)*$J$18*E10*E4/100 -> 0 | F13: =(1-$J$24)*$J$18*F10*F4/100 -> 0 | G13: =(1-$J$24)*$J$18*G10*G4/100 -> 0 | I13: Biodiesel | J13: =J9*J7/((1-J9)*J6+J9*J7) -> 0 | K13: MJ%
B14: Diesel | C14: MJ | D14: =(1-$J$24)*$J$20*D10*D4/100 -> 0 | E14: =(1-$J$24)*$J$20*E10*E4/100 -> 0 | F14: =(1-$J$24)*$J$20*F10*F4/100 -> 0 | G14: =(1-$J$24)*$J$20*G10*G4/100 -> 0 | I14: Energy content of liquid fuel mix | J14: =IF(J15=1,J6*(1-J9)+J7*J9,J4*(1-J8)+J5*J8) -> 31.875 | K14: MJ/liter
B15: Corn ethanol | C15: MJ | D15: =IF('Data Input'!$P$7="Corn",(1-$J$24)*$J$19*D10*D4/100,0) -> 0 | E15: =IF('Data Input'!$P$7="Corn",(1-$J$24)*$J$19*E10*E4/100,0) -> 0 | F15: =IF('Data Input'!$P$7="Corn",(1-$J$24)*$J$19*F10*F4/100,0) -> 0 | G15: =IF('Data Input'!$P$7="Corn",(1-$J$24)*$J$19*G10*G4/100,0) -> 0 | I15: Selected vehicle type | J15: ='ED - ES'!A3 -> 6
B16: Cellulosic ethanol | C16: MJ | D16: =IF('Data Input'!$P$7="Cellulose",(1-$J$24)*$J$19*D10*D4/100,0) -> 0 | E16: =IF('Data Input'!$P$7="Cellulose",(1-$J$24)*$J$19*E10*E4/100,0) -> 0 | F16: =IF('Data Input'!$P$7="Cellulose",(1-$J$24)*$J$19*F10*F4/100,0) -> 0 | G16: =IF('Data Input'!$P$7="Cellulose",(1-$J$24)*$J$19*G10*G4/100,0) -> 0 | I16: ICEV-G=0, ICEV-D=1, HEV=2, FCV=3, PHEV20=4,PHEV40=5,BEV=6
B17: Sugarcane ethanol | C17: MJ | D17: =IF('Data Input'!$P$7="Sugarcane",(1-$J$24)*$J$19*D10*D4/100,0) -> 0 | E17: =IF('Data Input'!$P$7="Sugarcane",(1-$J$24)*$J$19*E10*E4/100,0) -> 0 | F17: =IF('Data Input'!$P$7="Sugarcane",(1-$J$24)*$J$19*F10*F4/100,0) -> 0 | G17: =IF('Data Input'!$P$7="Sugarcane",(1-$J$24)*$J$19*G10*G4/100,0) -> 0 | I17: Selected fuel mix
B18: Soybean biodiesel | C18: MJ | D18: =IF('Data Input'!$P$10="Soybeans",(1-$J$24)*$J$21*D10*D4/100,0) -> 0 | E18: =IF('Data Input'!$P$10="Soybeans",(1-$J$24)*$J$21*E10*E4/100,0) -> 0 | F18: =IF('Data Input'!$P$10="Soybeans",(1-$J$24)*$J$21*F10*F4/100,0) -> 0 | G18: =IF('Data Input'!$P$10="Soybeans",(1-$J$24)*$J$21*G10*G4/100,0) -> 0 | I18: Gasoline | J18: =IF(OR(J15=1,J15=3),0,J10) -> 1 | K18: MJ/MJ liquid fuel
B19: Rapeseed biodiesel | C19: MJ | D19: =IF('Data Input'!$P$10="Rapeseed",(1-$J$24)*$J$21*D10*D4/100,0) -> 0 | E19: =IF('Data Input'!$P$10="Rapeseed",(1-$J$24)*$J$21*E10*E4/100,0) -> 0 | F19: =IF('Data Input'!$P$10="Rapeseed",(1-$J$24)*$J$21*F10*F4/100,0) -> 0 | G19: =IF('Data Input'!$P$10="Rapeseed",(1-$J$24)*$J$21*G10*G4/100,0) -> 0 | I19: Bioethanol | J19: =IF(OR(J15=1,J15=3),0,J11) -> 0 | K19: MJ/MJ liquid fuel
B20: Hydrogen | C20: MJ | D20: =$J$22*D10*D4/100 -> 0 | E20: =$J$22*E10*E4/100 -> 0 | F20: =$J$22*F10*F4/100 -> 0 | G20: =$J$22*G10*G4/100 -> 0 | I20: Diesel | J20: =IF(J15=1,J12,0) -> 0 | K20: MJ/MJ liquid fuel
B21: Electricity | C21: MJ | D21: =$J$24*(D4/100)*D11/D5 -> 101361.5345 | E21: =$J$24*(E4/100)*E11/E5 -> 101361.5345 | F21: =$J$24*(F4/100)*F11/F5 -> 95857.3166 | G21: =$J$24*(G4/100)*G11/G5 -> 94095.96688 | I21: Biodiesel | J21: =IF(J15=1,J13,0) -> 0 | K21: MJ/MJ liquid fuel
I22: Hydrogen | J22: =IF(J15=3,1,0) -> 0 | K22: MJ/MJ liquid fuel
B23: Upstream GHG emissions per km | C23: in gCO2eq/km | E23: =((SUM('LCA Calculations'!I94:I106))/E4)*1000 -> 61.87614872 | F23: =((SUM('LCA Calculations'!J94:J106))/F4)*1000 -> 58.51609892 | G23: =((SUM('LCA Calculations'!K94:K106))/G4)*1000 -> 57.44088298
B24: Tailpipe GHG emissions per km | C24: in gCO2eq/km | E24: =(SUM('LCA Calculations'!I104:I108)*1000)/E4 -> 61.87614872 | F24: =(SUM('LCA Calculations'!J104:J108)*1000)/F4 -> 58.51609892 | G24: =(SUM('LCA Calculations'!K104:K108)*1000)/G4 -> 57.44088298 | I24: Energy from electricity | J24: =IF(OR(J15=4,J15=5),'Expert Data Input'!B35,IF(J15=6,"100%","0%")) -> 100% | K24: Fraction
B25: Use phase GHG emissions per km | C25: in gCO2eq/km | E25: =SUM(E23:E24) -> 123.7522974 | F25: =SUM(F23:F24) -> 117.0321978 | G25: =SUM(G23:G24) -> 114.881766
B26: Liquid fuel savings per mass savings FS | C26: l/100km100kg | E26: =IF(OR('Data Input'!H4="FCV",'Data Input'!H4="BEV"),"-----n/a-----",(E6/J14)) -> -----n/a----- | F26: =IF(OR('Data Input'!H4="FCV",'Data Input'!H4="BEV"),"-----n/a-----",(F6/J14)) -> -----n/a----- | G26: =IF(OR('Data Input'!H4="FCV",'Data Input'!H4="BEV"),"-----n/a-----",(G6/J14)) -> -----n/a-----
B27: Change in fuel economy ΔFE | C27: l/100km | E27: =IF(OR('Data Input'!H4="FCV",'Data Input'!H4="BEV"),"-----n/a-----",(E26*(($D$3-E3)/100))) -> -----n/a----- | F27: =IF(OR('Data Input'!H4="FCV",'Data Input'!H4="BEV"),"-----n/a-----",(F26*(($E$3-F3)/100))) -> -----n/a----- | G27: =IF(OR('Data Input'!H4="FCV",'Data Input'!H4="BEV"),"-----n/a-----",(G26*(($E$3-G3)/100))) -> -----n/a-----
B28: Mass elasticity of liquid fuel consumption | C28: % / % | E28: =IF(OR('Data Input'!H4="FCV",'Data Input'!H4="BEV",J24=1),"-----n/a-----",(E27*D3)/(D29*(D3-E3))) -> -----n/a----- | F28: =IF(OR('Data Input'!H4="FCV",'Data Input'!H4="BEV",J24=1),"-----n/a-----",(F27*E3)/(E29*(E3-F3))) -> -----n/a----- | G28: =IF(OR('Data Input'!H4="FCV",'Data Input'!H4="BEV",J24=1),"-----n/a-----",(G27*E3)/(E29*(E3-G3))) -> -----n/a-----
B29: Liquid fuel economy FE (mixed mode) | C29: l/100km | D29: =IF(OR('Data Input'!H4="FCV",'Data Input'!H4="BEV"),"-----n/a-----",D10/J14) -> -----n/a----- | E29: =IF(OR('Data Input'!H4="FCV",'Data Input'!H4="BEV"),"-----n/a-----",E10/J14) -> -----n/a----- | F29: =IF(OR('Data Input'!H4="FCV",'Data Input'!H4="BEV"),"-----n/a-----",F10/J14) -> -----n/a----- | G29: =IF(OR('Data Input'!H4="FCV",'Data Input'!H4="BEV"),"-----n/a-----",G10/J14) -> -----n/a-----
B30: Liquid fuel economy FE (mixed mode) | C30: mpg | D30: =IF(OR('Data Input'!H4="FCV",'Data Input'!H4="BEV",J24=1),"-----n/a-----",(3.785*100)/(D29*1.609)) -> -----n/a----- | E30: =IF(OR('Data Input'!H4="FCV",'Data Input'!H4="BEV",J24=1),"-----n/a-----",(3.785*100)/(E29*1.609)) -> -----n/a----- | F30: =IF(OR('Data Input'!H4="FCV",'Data Input'!H4="BEV",J24=1),"-----n/a-----",(3.785*100)/(F29*1.609)) -> -----n/a----- | G30: =IF(OR('Data Input'!H4="FCV",'Data Input'!H4="BEV",J24=1),"-----n/a-----",(3.785*100)/(G29*1.609)) -> -----n/a-----
B31: Total liquid fuel consumption FE·TM | C31: liters | D31: =IF(OR('Data Input'!H4="FCV",'Data Input'!H4="BEV"),"-----n/a-----",(D29*D4/100)) -> -----n/a----- | E31: =IF(OR('Data Input'!H4="FCV",'Data Input'!H4="BEV"),"-----n/a-----",(E29*E4/100)) -> -----n/a----- | F31: =IF(OR('Data Input'!H4="FCV",'Data Input'!H4="BEV"),"-----n/a-----",(F29*F4/100)) -> -----n/a----- | G31: =IF(OR('Data Input'!H4="FCV",'Data Input'!H4="BEV"),"-----n/a-----",(G29*G4/100)) -> -----n/a-----
B32: Mass elasticity of electricity consumption | C32: % / % | F32: =IF(E11=0,"-----n/a-----",(E3*F9)/(E11*(E3-F3))) -> 0.5273958171 | G32: =IF(E11=0,"-----n/a-----",(G9*E3)/(E11*(E3-G3))) -> 0.5273958171
B33: Electricity demand EDel | C33: kWh/100km | D33: =D11/3.6 -> 12.67019181 | E33: =E11/3.6 -> 12.67019181 | F33: =F11/3.6 -> 11.98216457 | G33: =G11/3.6 -> 11.76199586
B34: Total electricity consumption EDel·TM | C34: kWh | D34: =D33*D4/100 -> 25340.38362 | E34: =E33*E4/100 -> 25340.38362 | F34: =F33*F4/100 -> 23964.32915 | G34: =G33*G4/100 -> 23523.99172

Sheet Recycling
C1: Baseline Vehicle | F1: Contender Vehicle 1 | I1: Contender Vehicle 2 | L1: Prompt | O1: EOL
C2: Shipped | D2: Prompt scrap | E2: EOL scrap | F2: Shipped | G2: Prompt scrap | H2: EOL scrap | I2: Shipped | J2: Prompt scrap | K2: EOL scrap | L2: Baseline | M2: Contender 1 | N2: Contender 2 | O2: Baseline | P2: Contender 1 | Q2: Contender 2
C3: Material | D3: displacement rate δ | F3: Material | G3: displacement rate δ | I3: Material | J3: displacement rate δ
C4: in kg | D4: in % of unfinished material | F4: in kg | G4: in % of unfinished material | I4: in kg | J4: in % of unfinished material
L5: Activity Level | M5: Activity Level | N5: Activity Level | O5: Activity Level | P5: Activity Level | Q5: Activity Level
B6: Flat carbon steel | C6: ='Material Flows'!E5 -> 592.4168648 | D6: ='Material Flows'!O69 -> 0.2749038022 | E6: ='Material Flows'!R69 -> 0.5122673963 | F6: ='Material Flows'!I5 -> 121.5743408 | G6: ='Material Flows'!P69 -> 0.2749038022 | H6: ='Material Flows'!S69 -> 0.5122673963 | I6: ='Material Flows'!M5 -> 117.8994723 | J6: ='Material Flows'!Q69 -> 0.2749038022 | K6: ='Material Flows'!T69 -> 0.5122673963 | L6: =C6*D6 -> 162.8576486 | M6: =F6*G6 -> 33.42124853 | N6: =I6*J6 -> 32.41101322 | O6: =C6*E6 -> 303.4758449 | P6: =F6*H6 -> 62.27857102 | Q6: =I6*K6 -> 60.39605571
B7: Long & special steel | C7: ='Material Flows'!E6 -> 162.9146378 | D7: ='Material Flows'!O70 -> -0.6399911896 | E7: ='Material Flows'!R70 -> 0.6935800108 | F7: ='Material Flows'!I6 -> 119.8710394 | G7: ='Material Flows'!P70 -> -0.6399911896 | H7: ='Material Flows'!S70 -> 0.6935800108 | I7: ='Material Flows'!M6 -> 118.0744371 | J7: ='Material Flows'!Q70 -> -0.6399911896 | K7: ='Material Flows'!T70 -> 0.6935800108 | L7: -104.2639329 | M7: -76.71640911 | N7: -75.56659943 | O7: 112.9943363 | P7: 83.14015682 | Q7: 81.89406933
B8: Cast iron and steel | C8: ='Material Flows'!E7 -> 101.8216486 | D8: ='Material Flows'!O71 -> -0.8232851857 | E8: ='Material Flows'!R71 -> 0.7384820506 | F8: ='Material Flows'!I7 -> 101.8216486 | G8: ='Material Flows'!P71 -> -0.8232851857 | H8: ='Material Flows'!S71 -> 0.7384820506 | I8: ='Material Flows'!M7 -> 101.8216486 | J8: ='Material Flows'!Q71 -> -0.8232851857 | K8: ='Material Flows'!T71 -> 0.7384820506 | L8: -83.8282549 | M8: -83.8282549 | N8: -83.8282549 | O8: 75.19345988 | P8: 75.19345988 | Q8: 75.19345988
B9: Flat AHSS | C9: ='Material Flows'!E8 -> 0 | D9: ='Material Flows'!O72 -> 0.2749038022 | E9: ='Material Flows'!R72 -> 0.5122673963 | F9: ='Material Flows'!I8 -> 344.51892 | G9: ='Material Flows'!P72 -> 0.2749038022 | H9: ='Material Flows'!S72 -> 0.5122673963 | I9: ='Material Flows'!M8 -> 0 | J9: ='Material Flows'!Q72 -> 0.2749038022 | K9: ='Material Flows'!T72 -> 0.5122673963 | L9: 0 | M9: 94.70956103 | N9: 0 | O9: 0 | P9: 176.4858101 | Q9: 0
B10: Long & special AHSS | C10: ='Material Flows'!E9 -> 0 | D10: ='Material Flows'!O73 -> -0.6399911896 | E10: ='Material Flows'!R73 -> 0.6935800108 | F10: ='Material Flows'!I9 -> 28.071912 | G10: ='Material Flows'!P73 -> -0.6399911896 | H10: ='Material Flows'!S73 -> 0.6935800108 | I10: ='Material Flows'!M9 -> 0 | J10: ='Material Flows'!Q73 -> -0.6399911896 | K10: ='Material Flows'!T73 -> 0.6935800108 | L10: 0 | M10: -17.96577635 | N10: 0 | O10: 0 | P10: 19.47011703 | Q10: 0
B11: Cast AHSS | C11: ='Material Flows'!E10 -> 0 | D11: ='Material Flows'!O74 -> -0.8232851857 | E11: ='Material Flows'!R74 -> 0.7384820506 | F11: ='Material Flows'!I10 -> 0 | G11: ='Material Flows'!P74 -> -0.8232851857 | H11: ='Material Flows'!S74 -> 0.7384820506 | I11: ='Material Flows'!M10 -> 0 | J11: ='Material Flows'!Q74 -> -0.8232851857 | K11: ='Material Flows'!T74 -> 0.7384820506 | L11: 0 | M11: 0 | N11: 0 | O11: 0 | P11: 0 | Q11: 0
B12: Rolled aluminum | C12: ='Material Flows'!E11 -> 15.66486902 | D12: ='Material Flows'!O75 -> 0.3914738473 | E12: ='Material Flows'!R75 -> 0.3739761527 | F12: ='Material Flows'!I11 -> 11.61603556 | G12: ='Material Flows'!P75 -> 0.3914738473 | H12: ='Material Flows'!S75 -> 0.3739761527 | I12: ='Material Flows'!M11 -> 263.5074613 | J12: ='Material Flows'!Q75 -> 0.3914738473 | K12: ='Material Flows'!T75 -> 0.3739761527 | L12: 6.132386544 | M12: 4.547374131 | N12: 103.1562797 | O12: 5.858287448 | P12: 4.344120288 | Q12: 98.54550658
B13: Extruded aluminum | C13: ='Material Flows'!E12 -> 10.18216486 | D13: ='Material Flows'!O76 -> 0.1615608434 | E13: ='Material Flows'!R76 -> 0.5698691566 | F13: ='Material Flows'!I12 -> 7.550423114 | G13: ='Material Flows'!P76 -> 0.1615608434 | H13: ='Material Flows'!S76 -> 0.5698691566 | I13: ='Material Flows'!M12 -> 77.23894465 | J13: ='Material Flows'!Q76 -> 0.1615608434 | K13: ='Material Flows'!T76 -> 0.5698691566 | L13: 1.645039143 | M13: 1.219852726 | N13: 12.47878904 | O13: 5.802501704 | P13: 4.302753252 | Q13: 44.01609225
B14: Cast aluminum | C14: ='Material Flows'!E13 -> 50.91082432 | D14: ='Material Flows'!O77 -> -0.6034391566 | E14: ='Material Flows'!R77 -> 0.5698691566 | F14: ='Material Flows'!I13 -> 43.01559907 | G14: ='Material Flows'!P77 -> -0.6034391566 | H14: ='Material Flows'!S77 -> 0.5698691566 | I14: ='Material Flows'!M13 -> 40.48912699 | J14: ='Material Flows'!Q77 -> -0.6034391566 | K14: ='Material Flows'!T77 -> 0.5698691566 | L14: -30.72158489 | M14: -25.95729682 | N14: -24.43272464 | O14: 29.01250852 | P14: 24.51326316 | Q14: 23.07350465
B15: Rolled magnesium | C15: ='Material Flows'!E14 -> 0 | D15: ='Material Flows'!O78 -> 0.03212424118 | E15: ='Material Flows'!R78 -> 0.6798657588 | F15: ='Material Flows'!I14 -> 0 | G15: ='Material Flows'!P78 -> 0.03212424118 | H15: ='Material Flows'!S78 -> 0.6798657588 | I15: ='Material Flows'!M14 -> 0 | J15: ='Material Flows'!Q78 -> 0.03212424118 | K15: ='Material Flows'!T78 -> 0.6798657588 | L15: 0 | M15: 0 | N15: 0 | O15: 0 | P15: 0 | Q15: 0
B16: Cast magnesium | C16: ='Material Flows'!E15 -> 0 | D16: ='Material Flows'!O79 -> 0.3666441176 | E16: ='Material Flows'!R79 -> 0.3951608824 | F16: ='Material Flows'!I15 -> 0 | G16: ='Material Flows'!P79 -> 0.3666441176 | H16: ='Material Flows'!S79 -> 0.3951608824 | I16: ='Material Flows'!M15 -> 0 | J16: ='Material Flows'!Q79 -> 0.3666441176 | K16: ='Material Flows'!T79 -> 0.3951608824 | L16: 0 | M16: 0 | N16: 0 | O16: 0 | P16: 0 | Q16: 0
B17: SMC | C17: ='Material Flows'!E16 -> 0 | D17: ='Material Flows'!O80 -> 0 | E17: ='Material Flows'!R80 -> 0 | F17: ='Material Flows'!I16 -> 0 | G17: ='Material Flows'!P80 -> 0 | H17: ='Material Flows'!S80 -> 0 | I17: ='Material Flows'!M16 -> 0 | J17: ='Material Flows'!Q80 -> 0 | K17: ='Material Flows'!T80 -> 0 | L17: 0 | M17: 0 | N17: 0 | O17: 0 | P17: 0 | Q17: 0
B18: GFRP | C18: ='Material Flows'!E17 -> 0 | D18: ='Material Flows'!O81 -> 0 | E18: ='Material Flows'!R81 -> 0 | F18: ='Material Flows'!I17 -> 0 | G18: ='Material Flows'!P81 -> 0 | H18: ='Material Flows'!S81 -> 0 | I18: ='Material Flows'!M17 -> 0 | J18: ='Material Flows'!Q81 -> 0 | K18: ='Material Flows'!T81 -> 0 | L18: 0 | M18: 0 | N18: 0 | O18: 0 | P18: 0 | Q18: 0
B19: CFRP | C19: ='Material Flows'!E18 -> 0 | D19: ='Material Flows'!O82 -> 0 | E19: ='Material Flows'!R82 -> 0 | F19: ='Material Flows'!I18 -> 0 | G19: ='Material Flows'!P82 -> 0 | H19: ='Material Flows'!S82 -> 0 | I19: ='Material Flows'!M18 -> 0 | J19: ='Material Flows'!Q82 -> 0 | K19: ='Material Flows'!T82 -> 0 | L19: 0 | M19: 0 | N19: 0 | O19: 0 | P19: 0 | Q19: 0
B20: Plastic | C20: ='Material Flows'!E19 -> 101.6468706 | D20: ='Material Flows'!O83 -> 0 | E20: ='Material Flows'!R83 -> 0 | F20: ='Material Flows'!I19 -> 101.6468706 | G20: ='Material Flows'!P83 -> 0 | H20: ='Material Flows'!S83 -> 0 | I20: ='Material Flows'!M19 -> 101.6468706 | J20: ='Material Flows'!Q83 -> 0 | K20: ='Material Flows'!T83 -> 0 | L20: 0 | M20: 0 | N20: 0 | O20: 0 | P20: 0 | Q20: 0
B21: Rubber | C21: ='Material Flows'!E20 -> 24.43719567 | D21: ='Material Flows'!O84 -> 0 | E21: ='Material Flows'!R84 -> 0 | F21: ='Material Flows'!I20 -> 24.43719567 | G21: ='Material Flows'!P84 -> 0 | H21: ='Material Flows'!S84 -> 0 | I21: ='Material Flows'!M20 -> 24.43719567 | J21: ='Material Flows'!Q84 -> 0 | K21: ='Material Flows'!T84 -> 0 | L21: 0 | M21: 0 | N21: 0 | O21: 0 | P21: 0 | Q21: 0
B22: Glass | C22: ='Material Flows'!E21 -> 24.43719567 | D22: ='Material Flows'!O85 -> 0 | E22: ='Material Flows'!R85 -> 0 | F22: ='Material Flows'!I21 -> 24.43719567 | G22: ='Material Flows'!P85 -> 0 | H22: ='Material Flows'!S85 -> 0 | I22: ='Material Flows'!M21 -> 24.43719567 | J22: ='Material Flows'!Q85 -> 0 | K22: ='Material Flows'!T85 -> 0 | L22: 0 | M22: 0 | N22: 0 | O22: 0 | P22: 0 | Q22: 0
B23: Copper | C23: ='Material Flows'!E22 -> 16.29146378 | D23: ='Material Flows'!O86 -> 0 | E23: ='Material Flows'!R86 -> 0 | F23: ='Material Flows'!I22 -> 16.29146378 | G23: ='Material Flows'!P86 -> 0 | H23: ='Material Flows'!S86 -> 0 | I23: ='Material Flows'!M22 -> 16.29146378 | J23: ='Material Flows'!Q86 -> 0 | K23: ='Material Flows'!T86 -> 0 | L23: 0 | M23: 0 | N23: 0 | O23: 0 | P23: 0 | Q23: 0
B24: Stainless steel | C24: ='Material Flows'!E23 -> 0 | D24: ='Material Flows'!O87 -> -0.5845096291 | E24: ='Material Flows'!R87 -> 0.5190988021 | F24: ='Material Flows'!I23 -> 0 | G24: ='Material Flows'!P87 -> -0.5845096291 | H24: ='Material Flows'!S87 -> 0.5190988021 | I24: ='Material Flows'!M23 -> 0 | J24: ='Material Flows'!Q87 -> -0.5845096291 | K24: ='Material Flows'!T87 -> 0.5190988021 | L24: 0 | M24: 0 | N24: 0 | O24: 0 | P24: 0 | Q24: 0
B25: Other | C25: ='Material Flows'!E24 -> 65.16585513 | F25: ='Material Flows'!I24 -> 65.16585513 | I25: ='Material Flows'!M24 -> 65.16585513 | J25: ='Material Flows'!Q88 -> 0 | K25: ='Material Flows'!T88 -> 0 | L25: 0 | M25: 0 | N25: 0 | O25: 0 | P25: 0 | Q25: 0
B26: Battery | C26: ='Material Flows'!E25 -> 354.5136218 | D26: ='Material Flows'!O89 -> 0 | E26: ='Material Flows'!R89 -> 1 | F26: ='Material Flows'!I25 -> 318.0114516 | G26: ='Material Flows'!P89 -> 0 | H26: ='Material Flows'!S89 -> 1 | I26: ='Material Flows'!M25 -> 306.3307571 | J26: ='Material Flows'!Q89 -> 0 | K26: ='Material Flows'!T89 -> 1 | L26: 0 | M26: 0 | N26: 0 | O26: 354.5136218 | P26: 318.0114516 | Q26: 306.3307571
B27: Fuel cell | C27: ='Material Flows'!E26 -> 0 | D27: ='Material Flows'!O90 -> 0 | E27: ='Material Flows'!R90 -> 0 | F27: ='Material Flows'!I26 -> 0 | G27: ='Material Flows'!P90 -> 0 | H27: ='Material Flows'!S90 -> 0 | I27: ='Material Flows'!M26 -> 0 | J27: ='Material Flows'!Q90 -> 0 | K27: ='Material Flows'!T90 -> 0 | L27: 0 | M27: 0 | N27: 0 | O27: 0 | P27: 0 | Q27: 0
B28: Fluids | C28: ='Material Flows'!E27 -> 11.5 | D28: ='Material Flows'!O91 -> 0 | E28: ='Material Flows'!R91 -> 0 | F28: ='Material Flows'!I27 -> 11.5 | G28: ='Material Flows'!P91 -> 0 | H28: ='Material Flows'!S91 -> 0 | I28: ='Material Flows'!M27 -> 11.5 | J28: ='Material Flows'!Q91 -> 0 | K28: ='Material Flows'!T91 -> 0 | L28: 0 | M28: 0 | N28: 0 | O28: 0 | P28: 0 | Q28: 0
B29: Tires | L29: 0 | M29: 0 | N29: 0 | O29: 0 | P29: 0 | Q29: 0

Sheet ED - ES
A1: Selected Parameters
A2: ICEV-G=0, ICEV-D=1, HEV=2, FCV=3, PHEV20=4,PHEV40=5,BEV=6 | F2: Resize: No=0, Yes =1 | H2: Hyzem=0, NEDC=1, US Combined=2, WLTP 3b=3 | K2: Compact / A=0,Midsize / C=1, SUV=2
A3: =IF('Data Input'!H4="ICEV-G",0,IF('Data Input'!H4="HEV",2,IF('Data Input'!H4="FCV",3,IF('Data Input'!H4="ICEV-D",1,IF('Data Input'!H4="BEV",6,IF('Data Input'!H4="PHEV20",4,IF('Data Input'!H4="PHEV40",5))))))) -> 6 | F3: =IF('Data Input'!H9="yes",1,0) -> 1 | H3: =IF('Data Input'!H8="Hyzem",0,IF('Data Input'!H8="NEDC",1,IF('Data Input'!H8="US Combined",2,3))) -> 3 | K3: =IF(OR('Data Input'!H6="Compact",'Data Input'!H6="FSV A-Class"),0,IF('Data Input'!H6="SUV",2,IF(OR('Data Input'!H6="Mid-Size",'Data Input'!H6="FSV C-Class"),1,""))) -> 0
D5: Default fuel energy demand (EDf in MJf/100km) | K5: Baseline electricity demand (EDel in MJel/100km)
A6: Single Mode ED | D6: ICEV-G | E6: ICEV-D | F6: HEV | G6: FCV | H6: PHEV20 | I6: PHEV40 | J6: BEV | K6: PHEV20 | L6: PHEV40 | M6: BEV
A7: 100% x EDf= | B7: =INDIRECT(ADDRESS(7+K3+3*H3,4+A3)) -> 0 | C7: Hyzem: Compact | D7: 184.7501878 | E7: 171.1163523 | F7: 169.8656859 | G7: 104.3082113 | H7: 182.6422578 | I7: 191.6635668 | J7: 0 | K7: 58.62101983 | L7: 61.75482579 | M7: 58.73 | N7: Hyzem: FSV A-Class
A8: 100% x EDel= | B8: =IF(OR('Data Input'!H4="BEV",'Data Input'!H4="PHEV-20",'Data Input'!H4="PHEV-40"),INDIRECT(ADDRESS(7+K3+3*H3,7+A3)),"0") -> 45.61269051 | C8: Hyzem: Midsize | D8: 223.6741721 | E8: 193.4363649 | F8: 210.1413959 | G8: 103.6442832 | H8: 214.8799685 | I8: 222.5195697 | J8: 0 | K8: 69.41195627 | L8: 71.69598498 | M8: 68.95 | N8: Hyzem: FSV C-Class
C9: Hyzem: SUV | D9: 331.9248782 | E9: 274.8705889 | F9: 323.295761 | G9: 150.6748258 | H9: n/a | I9: n/a | J9: n/a | K9: n/a | L9: n/a | M9: n/a
C10: NEDC: Compact | D10: 163.5329671 | E10: 161.5616229 | F10: 122.3333417 | G10: 79.25071263 | H10: 116.9398908 | I10: 125.5880605 | J10: 0 | K10: 38.05266245 | L10: 40.78273631 | M10: 37.74 | N10: NEDC: FSV A-Class
C11: NEDC: Midsize | D11: 233.9729603 | E11: 194.7551942 | F11: 160.9280755 | G11: 88.94094782 | H11: 142.4539086 | I11: 150.3089878 | J11: 0 | K11: 46.35396853 | L11: 48.80723224 | M11: 45.92 | N11: NEDC: FSV C-Class
C12: NEDC: SUV | D12: 324.9913514 | E12: 263.5311816 | F12: 251.3513953 | G12: 120.6563144 | H12: n/a | I12: n/a | J12: n/a | K12: n/a | L12: n/a | M12: n/a
C13: US Combined: Compact | D13: 148.6141719 | E13: 141.8638258 | F13: 121.1966236 | G13: 71.26420708 | H13: 107.9879984 | I13: 115.6481527 | J13: 0 | K13: 35.15604988 | L13: 37.5688044 | M13: 34.78 | N13: SAE J1711: FSV A-Class
C14: US Combined: Midsize | D14: 198.2389923 | E14: 169.1412435 | F14: 163.3937057 | G14: 79.45323089 | H14: 132.804134 | I14: 139.7812111 | J14: 0 | K14: 43.23463309 | L14: 45.40878434 | M14: 42.83 | N14: SAE J1711: FSV C-Class
C15: US Combined: SUV | D15: 285.1135305 | E15: 231.2311319 | F15: 247.9210787 | G15: 109.2692258 | H15: n/a | I15: n/a | J15: n/a | K15: n/a | L15: n/a | M15: n/a
C16: WLTP 3b: Compact | D16: 167.5986801 | E16: 143.6615258 | H16: 142.3970229 | I16: 149.8023068 | J16: 0 | K16: 46.61597326 | L16: 48.74457446 | M16: 45.61269051 | N16: WLTP 3b: FSV A-Class
C17: WLTP 3b: Midsize | D17: 220.2748129 | E17: 169.0732573 | H17: 170.3416436 | I17: 177.0574809 | J17: 0 | K17: 55.76384089 | L17: 57.6145983 | M17: 54.4950509 | N17: WLTP 3b: FSV C-Class
C18: WLTP 3b: SUV | D18: 326.1984041 | E18: 232.5150263 | H18: n/a | I18: n/a | J18: n/a | K18: n/a | L18: n/a | M18: n/a | R18: Energy Savings (MJ/100km/100kg) | T18: Fuel Reduction Value (l/100km/100kg) | V18: GHG Reduction Value (gCO2e/km/100kg)
K19: Electricity savings (ESel in MJel/100km·100kg)
D20: Energy savings (ESf in MJf/100km·100kg) without powertrain resizing | K20: without powertrain resizing | R20: ICEV-G | S20: ICEV-D | T20: ICEV-G | U20: ICEV-D | V20: ICEV-G | W20: ICEV-D
A21: Single Mode ES | D21: ICEV-G | E21: ICEV-D | F21: HEV | G21: FCV | H21: PHEV20 | I21: PHEV40 | J21: BEV | K21: PHEV20 | L21: PHEV40 | M21: BEV | Q21: No Powertrain Resizing
A22: 100% x ESf= | B22: =INDIRECT(ADDRESS(22+K3+3*H3+15*F3,4+A3)) -> 0 | C22: Hyzem: Compact / A | D22: 5.495215577 | E22: 4.771962016 | F22: 3.449222227 | G22: 3.350264619 | H22: 4.659621382 | I22: 4.853660312 | J22: 0 | K22: 1.45629469 | L22: 1.529923608 | M22: 1.45 | N22: Hyzem: FSV A-Class | Q22: Hyzem: Compact / A | R22: 5.5 | S22: 4.77 | T22: =R22/'Use '!J$4 -> 0.1725490196 | U22: =S22/'Use '!J$6 -> 0.1326769025 | V22: =R22*('LCA Calculations'!E$95+'LCA Calculations'!E$106)/100 -> 4.949140353 | W22: =S22*('LCA Calculations'!E$91+'LCA Calculations'!E$104)/100 -> 4.354011311
A23: 100% x ESel= | B23: =IF(OR('Data Input'!H4="BEV",'Data Input'!H4="PHEV-20",'Data Input'!H4="PHEV-40"),INDIRECT(ADDRESS(22+K3+3*H3+15*F3,7+A3)),"0") -> 2.262321404 | C23: Hyzem: Midsize / C | D23: 5.352794088 | E23: 4.611985684 | F23: 4.086327971 | G23: 2.689407352 | H23: 5.045793134 | I23: 4.994783915 | J23: 0 | K23: 1.715916887 | L23: 1.577856286 | M23: 1.558232932 | N23: Hyzem: FSV C-Class | Q23: Hyzem: Midsize / C | R23: 5.35 | S23: 4.61 | T23: =R23/'Use '!J$4 -> 0.1678431373 | U23: =S23/'Use '!J$6 -> 0.1282265243 | V23: =R23*('LCA Calculations'!E$95+'LCA Calculations'!E$106)/100 -> 4.814163798 | W23: =S23*('LCA Calculations'!E$91+'LCA Calculations'!E$104)/100 -> 4.20796481
C24: Hyzem: SUV | D24: 4.899376464 | E24: 4.64938374 | F24: 2.655751875 | G24: 2.639667685 | H24: n/a | I24: n/a | J24: n/a | K24: n/a | L24: n/a | M24: n/a | Q24: Hyzem: SUV | R24: 4.9 | S24: 4.65 | T24: =R24/'Use '!J$4 -> 0.1537254902 | U24: =S24/'Use '!J$6 -> 0.1293391188 | V24: =R24*('LCA Calculations'!E$95+'LCA Calculations'!E$106)/100 -> 4.409234132 | W24: =S24*('LCA Calculations'!E$91+'LCA Calculations'!E$104)/100 -> 4.244476435
C25: NEDC: Compact / A | D25: 5.684605338 | E25: 4.937930586 | F25: 2.574808233 | G25: 2.629894957 | H25: 4.906307523 | I25: 4.916603423 | J25: 0 | K25: 1.596462703 | L25: 1.596818674 | M25: 1.59375 | N25: NEDC: FSV A-Class | Q25: NEDC: Compact / A | R25: 5.68 | S25: 4.94 | T25: =R25/'Use '!J$4 -> 0.1781960784 | U25: =S25/'Use '!J$6 -> 0.1374054295 | V25: =R25*('LCA Calculations'!E$95+'LCA Calculations'!E$106)/100 -> 5.111112219 | W25: =S25*('LCA Calculations'!E$91+'LCA Calculations'!E$104)/100 -> 4.509185718
C26: NEDC: Midsize / C | D26: 4.636733706 | E26: 5.108351022 | F26: 3.165548625 | G26: 2.137126604 | H26: 5.110540648 | I26: 5.042907122 | J26: 0 | K26: 1.662763743 | L26: 1.636590308 | M26: 1.654618474 | N26: NEDC: FSV C-Class | Q26: NEDC: Midsize / C | R26: 4.64 | S26: 5.11 | T26: =R26/'Use '!J$4 -> 0.1455686275 | U26: =S26/'Use '!J$6 -> 0.1421339564 | V26: =R26*('LCA Calculations'!E$95+'LCA Calculations'!E$106)/100 -> 4.17527477 | W26: =S26*('LCA Calculations'!E$91+'LCA Calculations'!E$104)/100 -> 4.664360126
C27: NEDC: SUV | D27: 5.30791743 | E27: 5.145311185 | F27: 2.647160885 | G27: 2.069083585 | H27: n/a | I27: n/a | J27: n/a | K27: n/a | L27: n/a | M27: n/a | Q27: NEDC: SUV | R27: 5.31 | S27: 5.15 | T27: =R27/'Use '!J$4 -> 0.1665882353 | U27: =S27/'Use '!J$6 -> 0.143246551 | V27: =R27*('LCA Calculations'!E$95+'LCA Calculations'!E$106)/100 -> 4.77817005 | W27: =S27*('LCA Calculations'!E$91+'LCA Calculations'!E$104)/100 -> 4.700871751
C28: US Combined: Compact | D28: 4.992329939 | E28: 4.339604431 | F28: 2.993999216 | G28: 2.472505351 | H28: 4.2826193 | I28: 4.297932117 | J28: 0 | K28: 1.393957111 | L28: 1.395674975 | M28: 1.3928125 | N28: SAE J1711: FSV A-Class | Q28: SAE J1711: Compact / A | R28: 4.99 | S28: 4.34 | T28: =R28/'Use '!J$4 -> 0.1565490196 | U28: =S28/'Use '!J$6 -> 0.1207165109 | V28: =R28*('LCA Calculations'!E$95+'LCA Calculations'!E$106)/100 -> 4.490220066 | W28: =S28*('LCA Calculations'!E$91+'LCA Calculations'!E$104)/100 -> 3.961511339
C29: US Combined: Midsize | D29: 4.634951832 | E29: 4.470020551 | F29: 3.328729402 | G29: 1.953222997 | H29: 4.447692808 | I29: 4.425348999 | J29: 0 | K29: 1.441138318 | L29: 1.437327083 | M29: 1.446385542 | N29: SAE J1711: FSV C-Class | Q29: SAE J1711: Midsize / C | R29: 4.63 | S29: 4.47 | T29: =R29/'Use '!J$4 -> 0.145254902 | U29: =S29/'Use '!J$6 -> 0.1243324433 | V29: =R29*('LCA Calculations'!E$95+'LCA Calculations'!E$106)/100 -> 4.166276333 | W29: =S29*('LCA Calculations'!E$91+'LCA Calculations'!E$104)/100 -> 4.080174122
C30: US Combined: SUV | D30: 4.775310875 | E30: 4.311131424 | F30: 2.926735024 | G30: 1.905951868 | H30: n/a | I30: n/a | J30: n/a | K30: n/a | L30: n/a | M30: n/a | Q30: SAE J1711: SUV | R30: 4.78 | S30: 4.31 | T30: =R30/'Use '!J$4 -> 0.1499607843 | U30: =S30/'Use '!J$6 -> 0.119882065 | V30: =R30*('LCA Calculations'!E$95+'LCA Calculations'!E$106)/100 -> 4.301252888 | W30: =S30*('LCA Calculations'!E$91+'LCA Calculations'!E$104)/100 -> 3.934127621
C31: WLTP 3b: Compact | D31: 5.82294016 | E31: 4.403964267 | H31: 4.464383137 | I31: 4.507449879 | J31: 0 | K31: 1.882979128 | L31: 1.466715677 | M31: 1.465482605 | N31: WLTP 3b: FSV A-Class | Q31: WLTP 3b: Compact | R31: 6.49 | S31: 5.64 | T31: =R31/'Use '!J$4 -> 0.2036078431 | U31: =S31/'Use '!J$6 -> 0.1568758344 | V31: =R31*('LCA Calculations'!E$95+'LCA Calculations'!E$106)/100 -> 5.839985616 | W31: =S31*('LCA Calculations'!E$91+'LCA Calculations'!E$104)/100 -> 5.14813916
C32: WLTP 3b: Midsize | D32: 5.233121883 | E32: 4.487759264 | H32: 4.894936862 | I32: 4.91727219 | J32: 0 | K32: 1.884005338 | L32: 1.584825913 | M32: 1.600268044 | N32: WLTP 3b: FSV C-Class | Q32: WLTP 3b: Midsize | R32: 6.04 | S32: 5.79 | T32: =R32/'Use '!J$4 -> 0.1894901961 | U32: =S32/'Use '!J$6 -> 0.1610480641 | V32: =R32*('LCA Calculations'!E$95+'LCA Calculations'!E$106)/100 -> 5.435055951 | W32: =S32*('LCA Calculations'!E$91+'LCA Calculations'!E$104)/100 -> 5.285057755
C33: WLTP 3b: SUV | D33: 5.265798411 | E33: 4.453098934 | H33: n/a | I33: n/a | J33: n/a | K33: n/a | L33: n/a | M33: n/a | Q33: WLTP 3b: SUV | R33: 6.25 | S33: 5.71 | T33: =R33/'Use '!J$4 -> 0.1960784314 | U33: =S33/'Use '!J$6 -> 0.1588228749 | V33: =R33*('LCA Calculations'!E$95+'LCA Calculations'!E$106)/100 -> 5.624023128 | W33: =S33*('LCA Calculations'!E$91+'LCA Calculations'!E$104)/100 -> 5.212034504
K34: Electricity savings ((ESel in MJel/100km·100kg) | Q34: With Powertrain Resizing
D35: Energy savings (ESf in MJf/100km·100kg) with powertrain resizing | K35: with powertrain resizing
D36: ICEV-G | E36: ICEV-D | F36: HEV | G36: FCV | H36: PHEV20 | I36: PHEV40 | J36: BEV | K36: PHEV20 | L36: PHEV40 | M36: BEV
C37: Hyzem: Compact / A | D37: 7.117575067 | E37: 7.013907537 | F37: 5.727713627 | G37: 1.738567169 | H37: 7.862491437 | I37: 7.805636139 | J37: 0 | K37: 2.500515771 | L37: 2.491674808 | M37: 2.4875 | N37: Hyzem: FSV A-Class | Q37: Hyzem: Compact / A | R37: 7.12 | S37: 7.01 | T37: =R37/'Use '!J$4 -> 0.223372549 | U37: =S37/'Use '!J$6 -> 0.1949821985 | V37: =R37*('LCA Calculations'!E$95+'LCA Calculations'!E$106)/100 -> 6.406887148 | W37: =S37*('LCA Calculations'!E$91+'LCA Calculations'!E$104)/100 -> 6.398662325
C38: Hyzem: Midsize / C | D38: 8.965519784 | E38: 6.787437896 | F38: 6.569465618 | G38: 2.704380157 | H38: 7.882824857 | I38: 7.665426119 | J38: 0 | K38: 2.64057085 | L38: 2.44808884 | M38: 2.493975904 | N38: Hyzem: FSV C-Class | Q38: Hyzem: Midsize / C | R38: 8.97 | S38: 6.79 | T38: =R38/'Use '!J$4 -> 0.2814117647 | U38: =S38/'Use '!J$6 -> 0.1888629283 | V38: =R38*('LCA Calculations'!E$95+'LCA Calculations'!E$106)/100 -> 8.071597994 | W38: =S38*('LCA Calculations'!E$91+'LCA Calculations'!E$104)/100 -> 6.197848386
C39: Hyzem: SUV | D39: 9.230673412 | E39: 6.91848895 | F39: 5.521309036 | G39: 2.622123838 | H39: n/a | I39: n/a | J39: n/a | K39: n/a | L39: n/a | M39: n/a | Q39: Hyzem: SUV | R39: 9.23 | S39: 6.92 | T39: =R39/'Use '!J$4 -> 0.2895686275 | U39: =S39/'Use '!J$6 -> 0.1924788607 | V39: =R39*('LCA Calculations'!E$95+'LCA Calculations'!E$106)/100 -> 8.305557356 | W39: =S39*('LCA Calculations'!E$91+'LCA Calculations'!E$104)/100 -> 6.316511168
C40: NEDC: Compact / A | D40: 8.115680215 | E40: 8.297554218 | F40: 4.752453975 | G40: 2.609271651 | H40: 6.937132772 | I40: 6.714072234 | J40: 0 | K40: 2.257429625 | L40: 2.180728615 | M40: 2.25 | N40: NEDC: FSV A-Class | Q40: NEDC: Compact / A | R40: 8.12 | S40: 8.3 | T40: =R40/'Use '!J$4 -> 0.254745098 | U40: =S40/'Use '!J$6 -> 0.2308633734 | V40: =R40*('LCA Calculations'!E$95+'LCA Calculations'!E$106)/100 -> 7.306730848 | W40: =S40*('LCA Calculations'!E$91+'LCA Calculations'!E$104)/100 -> 7.576162239
C41: NEDC: Midsize / C | D41: 10.85127148 | E41: 8.352701375 | F41: 5.229147431 | G41: 2.907724768 | H41: 7.047891976 | I41: 6.881595965 | J41: 0 | K41: 2.29332134 | L41: 2.23406246 | M41: 2.281124498 | N41: NEDC: FSV C-Class | Q41: NEDC: Midsize / C | R41: 10.85 | S41: 8.35 | T41: =R41/'Use '!J$4 -> 0.3403921569 | U41: =S41/'Use '!J$6 -> 0.2322541166 | V41: =R41*('LCA Calculations'!E$95+'LCA Calculations'!E$106)/100 -> 9.76330415 | W41: =S41*('LCA Calculations'!E$91+'LCA Calculations'!E$104)/100 -> 7.621801771
C42: NEDC: SUV | D42: 11.95526856 | E42: 8.283024859 | F42: 5.439613498 | G42: 2.914462339 | H42: n/a | I42: n/a | J42: n/a | K42: n/a | L42: n/a | M42: n/a | Q42: NEDC: SUV | R42: 11.96 | S42: 8.28 | T42: =R42/'Use '!J$4 -> 0.3752156863 | U42: =S42/'Use '!J$6 -> 0.2303070761 | V42: =R42*('LCA Calculations'!E$95+'LCA Calculations'!E$106)/100 -> 10.76213066 | W42: =S42*('LCA Calculations'!E$91+'LCA Calculations'!E$104)/100 -> 7.557906426
C43: US Combined: Compact | D43: 7.202400225 | E43: 6.957878978 | F43: 4.998149454 | G43: 2.611313007 | H43: 6.042279466 | I43: 5.903606024 | J43: 0 | K43: 1.966743434 | L43: 1.917413211 | M43: 1.9646875 | N43: SAE J1711: FSV A-Class | Q43: SAE J1711: Compact / A | R43: 7.2 | S43: 6.96 | T43: =R43/'Use '!J$4 -> 0.2258823529 | U43: =S43/'Use '!J$6 -> 0.1935914553 | V43: =R43*('LCA Calculations'!E$95+'LCA Calculations'!E$106)/100 -> 6.478874644 | W43: =S43*('LCA Calculations'!E$91+'LCA Calculations'!E$104)/100 -> 6.353022793
C44: US Combined: Midsize | D44: 8.728036663 | E44: 7.271781329 | F44: 6.324499378 | G44: 2.655214126 | H44: 6.394911137 | I44: 6.203784341 | J44: 0 | K44: 2.081593556 | L44: 2.014960029 | M44: 2.078514056 | N44: SAE J1711: FSV C-Class | Q44: SAE J1711: Midsize / C | R44: 8.73 | S44: 7.27 | T44: =R44/'Use '!J$4 -> 0.2738823529 | U44: =S44/'Use '!J$6 -> 0.2022140632 | V44: =R44*('LCA Calculations'!E$95+'LCA Calculations'!E$106)/100 -> 7.855635505 | W44: =S44*('LCA Calculations'!E$91+'LCA Calculations'!E$104)/100 -> 6.635987889
C45: US Combined: SUV | D45: 9.766175099 | E45: 7.11188756 | F45: 6.408723916 | G45: 2.687497873 | H45: n/a | I45: n/a | J45: n/a | K45: n/a | L45: n/a | M45: n/a | Q45: SAE J1711: SUV | R45: 9.77 | S45: 7.11 | T45: =R45/'Use '!J$4 -> 0.3065098039 | U45: =S45/'Use '!J$6 -> 0.1977636849 | V45: =R45*('LCA Calculations'!E$95+'LCA Calculations'!E$106)/100 -> 8.791472954 | W45: =S45*('LCA Calculations'!E$91+'LCA Calculations'!E$104)/100 -> 6.489941388
C46: WLTP 3b: Compact | D46: 7.768349864 | E46: 6.783533265 | H46: 7.001988518 | I46: 6.764037054 | J46: 0 | K46: 2.292188319 | L46: 2.201033104 | M46: 2.262321404 | N46: WLTP 3b: FSV A-Class | Q46: WLTP 3b: Compact | R46: 9 | S46: 8.85 | T46: =R46/'Use '!J$4 -> 0.2823529412 | U46: =S46/'Use '!J$6 -> 0.2461615487 | V46: =R46*('LCA Calculations'!E$95+'LCA Calculations'!E$106)/100 -> 8.098593305 | W46: =S46*('LCA Calculations'!E$91+'LCA Calculations'!E$104)/100 -> 8.078197086
C47: WLTP 3b: Midsize | D47: 9.328392566 | E47: 7.03757205 | H47: 7.148137588 | I47: 7.015010814 | J47: 0 | K47: 2.33992193 | L47: 2.282903614 | M47: 2.325373072 | N47: WLTP 3b: FSV C-Class | Q47: WLTP 3b: Midsize | R47: 10.65 | S47: 9.22 | T47: =R47/'Use '!J$4 -> 0.3341176471 | U47: =S47/'Use '!J$6 -> 0.2564530485 | V47: =R47*('LCA Calculations'!E$95+'LCA Calculations'!E$106)/100 -> 9.58333541 | W47: =S47*('LCA Calculations'!E$91+'LCA Calculations'!E$104)/100 -> 8.41592962
C48: WLTP 3b: SUV | D48: 10.26360131 | E48: 6.827539629 | H48: n/a | I48: n/a | J48: n/a | K48: n/a | L48: n/a | M48: n/a | Q48: WLTP 3b: SUV | R48: 11.91 | S48: 8.94 | T48: =R48/'Use '!J$4 -> 0.3736470588 | U48: =S48/'Use '!J$6 -> 0.2486648865 | V48: =R48*('LCA Calculations'!E$95+'LCA Calculations'!E$106)/100 -> 10.71713847 | W48: =S48*('LCA Calculations'!E$91+'LCA Calculations'!E$104)/100 -> 8.160348243
D50: Default Vehicle Mass VMb in kg
A51: Value from look-up table to the right | D51: Vehicle | E51: ICEV-G | F51: ICEV-D | G51: HEV | H51: FCV | I51: PHEV20 | J51: PHEV40 | K51: BEV | L51: Vehicle
A52: Default VM= | B52: =INDIRECT(ADDRESS(52+K3,5+A3)) -> 1063.33 | D52: Compact | E52: 1260 | F52: 1350 | G52: 1335 | H52: 1335 | I52: =1107-3.6*1.3 -> 1102.32 | J52: =1268-8.3*1.3 -> 1257.21 | K52: =1097-25.9*1.3 -> 1063.33 | L52: FSV A-Class
A53: VMb= | B53: =CW -> 1063.33 | D53: Mid-Size | E53: 1640 | F53: 1740 | G53: 1752 | H53: 1752 | I53: =1349-5.1*1.3 -> 1342.37 | J53: =1512-11*1.3 -> 1497.7 | K53: =1334-42.2*1.3 -> 1279.14 | L53: FSV C-Class
D54: SUV | E54: 2195 | F54: 2320 | G54: 2345 | H54: 2345
A55: Value from look-up table to the right
A56: Default ∆M= | B56: =INDIRECT(ADDRESS(58+K3,5+A3)) -> 280.71912 | D56: Removed Mass ∆M in kg
D57: Vehicle | E57: ICEV-G | F57: ICEV-D | G57: HEV | H57: FCV | I57: PHEV20 | J57: PHEV40 | K57: BEV | L57: Vehicle
A58: Baseline Battery Size in kWh | D58: Compact | E58: 360 | F58: 360 | G58: 360 | H58: 360 | I58: =I52*0.262 -> 288.80784 | J58: =J52*0.229 -> 287.90109 | K58: =K52*0.264 -> 280.71912 | L58: FSV A-Class
A59: BSb= | B59: =0.0623*IF(K3=0,2.03,2.26)*B53*IF(A3=6,145,IF(A3=5,40,IF(A3=4,20,0)))*1.609/1000 -> 31.37445553 | D59: Mid-Size | E59: 400 | F59: 400 | G59: 400 | H59: 400 | I59: =I53*0.267 -> 358.41279 | J59: =J53*0.238 -> 356.4526 | K59: =K53*0.27 -> 345.3678 | L59: FSV C-Class
A60: Battery Mass in kg | D60: SUV | E60: 540 | F60: 540 | G60: 540 | H60: 540
A61: BMb= | B61: =B59/B70 -> 177.2568109
D62: Default Battery Size BSb in kWh
A63: Frontal Area in m2 | D63: Vehicle | E63: ICEV-G | F63: ICEV-D | G63: HEV | H63: FCV | I63: PHEV20 | J63: PHEV40 | K63: BEV | L63: Vehicle
A64: FA= | B64: =INDIRECT(ADDRESS(70+K3,5+A3)) -> 2.03 | D64: Compact | E64: 0 | F64: 0 | G64: 0 | H64: 0 | I64: =14*331/1000 -> 4.634 | J64: =31*331/1000 -> 10.261 | K64: =95*331/1000 -> 31.445 | L64: FSV A-Class
A65: Battery Constant in Wh/kg•km | D65: Mid-Size | E65: 0 | F65: 0 | G65: 0 | H65: 0 | I65: =17*331/1000 -> 5.627 | J65: =36*331/1000 -> 11.916 | K65: =117*331/1000 -> 38.727 | L65: FSV C-Class
A66: BC= | B66: =0.0623*B64 -> 0.126469 | D66: SUV | E66: 0 | F66: 0 | G66: 0 | H66: 0
A67: Battery Range in km
A68: BR= | B68: =1000*B59/(B66*B53) -> 233.305 | D68: Frontal Area FA in m2
A69: Battery Energy Density in kWh/kg | D69: Vehicle | E69: ICEV-G | F69: ICEV-D | G69: HEV | H69: FCV | I69: PHEV20 | J69: PHEV40 | K69: BEV | L69: Vehicle
A70: BED= | B70: ='Expert Data Input'!B28 -> 0.177 | D70: Compact | E70: 2.16 | F70: 2.16 | G70: 2.16 | H70: 2.16 | I70: 2.03 | J70: 2.03 | K70: 2.03 | L70: FSV A-Class
A71: Battery Mass Reduction Factor | D71: Mid-Size | E71: 2.24 | F71: 2.24 | G71: 2.24 | H71: 2.24 | I71: 2.26 | J71: 2.26 | K71: 2.26 | L71: FSV C-Class
A72: BMRF= | B72: =(B66*B68)/(1000*B70-B66*B68) -> 0.2000475955 | D72: SUV | E72: 2.78 | F72: 2.78 | G72: 2.78 | H72: 2.78
A74: Data Sources:
A75: Malen & Geyer ICEV Powertrain Model 2016 | D75: Hyzem, NEDC, SAE J1711, WLTP 3b for ICEV-G, ICEV-D, PHEV20, PHEV40, BEV
A76: FKA Spreadsheet 11cc0042 | D76: Hyzem, NEDC for HEV, FCV
A77: FKA Spreadsheet 11cc0022 | D77: UDDS/HFEDS for HEV,FCV

Sheet LCA Calculations
B1: Unit | C1: Total energy | D1: Fossil energy | E1: GHG emissions | F1: Baseline | G1: Contender 1 | H1: Contender 2 | I1: Baseline | J1: Contender 1 | K1: Contender 2 | L1: Baseline | M1: Contender 1 | N1: Contender 2 | O1: Baseline | P1: Contender 1 | Q1: Contender 2
C2: MJ/unit | D2: MJ/unit | E2: kgCO2eq/unit | F2: Activity level | G2: Activity level | H2: Activity level | I2: kgCO2eq | J2: kgCO2eq | K2: kgCO2eq | L2: Total MJ | M2: Total MJ | N2: Total MJ | O2: Fossil MJ | P2: Fossil MJ | Q2: Fossil MJ | R2: Source
A3: Aluminum, primary ingot, RoW | B3: kg | C3: 169.523991 | D3: 121.3381857 | E3: 12.3034635 | F3: =IF('Expert Data Input'!D15="Global",0,SUM('Material Flows'!C11:C13)) -> 0 | G3: =IF('Expert Data Input'!D15="Global",0,SUM('Material Flows'!G11:G13)) -> 0 | H3: =IF('Expert Data Input'!D15="Global",0,SUM('Material Flows'!K11:K13)) -> 0 | I3: =$E3*F3 -> 0 | J3: =$E3*G3 -> 0 | K3: =$E3*H3 -> 0 | L3: =$C3*F3 -> 0 | M3: =$C3*G3 -> 0 | N3: 0 | O3: =$D3*F3 -> 0 | P3: =$D3*G3 -> 0 | Q3: 0 | R3: IAI 2019 Report; GREET 2 2023: Primary Aluminum: Production in Various Geographies
A4: Aluminum, primary ingot, GLO | B4: kg | C4: 191.0785548 | D4: 161.64 | E4: 16.8 | F4: =IF('Expert Data Input'!D15="Global",SUM('Material Flows'!C11:C13),0) -> 33.48365753 | G4: =IF('Expert Data Input'!D15="Global",SUM('Material Flows'!G11:G13),0) -> 25.61879853 | H4: =IF('Expert Data Input'!D15="Global",SUM('Material Flows'!K11:K13),0) -> 346.819775 | I4: =$E4*F4 -> 562.5254466 | J4: =$E4*G4 -> 430.3958154 | K4: =$E4*H4 -> 5826.57222 | L4: =$C4*F4 -> 6398.00889 | M4: =$C4*G4 -> 4895.202999 | N4: =$C4*H4 -> 66269.82138 | O4: =$D4*F4 -> 5412.298404 | P4: =$D4*G4 -> 4141.022595 | Q4: =$D4*H4 -> 56059.94843 | R4: IAI 2019 Report; GREET 2 2023: Primary Aluminum: Production in Various Geographies
A5: Aluminum, secondary ingot | B5: kg | C5: 8.413298641 | D5: 7.857201071 | E5: 0.5275633106 | F5: =SUM('Material Flows'!D11:D13) -> 43.27420067 | G5: =SUM('Material Flows'!H11:H13) -> 36.56325921 | H5: =SUM('Material Flows'!L11:L13) -> 34.41575794 | I5: =$E5*F5 -> 22.82988057 | J5: 19.28943408 | K5: 18.1564912 | L5: =$C5*F5 -> 364.0787737 | M5: =$C5*G5 -> 307.617619 | N5: =$C5*H5 -> 289.5500495 | O5: =$D5*F5 -> 340.0140958 | P5: =$D5*G5 -> 287.2848794 | Q5: =$D5*H5 -> 270.4115301 | R5: GREET 2 2023: 100% Recycled Al
A6: Battery | B6: kg | C6: 172.0201934 | D6: 154.8017979 | E6: 11.93863453 | F6: ='Material Flows'!C25 -> 354.5136218 | G6: ='Material Flows'!G25 -> 318.0114516 | H6: ='Material Flows'!K25 -> 306.3307571 | I6: =$E6*F6 -> 4232.408565 | J6: =$E6*G6 -> 3796.622495 | K6: =$E6*H6 -> 3657.170953 | L6: =$C6*F6 -> 60983.50178 | M6: 54704.3914 | N6: 52695.07608 | O6: 54879.34604 | P6: 49228.74446 | Q6: 47420.55196 | R6: GREET 2 2023: EV: Conventional Material, Li-Ion
A7: CFRP, primary | B7: kg | C7: 404.8896827 | D7: 358.0176688 | E7: 18.79061714 | F7: ='Material Flows'!C18 -> 0 | G7: ='Material Flows'!G18 -> 0 | H7: ='Material Flows'!K18 -> 0 | I7: =$E7*F7 -> 0 | J7: 0 | K7: 0 | L7: 0 | M7: 0 | N7: 0 | O7: 0 | P7: 0 | Q7: 0 | R7: GREET 2 2023: Carbon Fiber
A8: CFRP, secondary | B8: kg | F8: ='Material Flows'!D18 -> 0 | G8: ='Material Flows'!H18 -> 0 | H8: ='Material Flows'!L18 -> 0 | I8: 0 | J8: 0 | K8: 0 | L8: 0 | M8: 0 | N8: 0 | O8: 0 | P8: 0 | Q8: 0
A9: Copper | B9: kg | C9: 37.07947701 | D9: 29.44448144 | E9: 2.326584339 | F9: ='Material Flows'!C22 -> 16.29146378 | G9: ='Material Flows'!G22 -> 16.29146378 | H9: ='Material Flows'!K22 -> 16.29146378 | I9: 37.9034645 | J9: 37.9034645 | K9: 37.9034645 | L9: 604.0789568 | M9: 604.0789568 | N9: 604.0789568 | O9: 479.6937029 | P9: 479.6937029 | Q9: 479.6937029 | R9: GREET 2 2023: Final Copper Product - US Consumption Mix
A10: GFRP, primary | B10: kg | C10: 85.65864222 | D10: 79.74591534 | E10: 4.636826013 | F10: ='Material Flows'!C17 -> 0 | G10: ='Material Flows'!G17 -> 0 | H10: ='Material Flows'!K17 -> 0 | I10: 0 | J10: 0 | K10: 0 | L10: 0 | M10: 0 | N10: 0 | O10: 0 | P10: 0 | Q10: 0 | R10: GREET 2 2023: Final Glass Fiber-Reinforced Plastic Product: Combined
A11: GFRP, secondary | B11: kg | F11: ='Material Flows'!D17 -> 0 | G11: ='Material Flows'!H17 -> 0 | H11: ='Material Flows'!L17 -> 0 | I11: 0 | J11: 0 | K11: 0 | L11: 0 | M11: 0 | N11: 0 | O11: 0 | P11: 0 | Q11: 0
A12: Glass | B12: kg | C12: 14.94973702 | D12: 13.90816934 | E12: 1.226885351 | F12: ='Material Flows'!C21 -> 24.43719567 | G12: ='Material Flows'!G21 -> 24.43719567 | H12: ='Material Flows'!K21 -> 24.43719567 | I12: =$E12*F12 -> 29.98163739 | J12: 29.98163739 | K12: 29.98163739 | L12: 365.3296488 | M12: 365.3296488 | N12: 365.3296488 | O12: 339.8766556 | P12: 339.8766556 | Q12: 339.8766556 | R12: GREET 2 2023: Final Flat Glass Product
A13: Magnesium, electrolytic | B13: kg | C13: 243.597012 | D13: 217.4552311 | E13: 18.11079357 | F13: =(1-'Expert Data Input'!D14)*SUM('Material Flows'!C14:C15) -> 0 | G13: =(1-'Expert Data Input'!D14)*SUM('Material Flows'!G14:G15) -> 0 | H13: =(1-'Expert Data Input'!D14)*SUM('Material Flows'!K14:K15) -> 0 | I13: 0 | J13: 0 | K13: 0 | L13: 0 | M13: 0 | N13: 0 | O13: 0 | P13: 0 | Q13: 0 | R13: GREET 2 2023: Magnesium via Electrolytic production
A14: Magnesium, Pidgeon | B14: kg | C14: 322.7904131 | D14: 303.3278507 | E14: 30.21490612 | F14: ='Expert Data Input'!D14*SUM('Material Flows'!C14:C15) -> 0 | G14: ='Expert Data Input'!D14*SUM('Material Flows'!G14:G15) -> 0 | H14: ='Expert Data Input'!D14*SUM('Material Flows'!K14:K15) -> 0 | I14: 0 | J14: 0 | K14: 0 | L14: 0 | M14: 0 | N14: 0 | O14: 0 | P14: 0 | Q14: 0 | R14: GREET 2 2023: Magnesium via Thermal production
A15: Magnesium, secondary | B15: kg | C15: 3.340317244 | D15: 3.284648817 | E15: 6.040849792 | F15: =SUM('Material Flows'!D14:D15) -> 0 | G15: =SUM('Material Flows'!H14:H15) -> 0 | H15: =SUM('Material Flows'!L14:L15) -> 0 | I15: 0 | J15: 0 | K15: 0 | L15: 0 | M15: 0 | N15: 0 | O15: 0 | P15: 0 | Q15: 0 | R15: GREET 2 2023: Recycled Magnesium
A16: Rubber | B16: kg | C16: 54.76534467 | D16: 53.34196603 | E16: 3.863586612 | F16: ='Material Flows'!C20 -> 24.43719567 | G16: ='Material Flows'!G20 -> 24.43719567 | H16: ='Material Flows'!K20 -> 24.43719567 | I16: 94.41522203 | J16: 94.41522203 | K16: 94.41522203 | L16: 1338.311444 | M16: 1338.311444 | N16: 1338.311444 | O16: 1303.528061 | P16: 1303.528061 | Q16: 1303.528061 | R16: GREET 2 2023: Final Average Rubber Product: Combined
A17: SMC, primary | B17: kg | C17: 59.70655692 | D17: 56.11624957 | E17: 3.197610549 | F17: ='Material Flows'!C16 -> 0 | G17: ='Material Flows'!G16 -> 0 | H17: ='Material Flows'!K16 -> 0 | I17: 0 | J17: 0 | K17: 0 | L17: 0 | M17: 0 | N17: 0 | O17: 0 | P17: 0 | Q17: 0 | R17: GREET 2 2023: Final Glass Fiber-Reinforced Plastic Product: SMC
A18: SMC, secondary | B18: kg | F18: ='Material Flows'!D16 -> 0 | G18: ='Material Flows'!H16 -> 0 | H18: ='Material Flows'!L16 -> 0 | I18: 0 | J18: 0 | K18: 0 | L18: 0 | M18: 0 | N18: 0 | O18: 0 | P18: 0 | Q18: 0
A19: Stainless steel, EAF | B19: kg | C19: 4.412253483 | D19: 3.631128941 | E19: 0.2865604859 | F19: ='Material Flows'!D23 -> 0 | G19: ='Material Flows'!H23 -> 0 | H19: ='Material Flows'!L23 -> 0 | I19: 0 | J19: 0 | K19: 0 | L19: 0 | M19: 0 | N19: 0 | O19: 0 | P19: 0 | Q19: 0 | R19: Eurofer 2019: Cold rolled coil - 430 Stab. (without recycling potential)
A20: Steel, BF/BOF slab | B20: kg | C20: 23.72 | D20: 22.89 | E20: 2.13 | F20: =SUM('Material Flows'!C5:C10) -> 587.2332172 | G20: =SUM('Material Flows'!G5:G10) -> 464.9800405 | H20: =SUM('Material Flows'!K5:K10) -> 129.7156643 | I20: 1250.806753 | J20: 990.4074862 | K20: 276.2943649 | L20: 13929.17191 | M20: 11029.32656 | N20: 3076.855556 | O20: 13441.76834 | P20: 10643.39313 | Q20: 2969.191555 | R20: WSA 2024
A21: Steel, EAF slab | B21: kg | C21: 7.48 | D21: 5.98 | E21: 0.44 | F21: =SUM('Material Flows'!D5:D10) -> 269.919934 | G21: =SUM('Material Flows'!H5:H10) -> 250.8778204 | H21: =SUM('Material Flows'!L5:L10) -> 208.0798937 | I21: 118.764771 | J21: 110.386241 | K21: 91.55515325 | L21: 2019.001107 | M21: 1876.566096 | N21: 1556.437605 | O21: 1614.121205 | P21: 1500.249366 | Q21: 1244.317765 | R21: WSA 2024
A22: Tires, rubber | B22: kg | C22: =C16 -> 54.76534467 | D22: =D16 -> 53.34196603 | E22: =E16 -> 3.863586612 | F22: =(1-'Expert Data Input'!D23)*'Material Flows'!C28 -> 120 | G22: =(1-'Expert Data Input'!D23)*'Material Flows'!G28 -> 120 | H22: =(1-'Expert Data Input'!D23)*'Material Flows'!K28 -> 120 | I22: 463.6303934 | J22: 463.6303934 | K22: 463.6303934 | L22: 6571.841361 | M22: 6571.841361 | N22: 6571.841361 | O22: 6401.035923 | P22: 6401.035923 | Q22: 6401.035923 | R22: NA
A23: Tires, steel | B23: kg | C23: =C20 -> 23.72 | D23: =D20 -> 22.89 | E23: =E20 -> 2.13 | F23: ='Expert Data Input'!D23*'Material Flows'!C28 -> 60 | G23: ='Expert Data Input'!D23*'Material Flows'!G28 -> 60 | H23: ='Expert Data Input'!D23*'Material Flows'!K28 -> 60 | I23: 127.8 | J23: 127.8 | K23: 127.8 | L23: 1423.2 | M23: 1423.2 | N23: 1423.2 | O23: 1373.4 | P23: 1373.4 | Q23: =$D23*H23 -> 1373.4 | R23: NA
A24: MATERIALS PRODUCTION | I24: =SUM(I3:I23) -> 6941.066133 | J24: 6100.832189 | K24: 10623.4799 | L24: 93996.52387 | M24: 83115.86608 | N24: 134190.5021 | O24: 85585.08243 | P24: 75698.22877 | Q24: 117861.9556
A25: Aluminum casting | B25: kg | C25: 12.65595 | D25: 11.25822 | E25: 0.67723 | F25: ='Material Flows'!E13 -> 50.91082432 | G25: ='Material Flows'!I13 -> 43.01559907 | H25: ='Material Flows'!M13 -> 40.48912699 | I25: =$E25*F25 -> 34.47833755 | J25: =$E25*G25 -> 29.13145416 | K25: =$E25*H25 -> 27.42045147 | L25: =$C25*F25 -> 644.324847 | M25: =$C25*G25 -> 544.403271 | N25: 512.4283667 | O25: =$D25*F25 -> 573.1652606 | P25: =$D25*G25 -> 484.2790778 | Q25: 455.8354993 | R25: AA (North America), Life Cycle Assessment Report (January 2022): Die casting
A26: Aluminum extrusion | B26: kg | C26: 13.91347 | D26: 12.73735 | E26: 0.75213 | F26: ='Material Flows'!E12 -> 10.18216486 | G26: ='Material Flows'!I12 -> 7.550423114 | H26: ='Material Flows'!M12 -> 77.23894465 | I26: 7.658311659 | J26: 5.678899737 | K26: 58.09372744 | L26: =$C26*F26 -> 141.6692454 | M26: =$C26*G26 -> 105.0525855 | N26: =$C26*H26 -> 1074.661739 | O26: =$D26*F26 -> 129.6937976 | P26: =$D26*G26 -> 96.17238185 | Q26: =$D26*H26 -> 983.8194717 | R26: AA (North America), Life Cycle Assessment Report (January 2022): Automotive extrusion
A27: aluminum rolling | B27: kg | C27: 11.71105 | D27: 10.69547 | E27: 0.62279 | F27: ='Material Flows'!E11 -> 15.66486902 | G27: ='Material Flows'!I11 -> 11.61603556 | H27: ='Material Flows'!M11 -> 263.5074613 | I27: 9.755923778 | J27: 7.234350786 | K27: 164.1098118 | L27: 183.4520644 | M27: 136.0359732 | N27: 3085.949055 | O27: 167.5431367 | P27: 124.2389598 | Q27: 2818.336147 | R27: AA (North America), Life Cycle Assessment Report (January 2022): Automotive sheet
A28: CFRP finishing | B28: kg | C28: 0 | D28: 0 | E28: 0 | F28: ='Material Flows'!E18 -> 0 | G28: ='Material Flows'!I18 -> 0 | H28: ='Material Flows'!M18 -> 0 | I28: 0 | J28: 0 | K28: 0 | L28: 0 | M28: 0 | N28: 0 | O28: 0 | P28: 0 | Q28: 0
A29: Copper finishing | B29: kg | C29: 0 | D29: 0 | E29: 0 | F29: ='Material Flows'!E22 -> 16.29146378 | G29: ='Material Flows'!I22 -> 16.29146378 | H29: ='Material Flows'!M22 -> 16.29146378 | I29: 0 | J29: 0 | K29: 0 | L29: 0 | M29: 0 | N29: 0 | O29: 0 | P29: 0 | Q29: 0
A30: GFRP finishing | B30: kg | C30: 0 | D30: 0 | E30: 0 | F30: ='Material Flows'!E17 -> 0 | G30: ='Material Flows'!I17 -> 0 | H30: ='Material Flows'!M17 -> 0 | I30: 0 | J30: 0 | K30: 0 | L30: 0 | M30: 0 | N30: 0 | O30: 0 | P30: 0 | Q30: 0
A31: Glass finishing | B31: kg | C31: 0 | D31: 0 | E31: 0 | F31: ='Material Flows'!E21 -> 24.43719567 | G31: ='Material Flows'!I21 -> 24.43719567 | H31: ='Material Flows'!M21 -> 24.43719567 | I31: 0 | J31: 0 | K31: 0 | L31: 0 | M31: 0 | N31: 0 | O31: 0 | P31: 0 | Q31: 0
A32: Magnesium casting | B32: kg | C32: 12.59225759 | D32: 11.00948827 | E32: 6.602472367 | F32: ='Material Flows'!E15 -> 0 | G32: ='Material Flows'!I15 -> 0 | H32: ='Material Flows'!M15 -> 0 | I32: 0 | J32: 0 | K32: 0 | L32: 0 | M32: 0 | N32: 0 | O32: 0 | P32: 0 | Q32: 0 | R32: GREET 2 2023: Magnesium Casting and Molding
A33: Magnesium rolling | B33: kg | C33: 11.71105 | D33: 10.69547 | E33: 0.62279 | F33: ='Material Flows'!E14 -> 0 | G33: ='Material Flows'!I14 -> 0 | H33: ='Material Flows'!M14 -> 0 | I33: 0 | J33: 0 | K33: 0 | L33: 0 | M33: 0 | N33: 0 | O33: 0 | P33: 0 | Q33: 0 | R33: AA (North America), Life Cycle Assessment Report (January 2022): Automotive sheet
A34: Rubber compression molding | B34: kg | C34: 10.27761836 | D34: 9.237098817 | E34: 0.6300400418 | F34: ='Expert Data Input'!D17*'Material Flows'!E20 -> 21.74910415 | G34: ='Expert Data Input'!D17*'Material Flows'!I20 -> 21.74910415 | H34: ='Expert Data Input'!D17*'Material Flows'!M20 -> 21.74910415 | I34: 13.70280649 | J34: 13.70280649 | K34: 13.70280649 | L34: 223.528992 | M34: 223.528992 | N34: 223.528992 | O34: 200.8986242 | P34: 200.8986242 | Q34: 200.8986242 | R34: GREET 2 2023: Rubber Compression Molding
A35: Rubber injection molding | B35: kg | C35: 8.966364737 | D35: 7.02565869 | E35: 0.5399630843 | F35: =(1-'Expert Data Input'!D17)*'Material Flows'!E20 -> 2.688091524 | G35: =(1-'Expert Data Input'!D17)*'Material Flows'!I20 -> 2.688091524 | H35: =(1-'Expert Data Input'!D17)*'Material Flows'!M20 -> 2.688091524 | I35: 1.45147019 | J35: 1.45147019 | K35: 1.45147019 | L35: 24.10240905 | M35: 24.10240905 | N35: 24.10240905 | O35: 18.88561358 | P35: 18.88561358 | Q35: 18.88561358 | R35: GREET 2 2023: Rubber Injection Molding
A36: SMC finishing | B36: kg | C36: 0 | D36: 0 | E36: 0 | F36: ='Material Flows'!E16 -> 0 | G36: ='Material Flows'!I16 -> 0 | H36: ='Material Flows'!M16 -> 0 | I36: 0 | J36: 0 | K36: 0 | L36: 0 | M36: 0 | N36: 0 | O36: 0 | P36: 0 | Q36: 0
A37: Stainless mill and machining | B37: kg | C37: 6.601028664 | D37: 5.77436876 | E37: 0.4031709479 | F37: ='Material Flows'!E23 -> 0 | G37: ='Material Flows'!I23 -> 0 | H37: ='Material Flows'!M23 -> 0 | I37: 0 | J37: 0 | K37: 0 | L37: 0 | M37: 0 | N37: 0 | O37: 0 | P37: 0 | Q37: 0 | R37: GREET 2 2023: Stainless Steel Rod and Bar Mill, Machining
A38: Steel casting | B38: kg | C38: 2 | D38: 1.96 | E38: 0.135 | F38: ='Material Flows'!E7+'Material Flows'!E10 -> 101.8216486 | G38: ='Material Flows'!I7+'Material Flows'!I10 -> 101.8216486 | H38: ='Material Flows'!M7+'Material Flows'!M10 -> 101.8216486 | I38: 13.74592257 | J38: 13.74592257 | K38: 13.74592257 | L38: 203.6432973 | M38: 203.6432973 | N38: 203.6432973 | O38: 199.5704313 | P38: 199.5704313 | Q38: 199.5704313 | R38: WSA 2010
A39: Steel HDG | B39: kg | C39: 8.885582799 | D39: 7.778527063 | E39: 0.459519626 | F39: =(1-'Expert Data Input'!D16)*('Material Flows'!E5+'Material Flows'!E8) -> 444.3126486 | G39: =(1-'Expert Data Input'!D16)*('Material Flows'!I5+'Material Flows'!I8) -> 349.5699456 | H39: =(1-'Expert Data Input'!D16)*('Material Flows'!M5+'Material Flows'!M8) -> 88.42460424 | I39: 204.1703821 | J39: 160.6342507 | K39: 40.63284107 | L39: 3947.976828 | M39: 3106.132696 | N39: 785.7041425 | O39: 3456.097962 | P39: 2719.139282 | Q39: 687.8131771 | R39: WSA 2022
A40: Steel HRC | B40: kg | C40: 3.13465641 | D40: 2.8988133 | E40: 0.1599640821 | F40: ='Expert Data Input'!D16*('Material Flows'!E5+'Material Flows'!E8) -> 148.1042162 | G40: ='Expert Data Input'!D16*('Material Flows'!I5+'Material Flows'!I8) -> 116.5233152 | H40: ='Expert Data Input'!D16*('Material Flows'!M5+'Material Flows'!M8) -> 29.47486808 | I40: 23.691355 | J40: 18.63954516 | K40: 4.714920218 | L40: 464.2558307 | M40: 365.2605569 | N40: 92.39358417 | O40: 429.3264717 | P40: 337.7793359 | Q40: 85.44213961 | R40: WSA 2022
A41: Steel long | B41: kg | C41: 2.891508516 | D41: 2.787548779 | E41: 0.1878059549 | F41: =('Material Flows'!E6+'Material Flows'!E9) -> 162.9146378 | G41: =('Material Flows'!I6+'Material Flows'!I9) -> 147.9429514 | H41: =('Material Flows'!M6+'Material Flows'!M9) -> 118.0744371 | I41: 30.59633912 | J41: 27.78456726 | K41: 22.1750824 | L41: 471.0690626 | M41: 427.7783039 | N41: 341.4132402 | O41: 454.1324998 | P41: 412.3981936 | Q41: 329.1382529 | R41: WSA 2022
A42: Tires (long steel/rubber molding) | B42: kg | C42: ='Expert Data Input'!$D$23*C41+(1-'Expert Data Input'!$D$23)*('Expert Data Input'!D17*C34+(1-'Expert Data Input'!D17)*C35) -> 7.719423144 | D42: ='Expert Data Input'!$D$23*D41+(1-'Expert Data Input'!$D$23)*('Expert Data Input'!D17*D34+(1-'Expert Data Input'!D17)*D35) -> 6.925076529 | E42: ='Expert Data Input'!$D$23*E41+(1-'Expert Data Input'!$D$23)*('Expert Data Input'!D17*E34+(1-'Expert Data Input'!D17)*E35) -> 0.476023036 | F42: ='Material Flows'!E28 -> 180 | G42: ='Material Flows'!I28 -> 180 | H42: ='Material Flows'!M28 -> 180 | I42: 85.68414647 | J42: 85.68414647 | K42: 85.68414647 | L42: 1389.496166 | M42: 1389.496166 | N42: 1389.496166 | O42: 1246.513775 | P42: 1246.513775 | Q42: 1246.513775 | R42: NA
A43: MATERIALS FINISHING | I43: =SUM(I25:I42) -> 424.934995 | J43: =SUM(J25:J42) -> 363.6874135 | K43: =SUM(K25:K42) -> 431.7311802 | L43: =SUM(L25:L42) -> 7693.518742 | M43: 6525.434251 | N43: 7733.320992 | O43: 6875.827572 | P43: 5839.875675 | Q43: 7026.253132
A44: ABS Resin | B44: kg | C44: 90.54904852 | D44: 88.6480138 | E44: 3.350992168 | F44: ='Material Flows'!$F$19*'Expert Data Input'!$B48 -> 7.966029382 | G44: ='Material Flows'!$F$19*'Expert Data Input'!$B48 -> 7.966029382 | H44: ='Material Flows'!$F$19*'Expert Data Input'!$B48 -> 7.966029382 | I44: =$E44*F44 -> 26.69410207 | J44: =$E44*G44 -> 26.69410207 | K44: =$E44*H44 -> 26.69410207 | L44: =$C44*F44 -> 721.316381 | M44: =$C44*G44 -> 721.316381 | N44: 721.316381 | O44: =$D44*F44 -> 706.1726826 | P44: =$D44*G44 -> 706.1726826 | Q44: 706.1726826 | R44: GREET 2 2023: ABS Resin
A45: EPDM Resin | B45: kg | C45: 73.62223118 | D45: 73.21731171 | E45: 1.789800501 | F45: ='Material Flows'!$F$19*'Expert Data Input'!$B49 -> 7.229417791 | G45: ='Material Flows'!$F$19*'Expert Data Input'!$B49 -> 7.229417791 | H45: ='Material Flows'!$F$19*'Expert Data Input'!$B49 -> 7.229417791 | I45: =$E45*F45 -> 12.93921558 | J45: 12.93921558 | K45: 12.93921558 | L45: =$C45*F45 -> 532.2458679 | M45: =$C45*G45 -> 532.2458679 | N45: =$C45*H45 -> 532.2458679 | O45: =$D45*F45 -> 529.3185358 | P45: =$D45*G45 -> 529.3185358 | Q45: =$D45*H45 -> 529.3185358 | R45: GREET 2 2023: EPDM Resin
A46: Liquid Epoxy Resin | B46: kg | C46: 125.999825 | D46: 122.4856647 | E46: 6.188288552 | F46: ='Material Flows'!$F$19*'Expert Data Input'!$B50 -> 10.45911975 | G46: ='Material Flows'!$F$19*'Expert Data Input'!$B50 -> 10.45911975 | H46: ='Material Flows'!$F$19*'Expert Data Input'!$B50 -> 10.45911975 | I46: 64.724051 | J46: 64.724051 | K46: 64.724051 | L46: 1317.847258 | M46: 1317.847258 | N46: 1317.847258 | O46: 1281.092235 | P46: 1281.092235 | Q46: 1281.092235 | R46: GREET 2 2023: Liquid Epoxy Resin
A47: GPPS Resin | B47: kg | C47: 84.74021427 | D47: 83.78001475 | E47: 3.077579825 | F47: ='Material Flows'!$F$19*'Expert Data Input'!$B51 -> 0.6842414788 | G47: ='Material Flows'!$F$19*'Expert Data Input'!$B51 -> 0.6842414788 | H47: ='Material Flows'!$F$19*'Expert Data Input'!$B51 -> 0.6842414788 | I47: 2.105807771 | J47: 2.105807771 | K47: 2.105807771 | L47: 57.98276953 | M47: 57.98276953 | N47: 57.98276953 | O47: 57.32576119 | P47: 57.32576119 | Q47: 57.32576119 | R47: GREET 2 2023: GPPS Resin
A48: HDPE Resin | B48: kg | C48: 65.68244574 | D48: 65.13718131 | E48: 1.291683746 | F48: ='Material Flows'!$F$19*'Expert Data Input'!$B53 -> 1.366730957 | G48: ='Material Flows'!$F$19*'Expert Data Input'!$B53 -> 1.366730957 | H48: ='Material Flows'!$F$19*'Expert Data Input'!$B53 -> 1.366730957 | I48: 1.765384163 | J48: 1.765384163 | K48: 1.765384163 | L48: 89.77023196 | M48: 89.77023196 | N48: 89.77023196 | O48: 89.02500217 | P48: 89.02500217 | Q48: 89.02500217 | R48: GREET 2 2023: HDPE Resin
A49: HIPS Resin | B49: kg | C49: 85.10350317 | D49: 84.13111907 | E49: 3.057698581 | F49: ='Material Flows'!$F$19*'Expert Data Input'!$B52 -> 0.6842414788 | G49: ='Material Flows'!$F$19*'Expert Data Input'!$B52 -> 0.6842414788 | H49: ='Material Flows'!$F$19*'Expert Data Input'!$B52 -> 0.6842414788 | I49: 2.092204199 | J49: 2.092204199 | K49: 2.092204199 | L49: 58.23134686 | M49: 58.23134686 | N49: 58.23134686 | O49: 57.56600133 | P49: 57.56600133 | Q49: 57.56600133 | R49: GREET 2 2023: HIPS Resin
A50: LDPE Resin | B50: kg | C50: 71.98961523 | D50: 70.85687962 | E50: 1.624592393 | F50: ='Material Flows'!$F$19*'Expert Data Input'!$B54 -> 1.366730957 | G50: ='Material Flows'!$F$19*'Expert Data Input'!$B54 -> 1.366730957 | H50: ='Material Flows'!$F$19*'Expert Data Input'!$B54 -> 1.366730957 | I50: 2.220380716 | J50: 2.220380716 | K50: 2.220380716 | L50: 98.39043574 | M50: 98.39043574 | N50: 98.39043574 | O50: 96.84229092 | P50: 96.84229092 | Q50: 96.84229092 | R50: GREET 2 2023: LDPE Resin
A51: LLDPE Resin | B51: kg | C51: 68.38595807 | D51: 67.83856315 | E51: 2.071464039 | F51: ='Material Flows'!$F$19*'Expert Data Input'!$B55 -> 1.366730957 | G51: ='Material Flows'!$F$19*'Expert Data Input'!$B55 -> 1.366730957 | H51: ='Material Flows'!$F$19*'Expert Data Input'!$B55 -> 1.366730957 | I51: 2.831134029 | J51: 2.831134029 | K51: 2.831134029 | L51: 93.46520594 | M51: 93.46520594 | N51: 93.46520594 | O51: 92.71706436 | P51: 92.71706436 | Q51: 92.71706436 | R51: GREET 2 2023: LLDPE Resin
A52: Nylon 6 Resin | B52: kg | C52: 110.6792477 | D52: 108.4642992 | E52: 8.785252601 | F52: ='Material Flows'!$F$19*'Expert Data Input'!$B56 -> 1.102614069 | G52: ='Material Flows'!$F$19*'Expert Data Input'!$B56 -> 1.102614069 | H52: ='Material Flows'!$F$19*'Expert Data Input'!$B56 -> 1.102614069 | I52: 9.686743119 | J52: 9.686743119 | K52: 9.686743119 | L52: 122.0364957 | M52: 122.0364957 | N52: 122.0364957 | O52: 119.5942623 | P52: 119.5942623 | Q52: 119.5942623 | R52: GREET 2 2023: Nylon 6 Resin
A53: Nylon 66 Resin | B53: kg | C53: 124.4916492 | D53: 120.7388266 | E53: 6.52849095 | F53: ='Material Flows'!$F$19*'Expert Data Input'!$B57 -> 7.072959691 | G53: ='Material Flows'!$F$19*'Expert Data Input'!$B57 -> 7.072959691 | H53: ='Material Flows'!$F$19*'Expert Data Input'!$B57 -> 7.072959691 | I53: 46.17575333 | J53: 46.17575333 | K53: 46.17575333 | L53: 880.5244165 | M53: 880.5244165 | N53: 880.5244165 | O53: 853.9808535 | P53: 853.9808535 | Q53: 853.9808535 | R53: GREET 2 2023: Nylon 66 Resin
A54: PC Resin | B54: kg | C54: 97.68752363 | D54: 94.56570453 | E54: 4.314050392 | F54: ='Material Flows'!$F$19*'Expert Data Input'!$B58 -> 3.792935262 | G54: ='Material Flows'!$F$19*'Expert Data Input'!$B58 -> 3.792935262 | H54: ='Material Flows'!$F$19*'Expert Data Input'!$B58 -> 3.792935262 | I54: 16.36291386 | J54: 16.36291386 | K54: 16.36291386 | L54: 370.5224531 | M54: 370.5224531 | N54: 370.5224531 | O54: 358.6815953 | P54: 358.6815953 | Q54: 358.6815953 | R54: GREET 2 2023: PC Resin
A55: PET Resin | B55: kg | C55: 62.46195558 | D55: 60.62979065 | E55: 1.748158447 | F55: ='Material Flows'!$F$19*'Expert Data Input'!$B59 -> 1.777468752 | G55: ='Material Flows'!$F$19*'Expert Data Input'!$B59 -> 1.777468752 | H55: ='Material Flows'!$F$19*'Expert Data Input'!$B59 -> 1.777468752 | I55: 3.107297012 | J55: 3.107297012 | K55: 3.107297012 | L55: 111.0241742 | M55: 111.0241742 | N55: 111.0241742 | O55: 107.7675583 | P55: 107.7675583 | Q55: 107.7675583 | R55: GREET 2 2023: PET Resin
A56: PP Resin | B56: kg | C56: 61.55404934 | D56: 61.05390072 | E56: 1.124706327 | F56: ='Material Flows'!$F$19*'Expert Data Input'!$B60 -> 19.50680676 | G56: ='Material Flows'!$F$19*'Expert Data Input'!$B60 -> 19.50680676 | H56: ='Material Flows'!$F$19*'Expert Data Input'!$B60 -> 19.50680676 | I56: 21.93942899 | J56: 21.93942899 | K56: 21.93942899 | L56: 1200.722946 | M56: 1200.722946 | N56: 1200.722946 | O56: 1190.966643 | P56: 1190.966643 | Q56: 1190.966643 | R56: GREET 2 2023: PP Resin
A57: PUR Flexible Foam | B57: kg | C57: 74.37348668 | D57: 71.92112093 | E57: 3.371001582 | F57: ='Material Flows'!$F$19*'Expert Data Input'!$B61 -> 11.92535149 | G57: ='Material Flows'!$F$19*'Expert Data Input'!$B61 -> 11.92535149 | H57: ='Material Flows'!$F$19*'Expert Data Input'!$B61 -> 11.92535149 | I57: 40.20037873 | J57: 40.20037873 | K57: 40.20037873 | L57: 886.9299701 | M57: 886.9299701 | N57: 886.9299701 | O57: 857.6846465 | P57: 857.6846465 | Q57: 857.6846465 | R57: GREET 2 2023: PUR Flexible Foam
A58: PUR Rigid Foam | B58: kg | C58: 71.01719258 | D58: 68.80673786 | E58: 3.157135957 | F58: ='Material Flows'!$F$19*'Expert Data Input'!$B62 -> 11.33885879 | G58: ='Material Flows'!$F$19*'Expert Data Input'!$B62 -> 11.33885879 | H58: ='Material Flows'!$F$19*'Expert Data Input'!$B62 -> 11.33885879 | I58: 35.7983188 | J58: 35.7983188 | K58: 35.7983188 | L58: 805.2539185 | M58: 805.2539185 | N58: 805.2539185 | O58: 780.1898845 | P58: 780.1898845 | Q58: 780.1898845 | R58: GREET 2 2023: PUR Rigid Foam
A59: PVC Resin | B59: kg | C59: 51.08439775 | D59: 49.71416103 | E59: 2.214079195 | F59: ='Material Flows'!$F$19*'Expert Data Input'!$B63 -> 14.00663306 | G59: ='Material Flows'!$F$19*'Expert Data Input'!$B63 -> 14.00663306 | H59: ='Material Flows'!$F$19*'Expert Data Input'!$B63 -> 14.00663306 | I59: 31.01179484 | J59: 31.01179484 | K59: 31.01179484 | L59: 715.5204141 | M59: 715.5204141 | N59: 715.5204141 | O59: 696.3280112 | P59: 696.3280112 | Q59: 696.3280112 | R59: GREET 2 2023: PVC Resin
A60: PLASTICS PRODUCTION | I60: =SUM(I44:I59) -> 319.6549082 | J60: =SUM(J44:J59) -> 319.6549082 | K60: =SUM(K44:K59) -> 319.6549082 | L60: =SUM(L44:L59) -> 8061.784285 | M60: 8061.784285 | N60: 8061.784285 | O60: 7875.253028 | P60: 7875.253028 | Q60: 7875.253028
A61: Blow Molding (HDPE) | B61: kg | C61: 12.5016532 | D61: 9.803327282 | E61: 0.7532279743 | F61: ='Material Flows'!$E$19*'Expert Data Input'!$L65 -> 2.09961776 | G61: ='Material Flows'!$E$19*'Expert Data Input'!$L65 -> 2.09961776 | H61: ='Material Flows'!$E$19*'Expert Data Input'!$L65 -> 2.09961776 | I61: =$E61*F61 -> 1.581490832 | J61: =$E61*G61 -> 1.581490832 | K61: =$E61*H61 -> 1.581490832 | L61: =$C61*F61 -> 26.24869309 | M61: =$C61*G61 -> 26.24869309 | N61: 26.24869309 | O61: =$D61*F61 -> 20.58324007 | P61: =$D61*G61 -> 20.58324007 | Q61: 20.58324007 | R61: GREET 2 2023: Blow Molding (HPDE)
A62: Calendaring (PVC) | B62: kg | C62: 4.239159558 | D62: 3.321623541 | E62: 0.2552862544 | F62: ='Material Flows'!$E$19*'Expert Data Input'!$L66 -> 2.538935534 | G62: ='Material Flows'!$E$19*'Expert Data Input'!$L66 -> 2.538935534 | H62: ='Material Flows'!$E$19*'Expert Data Input'!$L66 -> 2.538935534 | I62: 0.6481553429 | J62: 0.6481553429 | K62: 0.6481553429 | L62: =$C62*F62 -> 10.76295284 | M62: =$C62*G62 -> 10.76295284 | N62: =$C62*H62 -> 10.76295284 | O62: =$D62*F62 -> 8.433388039 | P62: =$D62*G62 -> 8.433388039 | Q62: =$D62*H62 -> 8.433388039 | R62: GREET 2 2023: Calendaring (PVC)
A63: Compression Molding | B63: kg | C63: 10.27761836 | D63: 9.237098817 | E63: 0.6300400418 | F63: ='Material Flows'!$E$19*'Expert Data Input'!$L67 -> 12.80174232 | G63: ='Material Flows'!$E$19*'Expert Data Input'!$L67 -> 12.80174232 | H63: ='Material Flows'!$E$19*'Expert Data Input'!$L67 -> 12.80174232 | I63: 8.065610267 | J63: 8.065610267 | K63: 8.065610267 | L63: 131.5714219 | M63: 131.5714219 | N63: 131.5714219 | O63: 118.2509589 | P63: 118.2509589 | Q63: 118.2509589 | R63: GREET 2 2023: Compression Molding
A64: Extrusion (HDPE) | B64: kg | C64: 3.996315601 | D64: 3.131341436 | E64: 0.2406619584 | F64: ='Material Flows'!$E$19*'Expert Data Input'!$L68 -> 5.858925623 | G64: ='Material Flows'!$E$19*'Expert Data Input'!$L68 -> 5.858925623 | H64: ='Material Flows'!$E$19*'Expert Data Input'!$L68 -> 5.858925623 | I64: 1.410020515 | J64: 1.410020515 | K64: 1.410020515 | L64: 23.41411587 | M64: 23.41411587 | N64: 23.41411587 | O64: 18.34629657 | P64: 18.34629657 | Q64: 18.34629657 | R64: GREET 2 2023: Extrusion (HDPE)
A65: Extrusion (PP) | B65: kg | C65: 5.111511636 | D65: 4.005161199 | E65: 0.3078201333 | F65: ='Material Flows'!$E$19*'Expert Data Input'!$L70 -> 0.3495635881 | G65: ='Material Flows'!$E$19*'Expert Data Input'!$L70 -> 0.3495635881 | H65: ='Material Flows'!$E$19*'Expert Data Input'!$L70 -> 0.3495635881 | I65: 0.1076027103 | J65: 0.1076027103 | K65: 0.1076027103 | L65: 1.786798348 | M65: 1.786798348 | N65: 1.786798348 | O65: 1.40005852 | P65: 1.40005852 | Q65: 1.40005852 | R65: GREET 2 2023: Extrusion (PVC)
A66: Extrusion (PVC) | B66: kg | C66: 3.850137685 | D66: 3.016802693 | E66: 0.2318589842 | F66: ='Material Flows'!$E$19*'Expert Data Input'!$L69 -> 7.167934023 | G66: ='Material Flows'!$E$19*'Expert Data Input'!$L69 -> 7.167934023 | H66: ='Material Flows'!$E$19*'Expert Data Input'!$L69 -> 7.167934023 | I66: 1.661949901 | J66: 1.661949901 | K66: 1.661949901 | L66: 27.5975329 | M66: 27.5975329 | N66: 27.5975329 | O66: 21.62424266 | P66: 21.62424266 | Q66: 21.62424266 | R66: GREET 2 2023: Extrusion (PP)
A67: Injection Molding (HDPE) | B67: kg | C67: 14.58242595 | D67: 11.42616329 | E67: 0.8781676773 | F67: ='Material Flows'!$E$19*'Expert Data Input'!$L71 -> 2.838997096 | G67: ='Material Flows'!$E$19*'Expert Data Input'!$L71 -> 2.838997096 | H67: ='Material Flows'!$E$19*'Expert Data Input'!$L71 -> 2.838997096 | I67: 2.493115486 | J67: 2.493115486 | K67: 2.493115486 | L67: 41.39946494 | M67: 41.39946494 | N67: 41.39946494 | O67: 32.43884441 | P67: 32.43884441 | Q67: 32.43884441 | R67: GREET 2 2023: Injection Molding (HDPE)
A68: Injection Molding (PP) | B68: kg | C68: 5.832970381 | D68: 4.570465317 | E68: 0.3512670709 | F68: ='Material Flows'!$E$19*'Expert Data Input'!$L73 -> 27.38993856 | G68: ='Material Flows'!$E$19*'Expert Data Input'!$L73 -> 27.38993856 | H68: ='Material Flows'!$E$19*'Expert Data Input'!$L73 -> 27.38993856 | I68: 9.62118349 | J68: 9.62118349 | K68: 9.62118349 | L68: 159.7647004 | M68: 159.7647004 | N68: 159.7647004 | O68: 125.1847642 | P68: 125.1847642 | Q68: 125.1847642 | R68: GREET 2 2023: Injection Molding (PP)
A69: Injection Molding (PVC) | B69: kg | C69: 8.966364737 | D69: 7.02565869 | E69: 0.5399630843 | F69: ='Material Flows'!$E$19*'Expert Data Input'!$L72 -> 4.109989567 | G69: ='Material Flows'!$E$19*'Expert Data Input'!$L72 -> 4.109989567 | H69: ='Material Flows'!$E$19*'Expert Data Input'!$L72 -> 4.109989567 | I69: 2.219242643 | J69: 2.219242643 | K69: 2.219242643 | L69: 36.85166552 | M69: 36.85166552 | N69: =$C69*H69 -> 36.85166552 | O69: 28.87538392 | P69: 28.87538392 | Q69: 28.87538392 | R69: GREET 2 2023: Injection Molding (PVC)
A70: PLASTICS FORMING | I70: =SUM(I61:I69) -> 27.80837119 | J70: =SUM(J61:J69) -> 27.80837119 | K70: =SUM(K61:K69) -> 27.80837119 | L70: =SUM(L61:L69) -> 459.3973457 | M70: 459.3973457 | N70: 459.3973457 | O70: 375.1371772 | P70: 375.1371772 | Q70: 375.1371772
A71: Brake Fluid | B71: kg | C71: 53.3231654 | D71: 53.03342623 | E71: 0.8417311538 | F71: ='Expert Data Input'!B69*('Expert Data Input'!C69+1) -> 3.6 | G71: =F71 -> 3.6 | H71: =F71 -> 3.6 | I71: =$E71*F71 -> 3.030232154 | J71: 3.030232154 | K71: 3.030232154 | L71: =$C71*F71 -> 191.9633955 | M71: =$C71*G71 -> 191.9633955 | N71: 191.9633955 | O71: =$D71*F71 -> 190.9203344 | P71: =$D71*G71 -> 190.9203344 | Q71: 190.9203344 | R71: GREET 2 2023: Brake Fluid
A72: Powertrain Coolant | B72: kg | C72: 23.11718049 | D72: 22.79294434 | E72: 0.6020965628 | F72: ='Expert Data Input'!B71*('Expert Data Input'!C71+1) -> 28.4 | G72: =F72 -> 28.4 | H72: =F72 -> 28.4 | I72: 17.09954238 | J72: 17.09954238 | K72: 17.09954238 | L72: =$C72*F72 -> 656.5279259 | M72: =$C72*G72 -> 656.5279259 | N72: =$C72*H72 -> 656.5279259 | O72: =$D72*F72 -> 647.3196191 | P72: =$D72*G72 -> 647.3196191 | Q72: =$D72*H72 -> 647.3196191 | R72: GREET 2 2023: Powertrain Coolant
A73: Engine Oil | B73: kg | C73: 53.3231654 | D73: 53.03342623 | E73: 0.8417311538 | F73: ='Expert Data Input'!B68*('Expert Data Input'!C68+1) -> 0 | G73: 0 | H73: 0 | I73: 0 | J73: 0 | K73: 0 | L73: 0 | M73: 0 | N73: 0 | O73: 0 | P73: 0 | Q73: 0 | R73: GREET 2 2023: Engine Oil
A74: Transmission Fluid | B74: kg | C74: 53.3231654 | D74: 53.03342623 | E74: 0.8417311538 | F74: ='Expert Data Input'!B70*('Expert Data Input'!C70+1) -> 1.6 | G74: 1.6 | H74: 1.6 | I74: 1.346769846 | J74: 1.346769846 | K74: 1.346769846 | L74: 85.31706465 | M74: 85.31706465 | N74: 85.31706465 | O74: 84.85348197 | P74: 84.85348197 | Q74: 84.85348197 | R74: GREET 2 2023: Transmission Fluid
A75: Windshield Fluid | B75: kg | C75: 15.42469236 | D75: 15.22774129 | E75: 0.2430507776 | F75: ='Expert Data Input'!B72*('Expert Data Input'!C72+1) -> 45.9 | G75: 45.9 | H75: 45.9 | I75: 11.15603069 | J75: 11.15603069 | K75: 11.15603069 | L75: 707.9933795 | M75: 707.9933795 | N75: 707.9933795 | O75: 698.9533253 | P75: 698.9533253 | Q75: 698.9533253 | R75: GREET 2 2023: Windshield Fluid
A76: FLUIDS PRODUCTION | I76: =SUM(I71:I75) -> 32.63257507 | J76: =SUM(J71:J75) -> 32.63257507 | K76: =SUM(K71:K75) -> 32.63257507 | L76: =SUM(L71:L75) -> 1641.801766 | M76: 1641.801766 | N76: 1641.801766 | O76: 1622.046761 | P76: 1622.046761 | Q76: 1622.046761
A77: Paint Production | B77: car | C77: 613.8927887 | D77: 481.020049 | E77: 36.96711014 | F77: 1 | G77: 1 | H77: 1 | I77: =$E77*F77 -> 36.96711014 | J77: 36.96711014 | K77: 36.96711014 | L77: =$C77*F77 -> 613.8927887 | M77: =$C77*G77 -> 613.8927887 | N77: 613.8927887 | O77: =$D77*F77 -> 481.020049 | P77: =$D77*G77 -> 481.020049 | Q77: 481.020049 | R77: GREET 2 2023: Paint Production
A78: Painting | B78: car | C78: 3679.363277 | D78: 3465.762403 | E78: 232.0532179 | F78: 1 | G78: 1 | H78: 1 | I78: 232.0532179 | J78: 232.0532179 | K78: 232.0532179 | L78: =$C78*F78 -> 3679.363277 | M78: =$C78*G78 -> 3679.363277 | N78: =$C78*H78 -> 3679.363277 | O78: =$D78*F78 -> 3465.762403 | P78: =$D78*G78 -> 3465.762403 | Q78: =$D78*H78 -> 3465.762403 | R78: GREET 2 2023: Vehicle Assembly - Painting
A79: VAC and Lighting | B79: car | C79: 2117.609271 | D79: 1659.267765 | E79: 127.5172092 | F79: 1 | G79: 1 | H79: 1 | I79: 127.5172092 | J79: 127.5172092 | K79: 127.5172092 | L79: 2117.609271 | M79: 2117.609271 | N79: 2117.609271 | O79: 1659.267765 | P79: 1659.267765 | Q79: 1659.267765 | R79: GREET 2 2023: Vehicle Assembly - HVAC & Lighting
A80: Heating | B80: car | C80: 3498.708167 | D80: 3496.682805 | E80: 217.7712707 | F80: 1 | G80: 1 | H80: 1 | I80: 217.7712707 | J80: 217.7712707 | K80: 217.7712707 | L80: 3498.708167 | M80: 3498.708167 | N80: 3498.708167 | O80: 3496.682805 | P80: 3496.682805 | Q80: 3496.682805 | R80: GREET 2 2023: Vehicle Assembly - Heating
A81: Material Handling | B81: car | C81: 438.4948491 | D81: 343.5857493 | E81: 26.40507867 | F81: 1 | G81: 1 | H81: 1 | I81: 26.40507867 | J81: 26.40507867 | K81: 26.40507867 | L81: 438.4948491 | M81: 438.4948491 | N81: 438.4948491 | O81: 343.5857493 | P81: 343.5857493 | Q81: 343.5857493 | R81: GREET 2 2023: Vehicle Assembly - Material Handling
A82: Welding | B82: car | C82: 583.946799 | D82: 457.5556564 | E82: 35.16383647 | F82: 1 | G82: 1 | H82: 1 | I82: 35.16383647 | J82: 35.16383647 | K82: 35.16383647 | L82: 583.946799 | M82: 583.946799 | N82: 583.946799 | O82: 457.5556564 | P82: 457.5556564 | Q82: 457.5556564 | R82: GREET 2 2023: Vehicle Assembly - Welding
A83: Compressed Air | B83: car | C83: 874.8506989 | D83: 685.4954706 | E83: 52.68135208 | F83: 1 | G83: 1 | H83: 1 | I83: 52.68135208 | J83: 52.68135208 | K83: 52.68135208 | L83: 874.8506989 | M83: 874.8506989 | N83: 874.8506989 | O83: 685.4954706 | P83: 685.4954706 | Q83: 685.4954706 | R83: GREET 2 2023: Vehicle Assembly - Compressed Air
A84: ASSEMBLY | I84: =SUM(I77:I83) -> 728.5590752 | J84: =SUM(J77:J83) -> 728.5590752 | K84: =SUM(K77:K83) -> 728.5590752 | L84: =SUM(L77:L83) -> 11806.86585 | M84: 11806.86585 | N84: 11806.86585 | O84: 10589.3699 | P84: 10589.3699 | Q84: 10589.3699
A85: Aluminum | B85: kg | C85: =C5-IF('Expert Data Input'!$D15="Global",'LCA Calculations'!C4,'LCA Calculations'!C3) -> -182.6652561 | D85: =D5-IF('Expert Data Input'!$D15="Global",'LCA Calculations'!D4,'LCA Calculations'!D3) -> -153.7827989 | E85: =E5-IF('Expert Data Input'!$D15="Global",'LCA Calculations'!E4,'LCA Calculations'!E3) -> -16.27243669 | F85: =SUM(Recycling!L12:L14) -> -22.9441592 | G85: =SUM(Recycling!M12:M14) -> -20.19006997 | H85: =SUM(Recycling!N12:N14) -> 91.20234408 | I85: =$E85*F85 -> 373.357378 | J85: 328.5416353 | K85: -1484.08437 | L85: =$C85*F85 -> 4191.100718 | M85: =$C85*G85 -> 3688.024302 | N85: -16659.49954 | O85: =$D85*F85 -> 3528.417021 | P85: =$D85*G85 -> 3104.88547 | Q85: -14025.35174 | R85: NA
A86: Magnesium | B86: kg | C86: =C15-((1-'Expert Data Input'!$D14)*C13+'Expert Data Input'!$D14*C14) -> -295.6920755 | D86: =D15-((1-'Expert Data Input'!$D14)*D13+'Expert Data Input'!$D14*D14) -> -274.281416 | E86: =E15-((1-'Expert Data Input'!$D14)*E13+'Expert Data Input'!$D14*E14) -> -20.54282256 | F86: =SUM(Recycling!L15:L16) -> 0 | G86: =SUM(Recycling!M15:M16) -> 0 | H86: =SUM(Recycling!N15:N16) -> 0 | I86: 0 | J86: 0 | K86: 0 | L86: =$C86*F86 -> 0 | M86: =$C86*G86 -> 0 | N86: =$C86*H86 -> 0 | O86: =$D86*F86 -> 0 | P86: =$D86*G86 -> 0 | Q86: =$D86*H86 -> 0 | R86: NA
A87: Steel | B87: kg | C87: =C21-C20 -> -16.24 | D87: -16.91 | E87: =E21-E20 -> -1.69 | F87: =SUM(Recycling!L6:L8)+SUM(Recycling!L9:L11) -> -25.23453916 | G87: =SUM(Recycling!M6:M8)+SUM(Recycling!M9:M11) -> -50.37963081 | H87: =SUM(Recycling!N6:N8)+SUM(Recycling!N9:N11) -> -126.9838411 | I87: 42.64637117 | J87: 85.14157607 | K87: 214.6026915 | L87: 409.8089159 | M87: =$C87*G87 -> 818.1652044 | N87: =$C87*H87 -> 2062.21758 | O87: =$D87*F87 -> 426.7160571 | P87: 851.919557 | Q87: =$D87*H87 -> 2147.296753 | R87: NA
A88: PROMPT RECYCLING | I88: =SUM(I85:I87) -> 416.0037492 | J88: =SUM(J85:J87) -> 413.6832114 | K88: =SUM(K85:K87) -> -1269.481679 | L88: =SUM(L85:L87) -> 4600.909633 | M88: 4506.189506 | N88: -14597.28196 | O88: 3955.133079 | P88: 3956.805027 | Q88: -11878.05499
A89: Biodiesel production, rapeseed (EU) | B89: MJ | C89: 0.4840346529 | D89: 0.2999386737 | E89: -45.11012142 | F89: ='Use '!E19 -> 0 | G89: ='Use '!F19 -> 0 | H89: ='Use '!G19 -> 0 | I89: =$E89*F89/1000 -> 0 | J89: =$E89*G89/1000 -> 0 | K89: =$E89*H89/1000 -> 0 | L89: =$C89*F89 -> 0 | M89: =$C89*G89 -> 0 | N89: =$C89*H89 -> 0 | O89: =$D89*F89 -> 0 | P89: =$D89*G89 -> 0 | Q89: =$D89*H89 -> 0 | R89: GREET 1 2023: CIDI Vehicle: Canola-based BD100
A90: Biodiesel production, soybean (US) | B90: MJ | C90: 0.4929017027 | D90: 0.226766388 | E90: -44.784452 | F90: ='Use '!E18 -> 0 | G90: ='Use '!F18 -> 0 | H90: ='Use '!G18 -> 0 | I90: 0 | J90: 0 | K90: 0 | L90: 0 | M90: 0 | N90: 0 | O90: 0 | P90: 0 | Q90: 0 | R90: GREET 1 2023: CIDI Vehicle: Soybean-based BD100
A91: Diesel production | B91: MJ | C91: 0.1806442251 | D91: 0.1747207202 | E91: 15.27906312 | F91: ='Use '!E14 -> 0 | G91: ='Use '!F14 -> 0 | H91: ='Use '!G14 -> 0 | I91: 0 | J91: 0 | K91: 0 | L91: 0 | M91: 0 | N91: 0 | O91: 0 | P91: 0 | Q91: 0 | R91: GREET 1 2023: Conv. Diesel
A92: Bioethanol production, cellulose (US) | B92: MJ | C92: 2.21853421 | D92: 0.1003869025 | E92: -48.39536967 | F92: ='Use '!E16 -> 0 | G92: ='Use '!F16 -> 0 | H92: ='Use '!G16 -> 0 | I92: 0 | J92: 0 | K92: 0 | L92: 0 | M92: 0 | N92: 0 | O92: 0 | P92: 0 | Q92: 0 | R92: GREET 1: EtOH FFV: E100, Switchgrass
A93: Bioethanol production, corn (US) | B93: MJ | C93: 0.7060738805 | D93: 0.6692403757 | E93: -16.65377492 | F93: ='Use '!E15 -> 0 | G93: ='Use '!F15 -> 0 | H93: ='Use '!G15 -> 0 | I93: 0 | J93: 0 | K93: 0 | L93: 0 | M93: 0 | N93: 0 | O93: 0 | P93: 0 | Q93: 0 | R93: GREET 1 2023: EtOH FFV: E100, Corn
A94: Bioethanol production, sugar (Brazil) | B94: MJ | C94: 2.687729599 | D94: 0.2397280705 | E94: -34.42820479 | F94: ='Use '!E17 -> 0 | G94: ='Use '!F17 -> 0 | H94: ='Use '!G17 -> 0 | I94: 0 | J94: 0 | K94: 0 | L94: 0 | M94: 0 | N94: 0 | O94: 0 | P94: 0 | Q94: 0 | R94: GREET 1 2023: EtOH FFV: E100, Sugarcane
A95: Gasoline production | B95: MJ | C95: 0.2704720356 | D95: 0.2422007349 | E95: 16.98437005 | F95: ='Use '!E13 -> 0 | G95: ='Use '!F13 -> 0 | H95: ='Use '!G13 -> 0 | I95: 0 | J95: 0 | K95: 0 | L95: 0 | M95: 0 | N95: 0 | O95: 0 | P95: 0 | Q95: 0 | R95: GREET 1 2023: Gasoline
A96: Compr. hydr. production | B96: MJ | C96: 1.92762531 | D96: 1.490204783 | E96: 109.0957268 | F96: ='Use '!E20 -> 0 | G96: ='Use '!F20 -> 0 | H96: ='Use '!G20 -> 0 | I96: 0 | J96: 0 | K96: 0 | L96: 0 | M96: 0 | N96: 0 | O96: 0 | P96: 0 | Q96: 0 | R96: GREET 1 2023: Electricity Mix for Hydrogen Pathways
A97: Electricity production, China | B97: MJ | C97: 2.434857064 | D97: 1.984036281 | E97: 194.2105977 | F97: =IF('Data Input'!$P$12="China",'Use '!E21,0) -> 0 | G97: =IF('Data Input'!$P$12="China",'Use '!F21,0) -> 0 | H97: =IF('Data Input'!$P$12="China",'Use '!G21,0) -> 0 | I97: 0 | J97: 0 | K97: 0 | L97: 0 | M97: 0 | N97: 0 | O97: 0 | P97: 0 | Q97: 0 | R97: GREET 1 2023: China Average
A98: Electricity production, coal | B98: MJ | C98: 3.11 | D98: 3.11 | E98: 309.01 | F98: =IF('Data Input'!$P$12="Coal",'Use '!E21,0) -> 0 | G98: =IF('Data Input'!$P$12="Coal",'Use '!F21,0) -> 0 | H98: =IF('Data Input'!$P$12="Coal",'Use '!G21,0) -> 0 | I98: 0 | J98: 0 | K98: 0 | L98: 0 | M98: 0 | N98: 0 | O98: 0 | P98: 0 | Q98: 0 | R98: GREET 1 2023: Coal-Fired Power Plant
A99: Electricity production, Europe | B99: MJ | C99: 2.064175157 | D99: 1.20026783 | E99: 99.9415665 | F99: =IF('Data Input'!$P$12="Europe",'Use '!E21,0) -> 0 | G99: =IF('Data Input'!$P$12="Europe",'Use '!F21,0) -> 0 | H99: =IF('Data Input'!$P$12="Europe",'Use '!G21,0) -> 0 | I99: 0 | J99: 0 | K99: 0 | L99: 0 | M99: 0 | N99: 0 | O99: 0 | P99: 0 | Q99: 0 | R99: GREET 1 2023: Europe Average
A100: Electricity production, India | B100: MJ | C100: 2.609925935 | D100: 2.29790434 | E100: 224.5339114 | F100: =IF('Data Input'!$P$12="India",'Use '!E21,0) -> 0 | G100: =IF('Data Input'!$P$12="India",'Use '!F21,0) -> 0 | H100: =IF('Data Input'!$P$12="India",'Use '!G21,0) -> 0 | I100: 0 | J100: 0 | K100: 0 | L100: 0 | M100: 0 | N100: 0 | O100: 0 | P100: 0 | Q100: 0 | R100: GREET 1 2023: India Average
A101: Electricity production, Japan | B101: MJ | C101: 2.523154681 | D101: 2.06574637 | E101: 166.9717627 | F101: =IF('Data Input'!$P$12="Japan",'Use '!E21,0) -> 0 | G101: =IF('Data Input'!$P$12="Japan",'Use '!F21,0) -> 0 | H101: =IF('Data Input'!$P$12="Japan",'Use '!G21,0) -> 0 | I101: 0 | J101: 0 | K101: 0 | L101: 0 | M101: 0 | N101: 0 | O101: 0 | P101: 0 | Q101: 0 | R101: GREET 1 2023: Japan Average
A102: Electricity production, USA | B102: MJ | C102: 2.03 | D102: 1.59 | E102: 122.09 | F102: =IF('Data Input'!$P$12="USA",'Use '!E21,0) -> 101361.5345 | G102: =IF('Data Input'!$P$12="USA",'Use '!F21,0) -> 95857.3166 | H102: =IF('Data Input'!$P$12="USA",'Use '!G21,0) -> 94095.96688 | I102: 12375.22974 | J102: 11703.21978 | K102: 11488.1766 | L102: 205763.915 | M102: 194590.3527 | N102: 191014.8128 | O102: 161164.8398 | P102: 152413.1334 | Q102: 149612.5873 | R102: GREET 1 2023: Stationary Use: U.S. Mix
A103: Biodiesel combustion | B103: MJ | C103: 1 | D103: 0 | E103: 76 | F103: =SUM(F89:F90) -> 0 | G103: =SUM(G89:G90) -> 0 | H103: =SUM(H89:H90) -> 0 | I103: 0 | J103: 0 | K103: 0 | L103: 0 | M103: 0 | N103: 0 | O103: 0 | P103: 0 | Q103: 0 | R103: GREET 1 2023: CIDI Vehicle: Soybean-based BD100
A104: Diesel combustion | B104: MJ | C104: 1 | D104: 1 | E104: 76 | F104: =F91 -> 0 | G104: =G91 -> 0 | H104: =H91 -> 0 | I104: 0 | J104: 0 | K104: 0 | L104: 0 | M104: 0 | N104: 0 | O104: 0 | P104: 0 | Q104: 0 | R104: GREET 1 2023: CIDI Vehicle: Conventional and LS Diesel
A105: Bioethanol combustion | B105: MJ | C105: 1 | D105: 0 | E105: 70 | F105: =SUM(F92:F94) -> 0 | G105: =SUM(G92:G94) -> 0 | H105: =SUM(H92:H94) -> 0 | I105: 0 | J105: 0 | K105: 0 | L105: 0 | M105: 0 | N105: 0 | O105: 0 | P105: 0 | Q105: 0 | R105: GREET 1 2023: EtOH FFV: E100, Corn
A106: Gasoline combustion | B106: MJ | C106: 1 | D106: 1 | E106: 73 | F106: =F95 -> 0 | G106: 0 | H106: 0 | I106: 0 | J106: 0 | K106: 0 | L106: 0 | M106: 0 | N106: 0 | O106: 0 | P106: 0 | Q106: 0 | R106: GREET 1 2023: Gasoline Vehicle: Gasoline
A107: Hydrogen use | B107: MJ | C107: 1 | D107: 1 | E107: 0 | F107: 0 | G107: 0 | H107: 0 | I107: =E107*F107 -> 0 | J107: =E107*G107 -> 0 | K107: =E107*H107 -> 0 | L107: 0 | M107: 0 | N107: 0 | O107: 0 | P107: 0 | Q107: 0 | R107: N/A
A108: USE | I108: =SUM(I89:I107) -> 12375.22974 | J108: 11703.21978 | K108: 11488.1766 | L108: 205763.915 | M108: 194590.3527 | N108: 191014.8128 | O108: 161164.8398 | P108: 152413.1334 | Q108: 149612.5873
A109: Aluminum | B109: kg | C109: =C85 -> -182.6652561 | D109: =D85 -> -153.7827989 | E109: =E85 -> -16.27243669 | F109: =SUM(Recycling!O12:O14) -> 40.67329767 | G109: =SUM(Recycling!P12:P14) -> 33.1601367 | H109: =SUM(Recycling!Q12:Q14) -> 165.6351035 | I109: =$E109*F109 -> -661.8536613 | J109: -539.5962251 | K109: -2695.286735 | L109: =$C109*F109 -> -7429.598336 | M109: -6057.204864 | N109: -30255.7786 | O109: =$D109*F109 -> -6254.853557 | P109: -5099.458635 | Q109: -25471.82981 | R109: NA
A110: Battery recycling, pyrometallurgical | B110: kg | C110: -131.64 | D110: -121.83 | E110: -7.51 | F110: ='Expert Data Input'!B32*Recycling!O26 -> 177.2568109 | G110: ='Expert Data Input'!B32*Recycling!P26 -> 159.0057258 | H110: ='Expert Data Input'!B32*Recycling!Q26 -> 153.1653785 | I110: -1331.19865 | J110: -1194.133001 | K110: -1150.271993 | L110: -23334.08659 | M110: -20931.51374 | N110: -20162.69043 | O110: -21595.19727 | P110: -19371.66757 | Q110: -18660.13807 | R110: Ecoinvent
A111: Battery recycling, hydrometallurigical | B111: kg | C111: -31.35 | D111: -26.31 | E111: -2.13 | F111: =(1-'Expert Data Input'!B32)*Recycling!O26 -> 177.2568109 | G111: =(1-'Expert Data Input'!B32)*Recycling!P26 -> 159.0057258 | H111: =(1-'Expert Data Input'!B32)*Recycling!Q26 -> 153.1653785 | I111: -377.5570072 | J111: -338.6821959 | K111: -326.2422563 | L111: -5557.001022 | M111: -4984.829503 | N111: -4801.734617 | O111: -4663.626695 | P111: -4183.440645 | Q111: -4029.78111 | R111: Ecoinvent
A112: Magnesium | B112: kg | C112: =C86 -> -295.6920755 | D112: -274.281416 | E112: -20.54282256 | F112: =SUM(Recycling!O15:O16) -> 0 | G112: =SUM(Recycling!P15:P16) -> 0 | H112: =SUM(Recycling!Q15:Q16) -> 0 | I112: 0 | J112: 0 | K112: 0 | L112: 0 | M112: 0 | N112: 0 | O112: 0 | P112: 0 | Q112: 0 | R112: NA
A113: Steel | B113: kg | C113: -16.24 | D113: -16.91 | E113: -1.69 | F113: =SUM(Recycling!O6:O8)+SUM(Recycling!O9:O11) -> 491.663641 | G113: =SUM(Recycling!P6:P8)+SUM(Recycling!P9:P11) -> 416.5681149 | H113: =SUM(Recycling!Q6:Q8)+SUM(Recycling!Q9:Q11) -> 217.4835849 | I113: -830.9115533 | J113: -704.0001141 | K113: =$E113*H113 -> -367.5472585 | L113: -7984.61753 | M113: -6765.066186 | N113: -3531.933419 | O113: -8314.032169 | P113: -7044.166823 | Q113: -3677.647421 | R113: NA
A114: EOL RECYCLING | I114: =SUM(I109:I113) -> -3201.520872 | J114: =SUM(J109:J113) -> -2776.411536 | K114: =SUM(K109:K113) -> -4539.348243 | L114: -44305.30347 | M114: -38738.6143 | N114: -58752.13707 | O114: -40827.70969 | P114: -35698.73368 | Q114: -51839.39641
H117: GHG Emissions (in kg CO2 eq) | I117: Production | J117: Use | K117: End of Life
H118: Baseline | I118: =I24+I43+I60+I70+I76+I84+I88 -> 8890.659807 | J118: =I108 -> 12375.22974 | K118: =I114 -> -3201.520872
H119: Contender 1 | I119: =J24+J43+J60+J70+J76+J84+J88 -> 7986.857744 | J119: =J108 -> 11703.21978 | K119: =J114 -> -2776.411536
H120: Contender 2 | I120: =K24+K43+K60+K70+K76+K84+K88 -> 10894.38433 | J120: =K108 -> 11488.1766 | K120: =K114 -> -4539.348243
H122: Total Energy Requirements (in MJ) | I122: Production | J122: Use | K122: End of Life
H123: Baseline | I123: =L24+L43+L60+L70+L76+L84+L88 -> 128260.8015 | J123: =L108 -> 205763.915 | K123: =L114 -> -44305.30347
H124: Contender 1 | I124: =M24+M43+M60+M70+M76+M84+M88 -> 116117.3391 | J124: =M108 -> 194590.3527 | K124: =M114 -> -38738.6143
H125: Contender 2 | I125: =N24+N43+N60+N70+N76+N84+N88 -> 149296.3904 | J125: =N108 -> 191014.8128 | K125: =N114 -> -58752.13707
H127: Fossil Energy Requirements (in MJ) | I127: Production | J127: Use | K127: End of Life
H128: Baseline | I128: =O24+O43+O60+O70+O76+O84+O88 -> 116877.8499 | J128: =O108 -> 161164.8398 | K128: =O114 -> -40827.70969
H129: Contender 1 | I129: =P24+P43+P60+P70+P76+P84+P88 -> 105956.7163 | J129: =P108 -> 152413.1334 | K129: =P114 -> -35698.73368
H130: Contender 2 | I130: =Q24+Q43+Q60+Q70+Q76+Q84+Q88 -> 133471.9606 | J130: =Q108 -> 149612.5873 | K130: =Q114 -> -51839.39641
